Body Name,Body,Date,Department,Beneficiary,Summary of Purpose (SeRCOP),Amount SUM,Merchant Code,Transaction Number,Supplier ID
Sandwell Metropolitan Borough Council,http://www.sandwell.gov.uk/info/200202/performance_and_spending/1079/payments_over_500,01-Jun-2023,Adults Social Care Capital,DOLPHIN LIFTS MIDLANDS LTD,Adults Social Care Capital,4523.32,Deferred Charges/Grant Payments,2324P03_CR00001,123852
Sandwell Metropolitan Borough Council,http://www.sandwell.gov.uk/info/200202/performance_and_spending/1079/payments_over_500,01-Jun-2023,Adults Social Care Capital,DOLPHIN LIFTS MIDLANDS LTD,Adults Social Care Capital,6381.66,Deferred Charges/Grant Payments,2324P03_CR00002,123852
Sandwell Metropolitan Borough Council,http://www.sandwell.gov.uk/info/200202/performance_and_spending/1079/payments_over_500,01-Jun-2023,Adults Social Care Capital,DOLPHIN LIFTS MIDLANDS LTD,Adults Social Care Capital,6791.66,Deferred Charges/Grant Payments,2324P03_CR00003,123852
Sandwell Metropolitan Borough Council,http://www.sandwell.gov.uk/info/200202/performance_and_spending/1079/payments_over_500,01-Jun-2023,Adults Social Care Capital,DOLPHIN LIFTS MIDLANDS LTD,Adults Social Care Capital,7507.76,Deferred Charges/Grant Payments,2324P03_CR00004,123852
Sandwell Metropolitan Borough Council,http://www.sandwell.gov.uk/info/200202/performance_and_spending/1079/payments_over_500,01-Jun-2023,Adults Social Care Capital,DOLPHIN LIFTS MIDLANDS LTD,Adults Social Care Capital,8119.73,Deferred Charges/Grant Payments,2324P03_CR00005,123852
Sandwell Metropolitan Borough Council,http://www.sandwell.gov.uk/info/200202/performance_and_spending/1079/payments_over_500,01-Jun-2023,Adults Social Care Capital,PR PROPERTY MAINTENANCE,Adults Social Care Capital,19927.69,Deferred Charges/Grant Payments,2324P03_CR00006,33836
Sandwell Metropolitan Borough Council,http://www.sandwell.gov.uk/info/200202/performance_and_spending/1079/payments_over_500,01-Jun-2023,Adults Social Care Capital,VINCI CONSTRUCTION LTD,Adults Social Care Capital,6126.08,Deferred Charges/Grant Payments,2324P03_CR00007,36361
Sandwell Metropolitan Borough Council,http://www.sandwell.gov.uk/info/200202/performance_and_spending/1079/payments_over_500,16-Jun-2023,Adults Social Care Capital,VINCI CONSTRUCTION LTD,Adults Social Care Capital,21461.03,Deferred Charges/Grant Payments,2324P03_CR00008,36361
Sandwell Metropolitan Borough Council,http://www.sandwell.gov.uk/info/200202/performance_and_spending/1079/payments_over_500,20-Jun-2023,Adults Social Care Capital,TDF DESIGN LIMITED,Adults Social Care Capital,17700.00,Deferred Charges/Grant Payments,2324P03_CR00009,10320
Sandwell Metropolitan Borough Council,http://www.sandwell.gov.uk/info/200202/performance_and_spending/1079/payments_over_500,07-Jun-2023,Adults Social Care Capital,R J WISHART,Adults Social Care Capital,20850.00,Deferred Charges/Grant Payments,2324P03_CR00010,08555927
Sandwell Metropolitan Borough Council,http://www.sandwell.gov.uk/info/200202/performance_and_spending/1079/payments_over_500,14-Jun-2023,Childrens Services,AMP BIOMASS FUEL LTD T/A AMP CLEAN ENERGY,Childrens Services,4121.83,"Commissioning, Partnerships & Improvement",2324P03_CR00011,128761
Sandwell Metropolitan Borough Council,http://www.sandwell.gov.uk/info/200202/performance_and_spending/1079/payments_over_500,01-Jun-2023,Childrens Services,AVANTI GAS LIMITED,Childrens Services,2153.65,Gas,2324P03_CR00012,60069
Sandwell Metropolitan Borough Council,http://www.sandwell.gov.uk/info/200202/performance_and_spending/1079/payments_over_500,01-Jun-2023,Childrens Services,BCH PROPERTY LIMITED,Childrens Services,800.16,Rents,2324P03_CR00013,01011861
Sandwell Metropolitan Borough Council,http://www.sandwell.gov.uk/info/200202/performance_and_spending/1079/payments_over_500,01-Jun-2023,Childrens Services,BCH PROPERTY LIMITED,Childrens Services,933.52,Rents,2324P03_CR00014,01011861
Sandwell Metropolitan Borough Council,http://www.sandwell.gov.uk/info/200202/performance_and_spending/1079/payments_over_500,01-Jun-2023,Childrens Services,BCH PROPERTY LIMITED,Childrens Services,1166.76,Rents,2324P03_CR00015,01011861
Sandwell Metropolitan Borough Council,http://www.sandwell.gov.uk/info/200202/performance_and_spending/1079/payments_over_500,01-Jun-2023,Childrens Services,BCH PROPERTY LIMITED,Childrens Services,1166.76,Rents,2324P03_CR00016,01011861
Sandwell Metropolitan Borough Council,http://www.sandwell.gov.uk/info/200202/performance_and_spending/1079/payments_over_500,01-Jun-2023,Childrens Services,BCH PROPERTY LIMITED,Childrens Services,1166.76,Rents,2324P03_CR00017,01011861
Sandwell Metropolitan Borough Council,http://www.sandwell.gov.uk/info/200202/performance_and_spending/1079/payments_over_500,01-Jun-2023,Childrens Services,BCH PROPERTY LIMITED,Childrens Services,1166.76,Rents,2324P03_CR00018,01011861
Sandwell Metropolitan Borough Council,http://www.sandwell.gov.uk/info/200202/performance_and_spending/1079/payments_over_500,01-Jun-2023,Childrens Services,BCH PROPERTY LIMITED,Childrens Services,1166.76,Rents,2324P03_CR00019,01011861
Sandwell Metropolitan Borough Council,http://www.sandwell.gov.uk/info/200202/performance_and_spending/1079/payments_over_500,04-Jun-2023,Childrens Services,BCH PROPERTY LIMITED,Childrens Services,1166.76,Rents,2324P03_CR00020,01011861
Sandwell Metropolitan Borough Council,http://www.sandwell.gov.uk/info/200202/performance_and_spending/1079/payments_over_500,04-Jun-2023,Childrens Services,BCH PROPERTY LIMITED,Childrens Services,1166.76,Rents,2324P03_CR00021,01011861
Sandwell Metropolitan Borough Council,http://www.sandwell.gov.uk/info/200202/performance_and_spending/1079/payments_over_500,01-Jun-2023,Childrens Services,BCH PROPERTY LIMITED,Childrens Services,1283.52,Rents,2324P03_CR00022,01011861
Sandwell Metropolitan Borough Council,http://www.sandwell.gov.uk/info/200202/performance_and_spending/1079/payments_over_500,01-Jun-2023,Childrens Services,BCH PROPERTY LIMITED,Childrens Services,1283.52,Rents,2324P03_CR00023,01011861
Sandwell Metropolitan Borough Council,http://www.sandwell.gov.uk/info/200202/performance_and_spending/1079/payments_over_500,01-Jun-2023,Childrens Services,BCH PROPERTY LIMITED,Childrens Services,1283.52,Rents,2324P03_CR00024,01011861
Sandwell Metropolitan Borough Council,http://www.sandwell.gov.uk/info/200202/performance_and_spending/1079/payments_over_500,01-Jun-2023,Childrens Services,BCH PROPERTY LIMITED,Childrens Services,1283.52,Rents,2324P03_CR00025,01011861
Sandwell Metropolitan Borough Council,http://www.sandwell.gov.uk/info/200202/performance_and_spending/1079/payments_over_500,04-Jun-2023,Childrens Services,BCH PROPERTY LIMITED,Childrens Services,1283.52,Rents,2324P03_CR00026,01011861
Sandwell Metropolitan Borough Council,http://www.sandwell.gov.uk/info/200202/performance_and_spending/1079/payments_over_500,04-Jun-2023,Childrens Services,BCH PROPERTY LIMITED,Childrens Services,1283.52,Rents,2324P03_CR00027,01011861
Sandwell Metropolitan Borough Council,http://www.sandwell.gov.uk/info/200202/performance_and_spending/1079/payments_over_500,04-Jun-2023,Childrens Services,BCH PROPERTY LIMITED,Childrens Services,1283.52,Rents,2324P03_CR00028,01011861
Sandwell Metropolitan Borough Council,http://www.sandwell.gov.uk/info/200202/performance_and_spending/1079/payments_over_500,01-Jun-2023,Childrens Services,BCH PROPERTY LIMITED,Childrens Services,1344.00,Rents,2324P03_CR00029,01011861
Sandwell Metropolitan Borough Council,http://www.sandwell.gov.uk/info/200202/performance_and_spending/1079/payments_over_500,01-Jun-2023,Childrens Services,BCH PROPERTY LIMITED,Childrens Services,1568.00,Rents,2324P03_CR00030,01011861
Sandwell Metropolitan Borough Council,http://www.sandwell.gov.uk/info/200202/performance_and_spending/1079/payments_over_500,01-Jun-2023,Childrens Services,BCH PROPERTY LIMITED,Childrens Services,1568.00,Rents,2324P03_CR00031,01011861
Sandwell Metropolitan Borough Council,http://www.sandwell.gov.uk/info/200202/performance_and_spending/1079/payments_over_500,01-Jun-2023,Childrens Services,BCH PROPERTY LIMITED,Childrens Services,1568.00,Rents,2324P03_CR00032,01011861
Sandwell Metropolitan Borough Council,http://www.sandwell.gov.uk/info/200202/performance_and_spending/1079/payments_over_500,04-Jun-2023,Childrens Services,BCH PROPERTY LIMITED,Childrens Services,1568.00,Rents,2324P03_CR00033,01011861
Sandwell Metropolitan Borough Council,http://www.sandwell.gov.uk/info/200202/performance_and_spending/1079/payments_over_500,12-Jun-2023,Childrens Services,BIDFOOD,Childrens Services,579.17,Catering Provisions,2324P03_CR00034,164984
Sandwell Metropolitan Borough Council,http://www.sandwell.gov.uk/info/200202/performance_and_spending/1079/payments_over_500,05-Jun-2023,Childrens Services,BIDFOOD,Childrens Services,589.94,Catering Provisions,2324P03_CR00035,164984
Sandwell Metropolitan Borough Council,http://www.sandwell.gov.uk/info/200202/performance_and_spending/1079/payments_over_500,12-Jun-2023,Childrens Services,BIDFOOD,Childrens Services,605.31,Catering Provisions,2324P03_CR00036,164984
Sandwell Metropolitan Borough Council,http://www.sandwell.gov.uk/info/200202/performance_and_spending/1079/payments_over_500,01-Jun-2023,Childrens Services,BIDFOOD,Childrens Services,794.55,Catering Provisions,2324P03_CR00037,164984
Sandwell Metropolitan Borough Council,http://www.sandwell.gov.uk/info/200202/performance_and_spending/1079/payments_over_500,01-Jun-2023,Childrens Services,BIRMINGHAM CITY UNIVERSITY,Childrens Services,9450.00,Externally Purchased Professional Services ,2324P03_CR00038,01564602
Sandwell Metropolitan Borough Council,http://www.sandwell.gov.uk/info/200202/performance_and_spending/1079/payments_over_500,20-Jun-2023,Childrens Services,CANAL & RIVER TRUST,Childrens Services,864.00,Licences,2324P03_CR00039,01631306
Sandwell Metropolitan Borough Council,http://www.sandwell.gov.uk/info/200202/performance_and_spending/1079/payments_over_500,01-Jun-2023,Childrens Services,CERTAS ENERGY LIMITED,Childrens Services,612.34,Oil,2324P03_CR00040,80421
Sandwell Metropolitan Borough Council,http://www.sandwell.gov.uk/info/200202/performance_and_spending/1079/payments_over_500,19-Jun-2023,Childrens Services,CIVICA UK LTD,Childrens Services,57700.00,ICT ,2324P03_CR00041,26200
Sandwell Metropolitan Borough Council,http://www.sandwell.gov.uk/info/200202/performance_and_spending/1079/payments_over_500,22-Jun-2023,Childrens Services,CORONA ENERGY RETAIL 2 LIMITED,Childrens Services,785.56,Gas,2324P03_CR00042,118395
Sandwell Metropolitan Borough Council,http://www.sandwell.gov.uk/info/200202/performance_and_spending/1079/payments_over_500,01-Jun-2023,Childrens Services,CORONA ENERGY RETAIL 2 LIMITED,Childrens Services,1136.00,Gas,2324P03_CR00043,118395
Sandwell Metropolitan Borough Council,http://www.sandwell.gov.uk/info/200202/performance_and_spending/1079/payments_over_500,02-Jun-2023,Childrens Services,CUSTODIAN GROUP LTD,Childrens Services,630.00,Rents,2324P03_CR00044,151637
Sandwell Metropolitan Borough Council,http://www.sandwell.gov.uk/info/200202/performance_and_spending/1079/payments_over_500,01-Jun-2023,Childrens Services,CUSTODIAN GROUP LTD,Childrens Services,630.00,Rents,2324P03_CR00045,151637
Sandwell Metropolitan Borough Council,http://www.sandwell.gov.uk/info/200202/performance_and_spending/1079/payments_over_500,01-Jun-2023,Childrens Services,CUSTODIAN GROUP LTD,Childrens Services,630.00,Rents,2324P03_CR00046,151637
Sandwell Metropolitan Borough Council,http://www.sandwell.gov.uk/info/200202/performance_and_spending/1079/payments_over_500,01-Jun-2023,Childrens Services,CUSTODIAN GROUP LTD,Childrens Services,630.00,Rents,2324P03_CR00047,151637
Sandwell Metropolitan Borough Council,http://www.sandwell.gov.uk/info/200202/performance_and_spending/1079/payments_over_500,01-Jun-2023,Childrens Services,CUSTODIAN GROUP LTD,Childrens Services,630.00,Rents,2324P03_CR00048,151637
Sandwell Metropolitan Borough Council,http://www.sandwell.gov.uk/info/200202/performance_and_spending/1079/payments_over_500,01-Jun-2023,Childrens Services,CUSTODIAN GROUP LTD,Childrens Services,630.00,Rents,2324P03_CR00049,151637
Sandwell Metropolitan Borough Council,http://www.sandwell.gov.uk/info/200202/performance_and_spending/1079/payments_over_500,02-Jun-2023,Childrens Services,CUSTODIAN GROUP LTD,Childrens Services,630.00,Rents,2324P03_CR00050,151637
Sandwell Metropolitan Borough Council,http://www.sandwell.gov.uk/info/200202/performance_and_spending/1079/payments_over_500,02-Jun-2023,Childrens Services,CUSTODIAN GROUP LTD,Childrens Services,630.00,Rents,2324P03_CR00051,151637
Sandwell Metropolitan Borough Council,http://www.sandwell.gov.uk/info/200202/performance_and_spending/1079/payments_over_500,02-Jun-2023,Childrens Services,CUSTODIAN GROUP LTD,Childrens Services,630.00,Rents,2324P03_CR00052,151637
Sandwell Metropolitan Borough Council,http://www.sandwell.gov.uk/info/200202/performance_and_spending/1079/payments_over_500,02-Jun-2023,Childrens Services,CUSTODIAN GROUP LTD,Childrens Services,630.00,Rents,2324P03_CR00053,151637
Sandwell Metropolitan Borough Council,http://www.sandwell.gov.uk/info/200202/performance_and_spending/1079/payments_over_500,01-Jun-2023,Childrens Services,CUSTODIAN GROUP LTD,Childrens Services,630.00,Rents,2324P03_CR00054,151637
Sandwell Metropolitan Borough Council,http://www.sandwell.gov.uk/info/200202/performance_and_spending/1079/payments_over_500,01-Jun-2023,Childrens Services,CUSTODIAN GROUP LTD,Childrens Services,630.00,Rents,2324P03_CR00055,151637
Sandwell Metropolitan Borough Council,http://www.sandwell.gov.uk/info/200202/performance_and_spending/1079/payments_over_500,01-Jun-2023,Childrens Services,CUSTODIAN GROUP LTD,Childrens Services,630.00,Rents,2324P03_CR00056,151637
Sandwell Metropolitan Borough Council,http://www.sandwell.gov.uk/info/200202/performance_and_spending/1079/payments_over_500,01-Jun-2023,Childrens Services,CUSTODIAN GROUP LTD,Childrens Services,630.00,Rents,2324P03_CR00057,151637
Sandwell Metropolitan Borough Council,http://www.sandwell.gov.uk/info/200202/performance_and_spending/1079/payments_over_500,01-Jun-2023,Childrens Services,CUSTODIAN GROUP LTD,Childrens Services,630.00,Rents,2324P03_CR00058,151637
Sandwell Metropolitan Borough Council,http://www.sandwell.gov.uk/info/200202/performance_and_spending/1079/payments_over_500,01-Jun-2023,Childrens Services,CUSTODIAN GROUP LTD,Childrens Services,630.00,Rents,2324P03_CR00059,151637
Sandwell Metropolitan Borough Council,http://www.sandwell.gov.uk/info/200202/performance_and_spending/1079/payments_over_500,01-Jun-2023,Childrens Services,CUSTODIAN GROUP LTD,Childrens Services,630.00,Rents,2324P03_CR00060,151637
Sandwell Metropolitan Borough Council,http://www.sandwell.gov.uk/info/200202/performance_and_spending/1079/payments_over_500,01-Jun-2023,Childrens Services,CUSTODIAN GROUP LTD,Childrens Services,630.00,Rents,2324P03_CR00061,151637
Sandwell Metropolitan Borough Council,http://www.sandwell.gov.uk/info/200202/performance_and_spending/1079/payments_over_500,01-Jun-2023,Childrens Services,CUSTODIAN GROUP LTD,Childrens Services,630.00,Rents,2324P03_CR00062,151637
Sandwell Metropolitan Borough Council,http://www.sandwell.gov.uk/info/200202/performance_and_spending/1079/payments_over_500,01-Jun-2023,Childrens Services,CUSTODIAN GROUP LTD,Childrens Services,630.00,Rents,2324P03_CR00063,151637
Sandwell Metropolitan Borough Council,http://www.sandwell.gov.uk/info/200202/performance_and_spending/1079/payments_over_500,01-Jun-2023,Childrens Services,CUSTODIAN GROUP LTD,Childrens Services,630.00,Rents,2324P03_CR00064,151637
Sandwell Metropolitan Borough Council,http://www.sandwell.gov.uk/info/200202/performance_and_spending/1079/payments_over_500,01-Jun-2023,Childrens Services,CUSTODIAN GROUP LTD,Childrens Services,630.00,Rents,2324P03_CR00065,151637
Sandwell Metropolitan Borough Council,http://www.sandwell.gov.uk/info/200202/performance_and_spending/1079/payments_over_500,16-Jun-2023,Childrens Services,CUSTODIAN GROUP LTD,Childrens Services,630.00,Rents,2324P03_CR00066,151637
Sandwell Metropolitan Borough Council,http://www.sandwell.gov.uk/info/200202/performance_and_spending/1079/payments_over_500,16-Jun-2023,Childrens Services,CUSTODIAN GROUP LTD,Childrens Services,630.00,Rents,2324P03_CR00067,151637
Sandwell Metropolitan Borough Council,http://www.sandwell.gov.uk/info/200202/performance_and_spending/1079/payments_over_500,16-Jun-2023,Childrens Services,CUSTODIAN GROUP LTD,Childrens Services,630.00,Rents,2324P03_CR00068,151637
Sandwell Metropolitan Borough Council,http://www.sandwell.gov.uk/info/200202/performance_and_spending/1079/payments_over_500,16-Jun-2023,Childrens Services,CUSTODIAN GROUP LTD,Childrens Services,630.00,Rents,2324P03_CR00069,151637
Sandwell Metropolitan Borough Council,http://www.sandwell.gov.uk/info/200202/performance_and_spending/1079/payments_over_500,16-Jun-2023,Childrens Services,CUSTODIAN GROUP LTD,Childrens Services,630.00,Rents,2324P03_CR00070,151637
Sandwell Metropolitan Borough Council,http://www.sandwell.gov.uk/info/200202/performance_and_spending/1079/payments_over_500,16-Jun-2023,Childrens Services,CUSTODIAN GROUP LTD,Childrens Services,630.00,Rents,2324P03_CR00071,151637
Sandwell Metropolitan Borough Council,http://www.sandwell.gov.uk/info/200202/performance_and_spending/1079/payments_over_500,07-Jun-2023,Childrens Services,DIGBETH DINING CLUB CIC,Childrens Services,8100.00,Civic Events,2324P03_CR00072,153646
Sandwell Metropolitan Borough Council,http://www.sandwell.gov.uk/info/200202/performance_and_spending/1079/payments_over_500,01-Jun-2023,Childrens Services,DIRECTION TRAINING & MANAGEMENT,Childrens Services,500.00,Externally Purchased Professional Services ,2324P03_CR00073,01727395
Sandwell Metropolitan Borough Council,http://www.sandwell.gov.uk/info/200202/performance_and_spending/1079/payments_over_500,01-Jun-2023,Childrens Services,DIRECTION TRAINING & MANAGEMENT,Childrens Services,500.00,Externally Purchased Professional Services ,2324P03_CR00074,01727395
Sandwell Metropolitan Borough Council,http://www.sandwell.gov.uk/info/200202/performance_and_spending/1079/payments_over_500,01-Jun-2023,Childrens Services,DROACH TRAVEL LTD,Childrens Services,3040.00,Public Transport,2324P03_CR00075,06002707
Sandwell Metropolitan Borough Council,http://www.sandwell.gov.uk/info/200202/performance_and_spending/1079/payments_over_500,01-Jun-2023,Childrens Services,DROACH TRAVEL LTD,Childrens Services,4860.00,Public Transport,2324P03_CR00076,06002707
Sandwell Metropolitan Borough Council,http://www.sandwell.gov.uk/info/200202/performance_and_spending/1079/payments_over_500,01-Jun-2023,Childrens Services,DROACH TRAVEL LTD,Childrens Services,6340.00,Public Transport,2324P03_CR00077,06002707
Sandwell Metropolitan Borough Council,http://www.sandwell.gov.uk/info/200202/performance_and_spending/1079/payments_over_500,01-Jun-2023,Childrens Services,EARLS GYMNASTICS CLUB,Childrens Services,630.00,Externally Purchased Professional Services ,2324P03_CR00078,96950
Sandwell Metropolitan Borough Council,http://www.sandwell.gov.uk/info/200202/performance_and_spending/1079/payments_over_500,01-Jun-2023,Childrens Services,EON NEXT ENERGY LTD,Childrens Services,1372.61,Electricity,2324P03_CR00079,149566
Sandwell Metropolitan Borough Council,http://www.sandwell.gov.uk/info/200202/performance_and_spending/1079/payments_over_500,12-Jun-2023,Childrens Services,FERNDALE PRIMARY SCHOOL      ,Childrens Services,1500.00,Grants,2324P03_CR00080,11562
Sandwell Metropolitan Borough Council,http://www.sandwell.gov.uk/info/200202/performance_and_spending/1079/payments_over_500,12-Jun-2023,Childrens Services,FERNDALE PRIMARY SCHOOL      ,Childrens Services,1500.00,Grants,2324P03_CR00081,11562
Sandwell Metropolitan Borough Council,http://www.sandwell.gov.uk/info/200202/performance_and_spending/1079/payments_over_500,12-Jun-2023,Childrens Services,FERNDALE PRIMARY SCHOOL      ,Childrens Services,1500.00,Grants,2324P03_CR00082,11562
Sandwell Metropolitan Borough Council,http://www.sandwell.gov.uk/info/200202/performance_and_spending/1079/payments_over_500,01-Jun-2023,Childrens Services,GILANI ENTERPRISES LIMITED,Childrens Services,600.00,Rents,2324P03_CR00083,2696
Sandwell Metropolitan Borough Council,http://www.sandwell.gov.uk/info/200202/performance_and_spending/1079/payments_over_500,05-Jun-2023,Childrens Services,GILANI ENTERPRISES LIMITED,Childrens Services,866.67,Rents,2324P03_CR00084,2696
Sandwell Metropolitan Borough Council,http://www.sandwell.gov.uk/info/200202/performance_and_spending/1079/payments_over_500,01-Jun-2023,Childrens Services,GILANI ENTERPRISES LIMITED,Childrens Services,933.33,Rents,2324P03_CR00085,2696
Sandwell Metropolitan Borough Council,http://www.sandwell.gov.uk/info/200202/performance_and_spending/1079/payments_over_500,05-Jun-2023,Childrens Services,GILANI ENTERPRISES LIMITED,Childrens Services,933.33,Rents,2324P03_CR00086,2696
Sandwell Metropolitan Borough Council,http://www.sandwell.gov.uk/info/200202/performance_and_spending/1079/payments_over_500,01-Jun-2023,Childrens Services,GILANI ENTERPRISES LIMITED,Childrens Services,1250.00,Rents,2324P03_CR00087,2696
Sandwell Metropolitan Borough Council,http://www.sandwell.gov.uk/info/200202/performance_and_spending/1079/payments_over_500,05-Jun-2023,Childrens Services,GILANI ENTERPRISES LIMITED,Childrens Services,1458.33,Rents,2324P03_CR00088,2696
Sandwell Metropolitan Borough Council,http://www.sandwell.gov.uk/info/200202/performance_and_spending/1079/payments_over_500,05-Jun-2023,Childrens Services,GILANI ENTERPRISES LIMITED,Childrens Services,1800.00,Rents,2324P03_CR00089,2696
Sandwell Metropolitan Borough Council,http://www.sandwell.gov.uk/info/200202/performance_and_spending/1079/payments_over_500,01-Jun-2023,Childrens Services,GILANI ENTERPRISES LIMITED,Childrens Services,2000.00,Rents,2324P03_CR00090,2696
Sandwell Metropolitan Borough Council,http://www.sandwell.gov.uk/info/200202/performance_and_spending/1079/payments_over_500,01-Jun-2023,Childrens Services,GILANI ENTERPRISES LIMITED,Childrens Services,2000.00,Rents,2324P03_CR00091,2696
Sandwell Metropolitan Borough Council,http://www.sandwell.gov.uk/info/200202/performance_and_spending/1079/payments_over_500,01-Jun-2023,Childrens Services,GILANI ENTERPRISES LIMITED,Childrens Services,2000.00,Rents,2324P03_CR00092,2696
Sandwell Metropolitan Borough Council,http://www.sandwell.gov.uk/info/200202/performance_and_spending/1079/payments_over_500,01-Jun-2023,Childrens Services,GILANI ENTERPRISES LIMITED,Childrens Services,2000.00,Rents,2324P03_CR00093,2696
Sandwell Metropolitan Borough Council,http://www.sandwell.gov.uk/info/200202/performance_and_spending/1079/payments_over_500,01-Jun-2023,Childrens Services,GILANI ENTERPRISES LIMITED,Childrens Services,2000.00,Rents,2324P03_CR00094,2696
Sandwell Metropolitan Borough Council,http://www.sandwell.gov.uk/info/200202/performance_and_spending/1079/payments_over_500,01-Jun-2023,Childrens Services,GILANI ENTERPRISES LIMITED,Childrens Services,2000.00,Rents,2324P03_CR00095,2696
Sandwell Metropolitan Borough Council,http://www.sandwell.gov.uk/info/200202/performance_and_spending/1079/payments_over_500,01-Jun-2023,Childrens Services,GILANI ENTERPRISES LIMITED,Childrens Services,2000.00,Rents,2324P03_CR00096,2696
Sandwell Metropolitan Borough Council,http://www.sandwell.gov.uk/info/200202/performance_and_spending/1079/payments_over_500,05-Jun-2023,Childrens Services,GILANI ENTERPRISES LIMITED,Childrens Services,2333.33,Rents,2324P03_CR00097,2696
Sandwell Metropolitan Borough Council,http://www.sandwell.gov.uk/info/200202/performance_and_spending/1079/payments_over_500,05-Jun-2023,Childrens Services,GILANI ENTERPRISES LIMITED,Childrens Services,2333.33,Rents,2324P03_CR00098,2696
Sandwell Metropolitan Borough Council,http://www.sandwell.gov.uk/info/200202/performance_and_spending/1079/payments_over_500,05-Jun-2023,Childrens Services,GILANI ENTERPRISES LIMITED,Childrens Services,2333.33,Rents,2324P03_CR00099,2696
Sandwell Metropolitan Borough Council,http://www.sandwell.gov.uk/info/200202/performance_and_spending/1079/payments_over_500,05-Jun-2023,Childrens Services,GILANI ENTERPRISES LIMITED,Childrens Services,2333.33,Rents,2324P03_CR00100,2696
Sandwell Metropolitan Borough Council,http://www.sandwell.gov.uk/info/200202/performance_and_spending/1079/payments_over_500,05-Jun-2023,Childrens Services,GILANI ENTERPRISES LIMITED,Childrens Services,2333.33,Rents,2324P03_CR00101,2696
Sandwell Metropolitan Borough Council,http://www.sandwell.gov.uk/info/200202/performance_and_spending/1079/payments_over_500,05-Jun-2023,Childrens Services,GILANI ENTERPRISES LIMITED,Childrens Services,2333.33,Rents,2324P03_CR00102,2696
Sandwell Metropolitan Borough Council,http://www.sandwell.gov.uk/info/200202/performance_and_spending/1079/payments_over_500,01-Jun-2023,Childrens Services,GILANI ENTERPRISES LIMITED,Childrens Services,3000.00,Rents,2324P03_CR00103,2696
Sandwell Metropolitan Borough Council,http://www.sandwell.gov.uk/info/200202/performance_and_spending/1079/payments_over_500,01-Jun-2023,Childrens Services,GILANI ENTERPRISES LIMITED,Childrens Services,3000.00,Rents,2324P03_CR00104,2696
Sandwell Metropolitan Borough Council,http://www.sandwell.gov.uk/info/200202/performance_and_spending/1079/payments_over_500,01-Jun-2023,Childrens Services,GILANI ENTERPRISES LIMITED,Childrens Services,3000.00,Rents,2324P03_CR00105,2696
Sandwell Metropolitan Borough Council,http://www.sandwell.gov.uk/info/200202/performance_and_spending/1079/payments_over_500,05-Jun-2023,Childrens Services,GILANI ENTERPRISES LIMITED,Childrens Services,3200.00,Rents,2324P03_CR00106,2696
Sandwell Metropolitan Borough Council,http://www.sandwell.gov.uk/info/200202/performance_and_spending/1079/payments_over_500,05-Jun-2023,Childrens Services,GILANI ENTERPRISES LIMITED,Childrens Services,3500.00,Rents,2324P03_CR00107,2696
Sandwell Metropolitan Borough Council,http://www.sandwell.gov.uk/info/200202/performance_and_spending/1079/payments_over_500,05-Jun-2023,Childrens Services,GILANI ENTERPRISES LIMITED,Childrens Services,3500.00,Rents,2324P03_CR00108,2696
Sandwell Metropolitan Borough Council,http://www.sandwell.gov.uk/info/200202/performance_and_spending/1079/payments_over_500,05-Jun-2023,Childrens Services,GILANI ENTERPRISES LIMITED,Childrens Services,3500.00,Rents,2324P03_CR00109,2696
Sandwell Metropolitan Borough Council,http://www.sandwell.gov.uk/info/200202/performance_and_spending/1079/payments_over_500,05-Jun-2023,Childrens Services,GILANI ENTERPRISES LIMITED,Childrens Services,3500.00,Rents,2324P03_CR00110,2696
Sandwell Metropolitan Borough Council,http://www.sandwell.gov.uk/info/200202/performance_and_spending/1079/payments_over_500,01-Jun-2023,Childrens Services,GREEN DESTINATIONS LTD,Childrens Services,989.80,Public Transport,2324P03_CR00111,109275
Sandwell Metropolitan Borough Council,http://www.sandwell.gov.uk/info/200202/performance_and_spending/1079/payments_over_500,01-Jun-2023,Childrens Services,GREEN DESTINATIONS LTD,Childrens Services,1781.64,Public Transport,2324P03_CR00112,109275
Sandwell Metropolitan Borough Council,http://www.sandwell.gov.uk/info/200202/performance_and_spending/1079/payments_over_500,01-Jun-2023,Childrens Services,GREEN DESTINATIONS LTD,Childrens Services,123469.54,Public Transport,2324P03_CR00113,109275
Sandwell Metropolitan Borough Council,http://www.sandwell.gov.uk/info/200202/performance_and_spending/1079/payments_over_500,14-Jun-2023,Childrens Services,GRESHAM OFFICE FURNITURE LTD,Childrens Services,7389.00,Equipment & Furniture ,2324P03_CR00114,93465
Sandwell Metropolitan Borough Council,http://www.sandwell.gov.uk/info/200202/performance_and_spending/1079/payments_over_500,01-Jun-2023,Childrens Services,HEART & SOUL COMMUNITY CIC LTD,Childrens Services,1074.28,Externally Purchased Professional Services ,2324P03_CR00115,133378
Sandwell Metropolitan Borough Council,http://www.sandwell.gov.uk/info/200202/performance_and_spending/1079/payments_over_500,01-Jun-2023,Childrens Services,HEART & SOUL COMMUNITY CIC LTD,Childrens Services,1074.28,Externally Purchased Professional Services ,2324P03_CR00116,133378
Sandwell Metropolitan Borough Council,http://www.sandwell.gov.uk/info/200202/performance_and_spending/1079/payments_over_500,01-Jun-2023,Childrens Services,HEART & SOUL COMMUNITY CIC LTD,Childrens Services,1074.28,Externally Purchased Professional Services ,2324P03_CR00117,133378
Sandwell Metropolitan Borough Council,http://www.sandwell.gov.uk/info/200202/performance_and_spending/1079/payments_over_500,01-Jun-2023,Childrens Services,HEART & SOUL COMMUNITY CIC LTD,Childrens Services,1074.28,Externally Purchased Professional Services ,2324P03_CR00118,133378
Sandwell Metropolitan Borough Council,http://www.sandwell.gov.uk/info/200202/performance_and_spending/1079/payments_over_500,01-Jun-2023,Childrens Services,HEART & SOUL COMMUNITY CIC LTD,Childrens Services,1074.28,Externally Purchased Professional Services ,2324P03_CR00119,133378
Sandwell Metropolitan Borough Council,http://www.sandwell.gov.uk/info/200202/performance_and_spending/1079/payments_over_500,01-Jun-2023,Childrens Services,HEART & SOUL COMMUNITY CIC LTD,Childrens Services,1074.28,Externally Purchased Professional Services ,2324P03_CR00120,133378
Sandwell Metropolitan Borough Council,http://www.sandwell.gov.uk/info/200202/performance_and_spending/1079/payments_over_500,01-Jun-2023,Childrens Services,ICE BLUE MARKETING & DESIGN,Childrens Services,8200.00,Advertising & Publicity,2324P03_CR00121,64915
Sandwell Metropolitan Borough Council,http://www.sandwell.gov.uk/info/200202/performance_and_spending/1079/payments_over_500,01-Jun-2023,Childrens Services,IDEAL FOR ALL LIMITED,Childrens Services,600.00,SH Payments,2324P03_CR00122,01678484
Sandwell Metropolitan Borough Council,http://www.sandwell.gov.uk/info/200202/performance_and_spending/1079/payments_over_500,01-Jun-2023,Childrens Services,INCLUSIVE TRADING COMMUNITY INTEREST COMPANY,Childrens Services,3000.00,Externally Purchased Professional Services ,2324P03_CR00123,120461
Sandwell Metropolitan Borough Council,http://www.sandwell.gov.uk/info/200202/performance_and_spending/1079/payments_over_500,01-Jun-2023,Childrens Services,INGESTRE ORANGERY AND GARDENS,Childrens Services,650.00,Materials & Consumables,2324P03_CR00124,127331
Sandwell Metropolitan Borough Council,http://www.sandwell.gov.uk/info/200202/performance_and_spending/1079/payments_over_500,01-Jun-2023,Childrens Services,IRON MAIDENS COMMERCIAL LAUNDRY LIMITED,Childrens Services,831.40,Laundry,2324P03_CR00125,124628
Sandwell Metropolitan Borough Council,http://www.sandwell.gov.uk/info/200202/performance_and_spending/1079/payments_over_500,01-Jun-2023,Childrens Services,LEARNPLAY FOUNDATION LTD,Childrens Services,1198.40,Externally Purchased Professional Services ,2324P03_CR00126,86525
Sandwell Metropolitan Borough Council,http://www.sandwell.gov.uk/info/200202/performance_and_spending/1079/payments_over_500,01-Jun-2023,Childrens Services,LEARNPLAY FOUNDATION LTD,Childrens Services,1198.40,Externally Purchased Professional Services ,2324P03_CR00127,86525
Sandwell Metropolitan Borough Council,http://www.sandwell.gov.uk/info/200202/performance_and_spending/1079/payments_over_500,01-Jun-2023,Childrens Services,LOCAL EDUCATION AND DEVELOPMENT,Childrens Services,3110.25,Discretionary Awards,2324P03_CR00128,148259
Sandwell Metropolitan Borough Council,http://www.sandwell.gov.uk/info/200202/performance_and_spending/1079/payments_over_500,01-Jun-2023,Childrens Services,NEW BEGINNINGS COMMUNITY,Childrens Services,600.00,Hire of Facilities,2324P03_CR00129,155886
Sandwell Metropolitan Borough Council,http://www.sandwell.gov.uk/info/200202/performance_and_spending/1079/payments_over_500,01-Jun-2023,Childrens Services,NEW BEGINNINGS COMMUNITY,Childrens Services,600.00,Hire of Facilities,2324P03_CR00130,155886
Sandwell Metropolitan Borough Council,http://www.sandwell.gov.uk/info/200202/performance_and_spending/1079/payments_over_500,01-Jun-2023,Childrens Services,NEW BEGINNINGS COMMUNITY,Childrens Services,600.00,Hire of Facilities,2324P03_CR00131,155886
Sandwell Metropolitan Borough Council,http://www.sandwell.gov.uk/info/200202/performance_and_spending/1079/payments_over_500,01-Jun-2023,Childrens Services,NEWAVE LTD,Childrens Services,774.46,Agency Staff,2324P03_CR00132,101666
Sandwell Metropolitan Borough Council,http://www.sandwell.gov.uk/info/200202/performance_and_spending/1079/payments_over_500,01-Jun-2023,Childrens Services,NEWAVE LTD,Childrens Services,1000.00,Agency Staff,2324P03_CR00133,101666
Sandwell Metropolitan Borough Council,http://www.sandwell.gov.uk/info/200202/performance_and_spending/1079/payments_over_500,01-Jun-2023,Childrens Services,NEWAVE LTD,Childrens Services,1106.78,Agency Staff,2324P03_CR00134,101666
Sandwell Metropolitan Borough Council,http://www.sandwell.gov.uk/info/200202/performance_and_spending/1079/payments_over_500,01-Jun-2023,Childrens Services,NEWAVE LTD,Childrens Services,1729.36,Agency Staff,2324P03_CR00135,101666
Sandwell Metropolitan Borough Council,http://www.sandwell.gov.uk/info/200202/performance_and_spending/1079/payments_over_500,01-Jun-2023,Childrens Services,NEWAVE LTD,Childrens Services,1750.00,Other Agency Payments,2324P03_CR00136,101666
Sandwell Metropolitan Borough Council,http://www.sandwell.gov.uk/info/200202/performance_and_spending/1079/payments_over_500,01-Jun-2023,Childrens Services,NEWAVE LTD,Childrens Services,2027.00,Agency Staff,2324P03_CR00137,101666
Sandwell Metropolitan Borough Council,http://www.sandwell.gov.uk/info/200202/performance_and_spending/1079/payments_over_500,01-Jun-2023,Childrens Services,NEWAVE LTD,Childrens Services,2106.37,Agency Staff,2324P03_CR00138,101666
Sandwell Metropolitan Borough Council,http://www.sandwell.gov.uk/info/200202/performance_and_spending/1079/payments_over_500,01-Jun-2023,Childrens Services,NEWAVE LTD,Childrens Services,2375.00,Agency Staff,2324P03_CR00139,101666
Sandwell Metropolitan Borough Council,http://www.sandwell.gov.uk/info/200202/performance_and_spending/1079/payments_over_500,01-Jun-2023,Childrens Services,NEWAVE LTD,Childrens Services,2456.00,Agency Staff,2324P03_CR00140,101666
Sandwell Metropolitan Borough Council,http://www.sandwell.gov.uk/info/200202/performance_and_spending/1079/payments_over_500,01-Jun-2023,Childrens Services,NEWAVE LTD,Childrens Services,2837.50,Agency Staff,2324P03_CR00141,101666
Sandwell Metropolitan Borough Council,http://www.sandwell.gov.uk/info/200202/performance_and_spending/1079/payments_over_500,01-Jun-2023,Childrens Services,NORTH SMETHWICK DEVELOPMENT TRUST,Childrens Services,525.00,Hire of Facilities,2324P03_CR00142,01346623
Sandwell Metropolitan Borough Council,http://www.sandwell.gov.uk/info/200202/performance_and_spending/1079/payments_over_500,05-Jun-2023,Childrens Services,ONE 4 YOU SERVICES LTD,Childrens Services,8515.87,Public Transport,2324P03_CR00143,81204
Sandwell Metropolitan Borough Council,http://www.sandwell.gov.uk/info/200202/performance_and_spending/1079/payments_over_500,05-Jun-2023,Childrens Services,ONE 4 YOU SERVICES LTD,Childrens Services,8515.87,Public Transport,2324P03_CR00144,81204
Sandwell Metropolitan Borough Council,http://www.sandwell.gov.uk/info/200202/performance_and_spending/1079/payments_over_500,05-Jun-2023,Childrens Services,ONE 4 YOU SERVICES LTD,Childrens Services,115696.08,Public Transport,2324P03_CR00145,81204
Sandwell Metropolitan Borough Council,http://www.sandwell.gov.uk/info/200202/performance_and_spending/1079/payments_over_500,05-Jun-2023,Childrens Services,ONE 4 YOU SERVICES LTD,Childrens Services,121224.93,Public Transport,2324P03_CR00146,81204
Sandwell Metropolitan Borough Council,http://www.sandwell.gov.uk/info/200202/performance_and_spending/1079/payments_over_500,01-Jun-2023,Childrens Services,PENNA PLC,Childrens Services,695.00,Advertising & Publicity,2324P03_CR00147,20829
Sandwell Metropolitan Borough Council,http://www.sandwell.gov.uk/info/200202/performance_and_spending/1079/payments_over_500,01-Jun-2023,Childrens Services,PENNA PLC,Childrens Services,5000.00,Advertising & Publicity,2324P03_CR00148,20829
Sandwell Metropolitan Borough Council,http://www.sandwell.gov.uk/info/200202/performance_and_spending/1079/payments_over_500,01-Jun-2023,Childrens Services,PENNA PLC,Childrens Services,5000.00,Advertising & Publicity,2324P03_CR00149,20829
Sandwell Metropolitan Borough Council,http://www.sandwell.gov.uk/info/200202/performance_and_spending/1079/payments_over_500,01-Jun-2023,Childrens Services,PENNA PLC,Childrens Services,5000.00,Advertising & Publicity,2324P03_CR00150,20829
Sandwell Metropolitan Borough Council,http://www.sandwell.gov.uk/info/200202/performance_and_spending/1079/payments_over_500,01-Jun-2023,Childrens Services,PLACES FOR PEOPLE LEISURE LIMITED,Childrens Services,672.00,Hire of Facilities,2324P03_CR00151,119069
Sandwell Metropolitan Borough Council,http://www.sandwell.gov.uk/info/200202/performance_and_spending/1079/payments_over_500,01-Jun-2023,Childrens Services,PROSPECTS SERVICES LIMITED,Childrens Services,4089.92,Grant Payments,2324P03_CR00152,01721288
Sandwell Metropolitan Borough Council,http://www.sandwell.gov.uk/info/200202/performance_and_spending/1079/payments_over_500,01-Jun-2023,Childrens Services,QUALITY EDUCATION SOLUTIONS LIMITED,Childrens Services,4542.56,ICT ,2324P03_CR00153,70602
Sandwell Metropolitan Borough Council,http://www.sandwell.gov.uk/info/200202/performance_and_spending/1079/payments_over_500,01-Jun-2023,Childrens Services,REGENT PUBLICITY (2020) LTD,Childrens Services,4297.50,Advertising & Publicity,2324P03_CR00154,01740568
Sandwell Metropolitan Borough Council,http://www.sandwell.gov.uk/info/200202/performance_and_spending/1079/payments_over_500,05-Jun-2023,Childrens Services,ROYALE TRAINING LTD,Childrens Services,1579.30,Externally Purchased Professional Services ,2324P03_CR00155,133604
Sandwell Metropolitan Borough Council,http://www.sandwell.gov.uk/info/200202/performance_and_spending/1079/payments_over_500,05-Jun-2023,Childrens Services,ROYALE TRAINING LTD,Childrens Services,1579.30,Externally Purchased Professional Services ,2324P03_CR00156,133604
Sandwell Metropolitan Borough Council,http://www.sandwell.gov.uk/info/200202/performance_and_spending/1079/payments_over_500,01-Jun-2023,Childrens Services,SANDWELL CHILDREN'S TRUST,Childrens Services,5705769.23,Other Establishments,2324P03_CR00157,133302
Sandwell Metropolitan Borough Council,http://www.sandwell.gov.uk/info/200202/performance_and_spending/1079/payments_over_500,01-Jun-2023,Childrens Services,SANDWELL CONSORTIUM CIC,Childrens Services,42077.35,Grants,2324P03_CR00158,104616
Sandwell Metropolitan Borough Council,http://www.sandwell.gov.uk/info/200202/performance_and_spending/1079/payments_over_500,01-Jun-2023,Childrens Services,SANDWELL CONSORTIUM CIC,Childrens Services,48552.47,Grants,2324P03_CR00159,104616
Sandwell Metropolitan Borough Council,http://www.sandwell.gov.uk/info/200202/performance_and_spending/1079/payments_over_500,01-Jun-2023,Childrens Services,SIPS EDUCATION LTD,Childrens Services,895.00,Contract Payments,2324P03_CR00160,110784
Sandwell Metropolitan Borough Council,http://www.sandwell.gov.uk/info/200202/performance_and_spending/1079/payments_over_500,01-Jun-2023,Childrens Services,SKILLS NETWORK LTD,Childrens Services,750.00,Externally Purchased Professional Services ,2324P03_CR00161,146052
Sandwell Metropolitan Borough Council,http://www.sandwell.gov.uk/info/200202/performance_and_spending/1079/payments_over_500,01-Jun-2023,Childrens Services,SKILLS WORK AND ENTERPRISE DEVELOPMENT AGENCY LTD,Childrens Services,615.00,Hire of Facilities,2324P03_CR00162,5092
Sandwell Metropolitan Borough Council,http://www.sandwell.gov.uk/info/200202/performance_and_spending/1079/payments_over_500,01-Jun-2023,Childrens Services,SSE ENERGY SUPPLY LIMITED,Childrens Services,4512.19,Electricity,2324P03_CR00163,116134
Sandwell Metropolitan Borough Council,http://www.sandwell.gov.uk/info/200202/performance_and_spending/1079/payments_over_500,01-Jun-2023,Childrens Services,THE LAUNDRY ROOM (BEWDLEY) LIMITED,Childrens Services,530.96,Laundry,2324P03_CR00164,127518
Sandwell Metropolitan Borough Council,http://www.sandwell.gov.uk/info/200202/performance_and_spending/1079/payments_over_500,01-Jun-2023,Childrens Services,THE OAK TREE CENTRE,Childrens Services,624.00,Hire of Facilities,2324P03_CR00165,140311
Sandwell Metropolitan Borough Council,http://www.sandwell.gov.uk/info/200202/performance_and_spending/1079/payments_over_500,01-Jun-2023,Childrens Services,THE PRIORY PRIMARY,Childrens Services,3039.29,Rents,2324P03_CR00166,01746051
Sandwell Metropolitan Borough Council,http://www.sandwell.gov.uk/info/200202/performance_and_spending/1079/payments_over_500,22-Jun-2023,Childrens Services,THOMAS CHARLES FACILITIES & MAINTENANCE LTD,Childrens Services,720.00,Contract Cleaning,2324P03_CR00167,114170
Sandwell Metropolitan Borough Council,http://www.sandwell.gov.uk/info/200202/performance_and_spending/1079/payments_over_500,22-Jun-2023,Childrens Services,TOTALENERGIES GAS & POWER LTD,Childrens Services,506.53,Gas,2324P03_CR00168,107605
Sandwell Metropolitan Borough Council,http://www.sandwell.gov.uk/info/200202/performance_and_spending/1079/payments_over_500,01-Jun-2023,Childrens Services,TOTALENERGIES GAS & POWER LTD,Childrens Services,543.77,Electricity,2324P03_CR00169,107605
Sandwell Metropolitan Borough Council,http://www.sandwell.gov.uk/info/200202/performance_and_spending/1079/payments_over_500,01-Jun-2023,Childrens Services,TOTALENERGIES GAS & POWER LTD,Childrens Services,578.70,Electricity,2324P03_CR00170,107605
Sandwell Metropolitan Borough Council,http://www.sandwell.gov.uk/info/200202/performance_and_spending/1079/payments_over_500,22-Jun-2023,Childrens Services,TOTALENERGIES GAS & POWER LTD,Childrens Services,579.75,Gas,2324P03_CR00171,107605
Sandwell Metropolitan Borough Council,http://www.sandwell.gov.uk/info/200202/performance_and_spending/1079/payments_over_500,01-Jun-2023,Childrens Services,TOTALENERGIES GAS & POWER LTD,Childrens Services,582.74,Electricity,2324P03_CR00172,107605
Sandwell Metropolitan Borough Council,http://www.sandwell.gov.uk/info/200202/performance_and_spending/1079/payments_over_500,01-Jun-2023,Childrens Services,TOTALENERGIES GAS & POWER LTD,Childrens Services,601.89,Electricity,2324P03_CR00173,107605
Sandwell Metropolitan Borough Council,http://www.sandwell.gov.uk/info/200202/performance_and_spending/1079/payments_over_500,01-Jun-2023,Childrens Services,TOTALENERGIES GAS & POWER LTD,Childrens Services,637.75,Electricity,2324P03_CR00174,107605
Sandwell Metropolitan Borough Council,http://www.sandwell.gov.uk/info/200202/performance_and_spending/1079/payments_over_500,01-Jun-2023,Childrens Services,TOTALENERGIES GAS & POWER LTD,Childrens Services,645.40,Electricity,2324P03_CR00175,107605
Sandwell Metropolitan Borough Council,http://www.sandwell.gov.uk/info/200202/performance_and_spending/1079/payments_over_500,01-Jun-2023,Childrens Services,TOTALENERGIES GAS & POWER LTD,Childrens Services,658.35,Gas,2324P03_CR00176,107605
Sandwell Metropolitan Borough Council,http://www.sandwell.gov.uk/info/200202/performance_and_spending/1079/payments_over_500,01-Jun-2023,Childrens Services,TOTALENERGIES GAS & POWER LTD,Childrens Services,825.42,Gas,2324P03_CR00177,107605
Sandwell Metropolitan Borough Council,http://www.sandwell.gov.uk/info/200202/performance_and_spending/1079/payments_over_500,01-Jun-2023,Childrens Services,TOTALENERGIES GAS & POWER LTD,Childrens Services,886.15,Gas,2324P03_CR00178,107605
Sandwell Metropolitan Borough Council,http://www.sandwell.gov.uk/info/200202/performance_and_spending/1079/payments_over_500,01-Jun-2023,Childrens Services,TOTALENERGIES GAS & POWER LTD,Childrens Services,893.51,Gas,2324P03_CR00179,107605
Sandwell Metropolitan Borough Council,http://www.sandwell.gov.uk/info/200202/performance_and_spending/1079/payments_over_500,01-Jun-2023,Childrens Services,TOTALENERGIES GAS & POWER LTD,Childrens Services,908.85,Gas,2324P03_CR00180,107605
Sandwell Metropolitan Borough Council,http://www.sandwell.gov.uk/info/200202/performance_and_spending/1079/payments_over_500,01-Jun-2023,Childrens Services,TOTALENERGIES GAS & POWER LTD,Childrens Services,972.71,Electricity,2324P03_CR00181,107605
Sandwell Metropolitan Borough Council,http://www.sandwell.gov.uk/info/200202/performance_and_spending/1079/payments_over_500,01-Jun-2023,Childrens Services,TOTALENERGIES GAS & POWER LTD,Childrens Services,1014.13,Electricity,2324P03_CR00182,107605
Sandwell Metropolitan Borough Council,http://www.sandwell.gov.uk/info/200202/performance_and_spending/1079/payments_over_500,10-Jun-2023,Childrens Services,TOTALENERGIES GAS & POWER LTD,Childrens Services,1133.85,Gas,2324P03_CR00183,107605
Sandwell Metropolitan Borough Council,http://www.sandwell.gov.uk/info/200202/performance_and_spending/1079/payments_over_500,12-Jun-2023,Childrens Services,TOTALENERGIES GAS & POWER LTD,Childrens Services,1345.64,Electricity,2324P03_CR00184,107605
Sandwell Metropolitan Borough Council,http://www.sandwell.gov.uk/info/200202/performance_and_spending/1079/payments_over_500,01-Jun-2023,Childrens Services,TOTALENERGIES GAS & POWER LTD,Childrens Services,1642.92,Electricity,2324P03_CR00185,107605
Sandwell Metropolitan Borough Council,http://www.sandwell.gov.uk/info/200202/performance_and_spending/1079/payments_over_500,01-Jun-2023,Childrens Services,TOTALENERGIES GAS & POWER LTD,Childrens Services,1851.65,Electricity,2324P03_CR00186,107605
Sandwell Metropolitan Borough Council,http://www.sandwell.gov.uk/info/200202/performance_and_spending/1079/payments_over_500,01-Jun-2023,Childrens Services,TOTALENERGIES GAS & POWER LTD,Childrens Services,1932.97,Gas,2324P03_CR00187,107605
Sandwell Metropolitan Borough Council,http://www.sandwell.gov.uk/info/200202/performance_and_spending/1079/payments_over_500,10-Jun-2023,Childrens Services,TOTALENERGIES GAS & POWER LTD,Childrens Services,2336.87,Electricity,2324P03_CR00188,107605
Sandwell Metropolitan Borough Council,http://www.sandwell.gov.uk/info/200202/performance_and_spending/1079/payments_over_500,01-Jun-2023,Childrens Services,TOTALENERGIES GAS & POWER LTD,Childrens Services,4103.28,Gas,2324P03_CR00189,107605
Sandwell Metropolitan Borough Council,http://www.sandwell.gov.uk/info/200202/performance_and_spending/1079/payments_over_500,04-Jun-2023,Childrens Services,TRH WALSALL LTD,Childrens Services,1166.76,Rents,2324P03_CR00190,85648
Sandwell Metropolitan Borough Council,http://www.sandwell.gov.uk/info/200202/performance_and_spending/1079/payments_over_500,06-Jun-2023,Childrens Services,TRH WALSALL LTD,Childrens Services,1166.76,Rents,2324P03_CR00191,85648
Sandwell Metropolitan Borough Council,http://www.sandwell.gov.uk/info/200202/performance_and_spending/1079/payments_over_500,01-Jun-2023,Childrens Services,VIBES N SHINE CIC,Childrens Services,990.00,Hire of Facilities,2324P03_CR00192,163633
Sandwell Metropolitan Borough Council,http://www.sandwell.gov.uk/info/200202/performance_and_spending/1079/payments_over_500,01-Jun-2023,Childrens Services,VICTORIA SCHOOL,Childrens Services,5000.00,Externally Purchased Professional Services ,2324P03_CR00193,119583
Sandwell Metropolitan Borough Council,http://www.sandwell.gov.uk/info/200202/performance_and_spending/1079/payments_over_500,01-Jun-2023,Childrens Services,W V HOWE LTD,Childrens Services,742.40,Catering Equipment,2324P03_CR00194,01052548
Sandwell Metropolitan Borough Council,http://www.sandwell.gov.uk/info/200202/performance_and_spending/1079/payments_over_500,01-Jun-2023,Childrens Services,WEST BROMWICH ALBION FC LTD,Childrens Services,1692.00,Hire of Facilities,2324P03_CR00195,01606624
Sandwell Metropolitan Borough Council,http://www.sandwell.gov.uk/info/200202/performance_and_spending/1079/payments_over_500,01-Jun-2023,Childrens Services,DANIELLE LYNCH,Childrens Services,880.00,Externally Purchased Professional Services ,2324P03_CR00196,165778
Sandwell Metropolitan Borough Council,http://www.sandwell.gov.uk/info/200202/performance_and_spending/1079/payments_over_500,01-Jun-2023,Childrens Services,SALLY FOWLER,Childrens Services,532.75,Agency Staff,2324P03_CR00197,165952
Sandwell Metropolitan Borough Council,http://www.sandwell.gov.uk/info/200202/performance_and_spending/1079/payments_over_500,08-Jun-2023,Childrens Services,ROB APPLEGATE,Childrens Services,580.00,Agency Staff,2324P03_CR00198,165884
Sandwell Metropolitan Borough Council,http://www.sandwell.gov.uk/info/200202/performance_and_spending/1079/payments_over_500,09-Jun-2023,Childrens Services,SALLY FOWLER,Childrens Services,507.50,Agency Staff,2324P03_CR00199,165952
Sandwell Metropolitan Borough Council,http://www.sandwell.gov.uk/info/200202/performance_and_spending/1079/payments_over_500,15-Jun-2023,Childrens Services,SALLY FOWLER,Childrens Services,507.50,Agency Staff,2324P03_CR00200,165952
Sandwell Metropolitan Borough Council,http://www.sandwell.gov.uk/info/200202/performance_and_spending/1079/payments_over_500,12-Jun-2023,Childrens Services,REDACTED PERSONAL DATA,Childrens Services,727.27,External Contract Hire,2324P03_CR00201,REDACTED PERSONAL DATA
Sandwell Metropolitan Borough Council,http://www.sandwell.gov.uk/info/200202/performance_and_spending/1079/payments_over_500,12-Jun-2023,Childrens Services,REDACTED PERSONAL DATA,Childrens Services,727.27,External Contract Hire,2324P03_CR00202,REDACTED PERSONAL DATA
Sandwell Metropolitan Borough Council,http://www.sandwell.gov.uk/info/200202/performance_and_spending/1079/payments_over_500,12-Jun-2023,Childrens Services,REDACTED PERSONAL DATA,Childrens Services,545.45,External Contract Hire,2324P03_CR00203,REDACTED PERSONAL DATA
Sandwell Metropolitan Borough Council,http://www.sandwell.gov.uk/info/200202/performance_and_spending/1079/payments_over_500,12-Jun-2023,Childrens Services,REDACTED PERSONAL DATA,Childrens Services,545.45,External Contract Hire,2324P03_CR00204,REDACTED PERSONAL DATA
Sandwell Metropolitan Borough Council,http://www.sandwell.gov.uk/info/200202/performance_and_spending/1079/payments_over_500,12-Jun-2023,Childrens Services,REDACTED PERSONAL DATA,Childrens Services,545.45,External Contract Hire,2324P03_CR00205,REDACTED PERSONAL DATA
Sandwell Metropolitan Borough Council,http://www.sandwell.gov.uk/info/200202/performance_and_spending/1079/payments_over_500,12-Jun-2023,Childrens Services,REDACTED PERSONAL DATA,Childrens Services,545.45,External Contract Hire,2324P03_CR00206,REDACTED PERSONAL DATA
Sandwell Metropolitan Borough Council,http://www.sandwell.gov.uk/info/200202/performance_and_spending/1079/payments_over_500,12-Jun-2023,Childrens Services,REDACTED PERSONAL DATA,Childrens Services,545.45,External Contract Hire,2324P03_CR00207,REDACTED PERSONAL DATA
Sandwell Metropolitan Borough Council,http://www.sandwell.gov.uk/info/200202/performance_and_spending/1079/payments_over_500,12-Jun-2023,Childrens Services,REDACTED PERSONAL DATA,Childrens Services,1090.90,External Contract Hire,2324P03_CR00208,REDACTED PERSONAL DATA
Sandwell Metropolitan Borough Council,http://www.sandwell.gov.uk/info/200202/performance_and_spending/1079/payments_over_500,12-Jun-2023,Childrens Services,REDACTED PERSONAL DATA,Childrens Services,545.45,External Contract Hire,2324P03_CR00209,REDACTED PERSONAL DATA
Sandwell Metropolitan Borough Council,http://www.sandwell.gov.uk/info/200202/performance_and_spending/1079/payments_over_500,12-Jun-2023,Childrens Services,REDACTED PERSONAL DATA,Childrens Services,545.45,External Contract Hire,2324P03_CR00210,REDACTED PERSONAL DATA
Sandwell Metropolitan Borough Council,http://www.sandwell.gov.uk/info/200202/performance_and_spending/1079/payments_over_500,12-Jun-2023,Childrens Services,REDACTED PERSONAL DATA,Childrens Services,545.45,External Contract Hire,2324P03_CR00211,REDACTED PERSONAL DATA
Sandwell Metropolitan Borough Council,http://www.sandwell.gov.uk/info/200202/performance_and_spending/1079/payments_over_500,12-Jun-2023,Childrens Services,REDACTED PERSONAL DATA,Childrens Services,909.09,External Contract Hire,2324P03_CR00212,REDACTED PERSONAL DATA
Sandwell Metropolitan Borough Council,http://www.sandwell.gov.uk/info/200202/performance_and_spending/1079/payments_over_500,12-Jun-2023,Childrens Services,REDACTED PERSONAL DATA,Childrens Services,545.45,External Contract Hire,2324P03_CR00213,REDACTED PERSONAL DATA
Sandwell Metropolitan Borough Council,http://www.sandwell.gov.uk/info/200202/performance_and_spending/1079/payments_over_500,12-Jun-2023,Childrens Services,REDACTED PERSONAL DATA,Childrens Services,545.45,External Contract Hire,2324P03_CR00214,REDACTED PERSONAL DATA
Sandwell Metropolitan Borough Council,http://www.sandwell.gov.uk/info/200202/performance_and_spending/1079/payments_over_500,12-Jun-2023,Childrens Services,REDACTED PERSONAL DATA,Childrens Services,800.00,External Contract Hire,2324P03_CR00215,REDACTED PERSONAL DATA
Sandwell Metropolitan Borough Council,http://www.sandwell.gov.uk/info/200202/performance_and_spending/1079/payments_over_500,12-Jun-2023,Childrens Services,REDACTED PERSONAL DATA,Childrens Services,545.45,External Contract Hire,2324P03_CR00216,REDACTED PERSONAL DATA
Sandwell Metropolitan Borough Council,http://www.sandwell.gov.uk/info/200202/performance_and_spending/1079/payments_over_500,12-Jun-2023,Childrens Services,REDACTED PERSONAL DATA,Childrens Services,727.28,External Contract Hire,2324P03_CR00217,REDACTED PERSONAL DATA
Sandwell Metropolitan Borough Council,http://www.sandwell.gov.uk/info/200202/performance_and_spending/1079/payments_over_500,12-Jun-2023,Childrens Services,REDACTED PERSONAL DATA,Childrens Services,727.27,External Contract Hire,2324P03_CR00218,REDACTED PERSONAL DATA
Sandwell Metropolitan Borough Council,http://www.sandwell.gov.uk/info/200202/performance_and_spending/1079/payments_over_500,12-Jun-2023,Childrens Services,REDACTED PERSONAL DATA,Childrens Services,545.45,External Contract Hire,2324P03_CR00219,REDACTED PERSONAL DATA
Sandwell Metropolitan Borough Council,http://www.sandwell.gov.uk/info/200202/performance_and_spending/1079/payments_over_500,12-Jun-2023,Childrens Services,REDACTED PERSONAL DATA,Childrens Services,545.45,External Contract Hire,2324P03_CR00220,REDACTED PERSONAL DATA
Sandwell Metropolitan Borough Council,http://www.sandwell.gov.uk/info/200202/performance_and_spending/1079/payments_over_500,12-Jun-2023,Childrens Services,REDACTED PERSONAL DATA,Childrens Services,545.45,External Contract Hire,2324P03_CR00221,REDACTED PERSONAL DATA
Sandwell Metropolitan Borough Council,http://www.sandwell.gov.uk/info/200202/performance_and_spending/1079/payments_over_500,12-Jun-2023,Childrens Services,REDACTED PERSONAL DATA,Childrens Services,727.27,External Contract Hire,2324P03_CR00222,REDACTED PERSONAL DATA
Sandwell Metropolitan Borough Council,http://www.sandwell.gov.uk/info/200202/performance_and_spending/1079/payments_over_500,12-Jun-2023,Childrens Services,REDACTED PERSONAL DATA,Childrens Services,727.27,External Contract Hire,2324P03_CR00223,REDACTED PERSONAL DATA
Sandwell Metropolitan Borough Council,http://www.sandwell.gov.uk/info/200202/performance_and_spending/1079/payments_over_500,12-Jun-2023,Childrens Services,REDACTED PERSONAL DATA,Childrens Services,727.27,External Contract Hire,2324P03_CR00224,REDACTED PERSONAL DATA
Sandwell Metropolitan Borough Council,http://www.sandwell.gov.uk/info/200202/performance_and_spending/1079/payments_over_500,12-Jun-2023,Childrens Services,REDACTED PERSONAL DATA,Childrens Services,545.45,External Contract Hire,2324P03_CR00225,REDACTED PERSONAL DATA
Sandwell Metropolitan Borough Council,http://www.sandwell.gov.uk/info/200202/performance_and_spending/1079/payments_over_500,12-Jun-2023,Childrens Services,REDACTED PERSONAL DATA,Childrens Services,545.45,External Contract Hire,2324P03_CR00226,REDACTED PERSONAL DATA
Sandwell Metropolitan Borough Council,http://www.sandwell.gov.uk/info/200202/performance_and_spending/1079/payments_over_500,12-Jun-2023,Childrens Services,REDACTED PERSONAL DATA,Childrens Services,727.27,External Contract Hire,2324P03_CR00227,REDACTED PERSONAL DATA
Sandwell Metropolitan Borough Council,http://www.sandwell.gov.uk/info/200202/performance_and_spending/1079/payments_over_500,12-Jun-2023,Childrens Services,REDACTED PERSONAL DATA,Childrens Services,545.45,External Contract Hire,2324P03_CR00228,REDACTED PERSONAL DATA
Sandwell Metropolitan Borough Council,http://www.sandwell.gov.uk/info/200202/performance_and_spending/1079/payments_over_500,12-Jun-2023,Childrens Services,REDACTED PERSONAL DATA,Childrens Services,545.45,External Contract Hire,2324P03_CR00229,REDACTED PERSONAL DATA
Sandwell Metropolitan Borough Council,http://www.sandwell.gov.uk/info/200202/performance_and_spending/1079/payments_over_500,12-Jun-2023,Childrens Services,REDACTED PERSONAL DATA,Childrens Services,727.27,External Contract Hire,2324P03_CR00230,REDACTED PERSONAL DATA
Sandwell Metropolitan Borough Council,http://www.sandwell.gov.uk/info/200202/performance_and_spending/1079/payments_over_500,12-Jun-2023,Childrens Services,REDACTED PERSONAL DATA,Childrens Services,545.45,External Contract Hire,2324P03_CR00231,REDACTED PERSONAL DATA
Sandwell Metropolitan Borough Council,http://www.sandwell.gov.uk/info/200202/performance_and_spending/1079/payments_over_500,12-Jun-2023,Childrens Services,REDACTED PERSONAL DATA,Childrens Services,727.27,External Contract Hire,2324P03_CR00232,REDACTED PERSONAL DATA
Sandwell Metropolitan Borough Council,http://www.sandwell.gov.uk/info/200202/performance_and_spending/1079/payments_over_500,28-Jun-2023,Childrens Services,4 COMMUNITY TRUST CIC,Childrens Services,22570.00,Grant Payments,2324P03_CR00233,137880
Sandwell Metropolitan Borough Council,http://www.sandwell.gov.uk/info/200202/performance_and_spending/1079/payments_over_500,28-Jun-2023,Childrens Services,4 COMMUNITY TRUST CIC,Childrens Services,32000.00,Grant Payments,2324P03_CR00234,137880
Sandwell Metropolitan Borough Council,http://www.sandwell.gov.uk/info/200202/performance_and_spending/1079/payments_over_500,28-Jun-2023,Childrens Services,4 COMMUNITY TRUST CIC,Childrens Services,71045.00,Grant Payments,2324P03_CR00235,137880
Sandwell Metropolitan Borough Council,http://www.sandwell.gov.uk/info/200202/performance_and_spending/1079/payments_over_500,28-Jun-2023,Childrens Services,ALL STARS WALSALL C.I.C.,Childrens Services,10000.00,Grant Payments,2324P03_CR00236,153410
Sandwell Metropolitan Borough Council,http://www.sandwell.gov.uk/info/200202/performance_and_spending/1079/payments_over_500,28-Jun-2023,Childrens Services,ASPIRE ACTIVE CAMPS LTD,Childrens Services,27544.00,Grant Payments,2324P03_CR00237,163410
Sandwell Metropolitan Borough Council,http://www.sandwell.gov.uk/info/200202/performance_and_spending/1079/payments_over_500,28-Jun-2023,Childrens Services,BANGLADESHI WOMEN'S ASSOCIATION LIMITED,Childrens Services,17574.00,Grant Payments,2324P03_CR00238,69648
Sandwell Metropolitan Borough Council,http://www.sandwell.gov.uk/info/200202/performance_and_spending/1079/payments_over_500,12-Jun-2023,Childrens Services,BEARWOOD COMMUNITY HUB,Childrens Services,15461.00,Grant Payments,2324P03_CR00239,152312
Sandwell Metropolitan Borough Council,http://www.sandwell.gov.uk/info/200202/performance_and_spending/1079/payments_over_500,28-Jun-2023,Childrens Services,BENSON COMMUNITY PROJECT,Childrens Services,18700.00,Grant Payments,2324P03_CR00240,125061
Sandwell Metropolitan Borough Council,http://www.sandwell.gov.uk/info/200202/performance_and_spending/1079/payments_over_500,28-Jun-2023,Childrens Services,CENTRE SPOT C.I.C,Childrens Services,19240.00,Grant Payments,2324P03_CR00241,98361
Sandwell Metropolitan Borough Council,http://www.sandwell.gov.uk/info/200202/performance_and_spending/1079/payments_over_500,28-Jun-2023,Childrens Services,CHRIST CHURCH C OF E PRIMARY SCHOOL,Childrens Services,14228.00,Grant Payments,2324P03_CR00242,1705
Sandwell Metropolitan Borough Council,http://www.sandwell.gov.uk/info/200202/performance_and_spending/1079/payments_over_500,22-Jun-2023,Childrens Services,COMMUNITY ACTION PROJECT,Childrens Services,16800.00,Grant Payments,2324P03_CR00243,01702622
Sandwell Metropolitan Borough Council,http://www.sandwell.gov.uk/info/200202/performance_and_spending/1079/payments_over_500,22-Jun-2023,Childrens Services,COMMUNITY CONNECT FOUNDATION,Childrens Services,14159.00,Grant Payments,2324P03_CR00244,01685391
Sandwell Metropolitan Borough Council,http://www.sandwell.gov.uk/info/200202/performance_and_spending/1079/payments_over_500,16-Jun-2023,Childrens Services,CREATIVE ACTIVE LIVES CIC,Childrens Services,26689.00,Grant Payments,2324P03_CR00245,138641
Sandwell Metropolitan Borough Council,http://www.sandwell.gov.uk/info/200202/performance_and_spending/1079/payments_over_500,28-Jun-2023,Childrens Services,DYNAMIC KIDS C.I.C,Childrens Services,22538.00,Grant Payments,2324P03_CR00246,165444
Sandwell Metropolitan Borough Council,http://www.sandwell.gov.uk/info/200202/performance_and_spending/1079/payments_over_500,30-Jun-2023,Childrens Services,ELP SPORTS LTD,Childrens Services,17510.00,Grant Payments,2324P03_CR00247,165615
Sandwell Metropolitan Borough Council,http://www.sandwell.gov.uk/info/200202/performance_and_spending/1079/payments_over_500,12-Jun-2023,Childrens Services,EMPOWERING PEOPLE IN CHANGE C.I.C,Childrens Services,8440.00,Grant Payments,2324P03_CR00248,165445
Sandwell Metropolitan Borough Council,http://www.sandwell.gov.uk/info/200202/performance_and_spending/1079/payments_over_500,28-Jun-2023,Childrens Services,EXCELR8 SCE C.I.C,Childrens Services,13946.00,Grant Payments,2324P03_CR00249,153112
Sandwell Metropolitan Borough Council,http://www.sandwell.gov.uk/info/200202/performance_and_spending/1079/payments_over_500,22-Jun-2023,Childrens Services,FANTASTIC JOURNEYS C.I.C,Childrens Services,965.00,Grant Payments,2324P03_CR00250,163596
Sandwell Metropolitan Borough Council,http://www.sandwell.gov.uk/info/200202/performance_and_spending/1079/payments_over_500,22-Jun-2023,Childrens Services,FRIAR PARK MILLENNIUM CENTRE,Childrens Services,28055.00,Grant Payments,2324P03_CR00251,28476
Sandwell Metropolitan Borough Council,http://www.sandwell.gov.uk/info/200202/performance_and_spending/1079/payments_over_500,28-Jun-2023,Childrens Services,G.A.P ENTERTAINMENT C.I.C,Childrens Services,28539.00,Grant Payments,2324P03_CR00252,153273
Sandwell Metropolitan Borough Council,http://www.sandwell.gov.uk/info/200202/performance_and_spending/1079/payments_over_500,28-Jun-2023,Childrens Services,GEORGE SALTER COLLEGIATE ACADEMY ORMISTON ACADEMIES TRUST,Childrens Services,27229.00,Grant Payments,2324P03_CR00253,01217798
Sandwell Metropolitan Borough Council,http://www.sandwell.gov.uk/info/200202/performance_and_spending/1079/payments_over_500,28-Jun-2023,Childrens Services,GROVE VALE PRIMARY SCHOOL,Childrens Services,12270.00,Grant Payments,2324P03_CR00254,60993
Sandwell Metropolitan Borough Council,http://www.sandwell.gov.uk/info/200202/performance_and_spending/1079/payments_over_500,28-Jun-2023,Childrens Services,HILL TOP COMMUNITY DEVELOPMENT ASSOCIATION,Childrens Services,4657.00,Grant Payments,2324P03_CR00255,97197
Sandwell Metropolitan Borough Council,http://www.sandwell.gov.uk/info/200202/performance_and_spending/1079/payments_over_500,28-Jun-2023,Childrens Services,HOLLY LODGE FOUNDATION HIGH SCHOOL,Childrens Services,66000.00,Grant Payments,2324P03_CR00256,60942
Sandwell Metropolitan Borough Council,http://www.sandwell.gov.uk/info/200202/performance_and_spending/1079/payments_over_500,28-Jun-2023,Childrens Services,IDEAL FOR ALL LIMITED,Childrens Services,15858.00,Grant Payments,2324P03_CR00257,01678484
Sandwell Metropolitan Borough Council,http://www.sandwell.gov.uk/info/200202/performance_and_spending/1079/payments_over_500,28-Jun-2023,Childrens Services,KIDS,Childrens Services,17244.00,Grant Payments,2324P03_CR00258,80825
Sandwell Metropolitan Borough Council,http://www.sandwell.gov.uk/info/200202/performance_and_spending/1079/payments_over_500,12-Jun-2023,Childrens Services,LIMITLESS FITNESS CENTRE C.I.C,Childrens Services,27840.00,Grant Payments,2324P03_CR00259,165489
Sandwell Metropolitan Borough Council,http://www.sandwell.gov.uk/info/200202/performance_and_spending/1079/payments_over_500,22-Jun-2023,Childrens Services,LION FARM ACTION CENTRE (SANDWELL) LTD,Childrens Services,13197.00,Grant Payments,2324P03_CR00260,21023409
Sandwell Metropolitan Borough Council,http://www.sandwell.gov.uk/info/200202/performance_and_spending/1079/payments_over_500,28-Jun-2023,Childrens Services,MALE FAMILY GROUP T/A WARRENS HALL FARM RIDING STABLES,Childrens Services,10344.00,Grant Payments,2324P03_CR00261,87755
Sandwell Metropolitan Borough Council,http://www.sandwell.gov.uk/info/200202/performance_and_spending/1079/payments_over_500,22-Jun-2023,Childrens Services,OLDBURY UNITED C.I.C,Childrens Services,27050.00,Grant Payments,2324P03_CR00262,153379
Sandwell Metropolitan Borough Council,http://www.sandwell.gov.uk/info/200202/performance_and_spending/1079/payments_over_500,22-Jun-2023,Childrens Services,P&E SPORTS REDDITCH LTD,Childrens Services,11008.00,Grant Payments,2324P03_CR00263,163643
Sandwell Metropolitan Borough Council,http://www.sandwell.gov.uk/info/200202/performance_and_spending/1079/payments_over_500,12-Jun-2023,Childrens Services,PILOT IMS LTD,Childrens Services,32200.00,Grant Payments,2324P03_CR00264,59674
Sandwell Metropolitan Borough Council,http://www.sandwell.gov.uk/info/200202/performance_and_spending/1079/payments_over_500,22-Jun-2023,Childrens Services,SANDWELL ASIAN DEVELOPMENT ASSOCIATION,Childrens Services,12800.00,Grant Payments,2324P03_CR00265,55737
Sandwell Metropolitan Borough Council,http://www.sandwell.gov.uk/info/200202/performance_and_spending/1079/payments_over_500,28-Jun-2023,Childrens Services,SMETHWICK YOUTH & COMMUNITY CENTRE LIMITED,Childrens Services,4320.00,Grant Payments,2324P03_CR00266,01731934
Sandwell Metropolitan Borough Council,http://www.sandwell.gov.uk/info/200202/performance_and_spending/1079/payments_over_500,28-Jun-2023,Childrens Services,SPORTING SPIRIT CIC,Childrens Services,28618.00,Grant Payments,2324P03_CR00267,130989
Sandwell Metropolitan Borough Council,http://www.sandwell.gov.uk/info/200202/performance_and_spending/1079/payments_over_500,22-Jun-2023,Childrens Services,SPORTS 4 LIFE UK,Childrens Services,7652.00,Grant Payments,2324P03_CR00268,153208
Sandwell Metropolitan Borough Council,http://www.sandwell.gov.uk/info/200202/performance_and_spending/1079/payments_over_500,12-Jun-2023,Childrens Services,SPORTS PLUS SCHEME LTD,Childrens Services,68850.00,Grant Payments,2324P03_CR00269,46504
Sandwell Metropolitan Borough Council,http://www.sandwell.gov.uk/info/200202/performance_and_spending/1079/payments_over_500,22-Jun-2023,Childrens Services,THE ABRAHAMIC FOUNDATION,Childrens Services,22400.00,Grant Payments,2324P03_CR00270,130572
Sandwell Metropolitan Borough Council,http://www.sandwell.gov.uk/info/200202/performance_and_spending/1079/payments_over_500,16-Jun-2023,Childrens Services,THE BRANCH,Childrens Services,46400.00,Grant Payments,2324P03_CR00271,08588514
Sandwell Metropolitan Borough Council,http://www.sandwell.gov.uk/info/200202/performance_and_spending/1079/payments_over_500,28-Jun-2023,Childrens Services,TIBBINGTON TENANTS & RESIDENTS ASSOCIATION,Childrens Services,16800.00,Grant Payments,2324P03_CR00272,89706
Sandwell Metropolitan Borough Council,http://www.sandwell.gov.uk/info/200202/performance_and_spending/1079/payments_over_500,12-Jun-2023,Childrens Services,TIME STEP DANCE,Childrens Services,15040.00,Grant Payments,2324P03_CR00273,141570
Sandwell Metropolitan Borough Council,http://www.sandwell.gov.uk/info/200202/performance_and_spending/1079/payments_over_500,28-Jun-2023,Childrens Services,VIBES N SHINE CIC,Childrens Services,10014.00,Grant Payments,2324P03_CR00274,163633
Sandwell Metropolitan Borough Council,http://www.sandwell.gov.uk/info/200202/performance_and_spending/1079/payments_over_500,28-Jun-2023,Childrens Services,WEST SMETHWICK ENTERPRISE AND STEPPING STONES PRE-SCHOOL,Childrens Services,5760.00,Grant Payments,2324P03_CR00275,01722169
Sandwell Metropolitan Borough Council,http://www.sandwell.gov.uk/info/200202/performance_and_spending/1079/payments_over_500,28-Jun-2023,Childrens Services,YEMENI COMMUNITY ASSOCIATION IN SANDWELL,Childrens Services,13618.00,Grant Payments,2324P03_CR00276,01711292
Sandwell Metropolitan Borough Council,http://www.sandwell.gov.uk/info/200202/performance_and_spending/1079/payments_over_500,22-Jun-2023,Childrens Services,YMCA BLACK COUNTRY GROUP,Childrens Services,14746.00,Grant Payments,2324P03_CR00277,109842
Sandwell Metropolitan Borough Council,http://www.sandwell.gov.uk/info/200202/performance_and_spending/1079/payments_over_500,01-Jun-2023,Childrens Services Capital,C R P INTERIORS LIMITED,Childrens Services Capital,2800.00,"CIP - New Construction,Conversion, Enhancement & Reno",2324P03_CR00278,2659
Sandwell Metropolitan Borough Council,http://www.sandwell.gov.uk/info/200202/performance_and_spending/1079/payments_over_500,01-Jun-2023,Childrens Services Capital,NRS HEALTHCARE,Childrens Services Capital,1979.16,"CIP - New Construction,Conversion, Enhancement & Reno",2324P03_CR00279,147506
Sandwell Metropolitan Borough Council,http://www.sandwell.gov.uk/info/200202/performance_and_spending/1079/payments_over_500,06-Jun-2023,Childrens Services Capital,SEDDON CONSTRUCTION LIMITED,Childrens Services Capital,90756.11,"CIP - New Construction,Conversion, Enhancement & Reno",2324P03_CR00280,132999
Sandwell Metropolitan Borough Council,http://www.sandwell.gov.uk/info/200202/performance_and_spending/1079/payments_over_500,21-Jun-2023,FINANCE (Inc SIU),BROWNE JACOBSON LLP,Assistant Chief Executive (Excl SIU),956.80,Externally Purchased Professional Services ,2324P03_CR00281,109574
Sandwell Metropolitan Borough Council,http://www.sandwell.gov.uk/info/200202/performance_and_spending/1079/payments_over_500,21-Jun-2023,FINANCE (Inc SIU),BROWNE JACOBSON LLP,Assistant Chief Executive (Excl SIU),1305.90,Externally Purchased Professional Services ,2324P03_CR00282,109574
Sandwell Metropolitan Borough Council,http://www.sandwell.gov.uk/info/200202/performance_and_spending/1079/payments_over_500,08-Jun-2023,FINANCE (Inc SIU),CLAIM TIME SOLICITORS,Assistant Chief Executive (Excl SIU),1080.00,Insurance,2324P03_CR00283,104143
Sandwell Metropolitan Borough Council,http://www.sandwell.gov.uk/info/200202/performance_and_spending/1079/payments_over_500,08-Jun-2023,FINANCE (Inc SIU),CLAIM TIME SOLICITORS,Assistant Chief Executive (Excl SIU),1425.00,Insurance,2324P03_CR00284,104143
Sandwell Metropolitan Borough Council,http://www.sandwell.gov.uk/info/200202/performance_and_spending/1079/payments_over_500,08-Jun-2023,FINANCE (Inc SIU),CLAIM TIME SOLICITORS,Assistant Chief Executive (Excl SIU),5000.00,Insurance,2324P03_CR00285,104143
Sandwell Metropolitan Borough Council,http://www.sandwell.gov.uk/info/200202/performance_and_spending/1079/payments_over_500,26-Jun-2023,FINANCE (Inc SIU),DWP,Assistant Chief Executive (Excl SIU),688.00,Insurance,2324P03_CR00286,01753867
Sandwell Metropolitan Borough Council,http://www.sandwell.gov.uk/info/200202/performance_and_spending/1079/payments_over_500,08-Jun-2023,FINANCE (Inc SIU),DWP,Assistant Chief Executive (Excl SIU),744.00,Insurance,2324P03_CR00287,01753867
Sandwell Metropolitan Borough Council,http://www.sandwell.gov.uk/info/200202/performance_and_spending/1079/payments_over_500,08-Jun-2023,FINANCE (Inc SIU),DWP,Assistant Chief Executive (Excl SIU),6682.50,Insurance,2324P03_CR00288,01753867
Sandwell Metropolitan Borough Council,http://www.sandwell.gov.uk/info/200202/performance_and_spending/1079/payments_over_500,13-Jun-2023,FINANCE (Inc SIU),GOWING LAW SOLICITORS,Assistant Chief Executive (Excl SIU),500.00,Insurance,2324P03_CR00289,163069
Sandwell Metropolitan Borough Council,http://www.sandwell.gov.uk/info/200202/performance_and_spending/1079/payments_over_500,19-Jun-2023,FINANCE (Inc SIU),GOWING LAW SOLICITORS,Assistant Chief Executive (Excl SIU),500.00,Insurance,2324P03_CR00290,163069
Sandwell Metropolitan Borough Council,http://www.sandwell.gov.uk/info/200202/performance_and_spending/1079/payments_over_500,19-Jun-2023,FINANCE (Inc SIU),GOWING LAW SOLICITORS,Assistant Chief Executive (Excl SIU),1000.00,Insurance,2324P03_CR00291,163069
Sandwell Metropolitan Borough Council,http://www.sandwell.gov.uk/info/200202/performance_and_spending/1079/payments_over_500,13-Jun-2023,FINANCE (Inc SIU),GOWING LAW SOLICITORS,Assistant Chief Executive (Excl SIU),1062.00,Insurance,2324P03_CR00292,163069
Sandwell Metropolitan Borough Council,http://www.sandwell.gov.uk/info/200202/performance_and_spending/1079/payments_over_500,19-Jun-2023,FINANCE (Inc SIU),GOWING LAW SOLICITORS,Assistant Chief Executive (Excl SIU),1500.00,Insurance,2324P03_CR00293,163069
Sandwell Metropolitan Borough Council,http://www.sandwell.gov.uk/info/200202/performance_and_spending/1079/payments_over_500,13-Jun-2023,FINANCE (Inc SIU),MCDERMOTT SMITH LAW CLIENT ACCOUNT,Assistant Chief Executive (Excl SIU),3000.00,Insurance,2324P03_CR00294,164526
Sandwell Metropolitan Borough Council,http://www.sandwell.gov.uk/info/200202/performance_and_spending/1079/payments_over_500,19-Jun-2023,FINANCE (Inc SIU),NORTHONE SOLICITORS,Assistant Chief Executive (Excl SIU),2500.00,Insurance,2324P03_CR00295,150690
Sandwell Metropolitan Borough Council,http://www.sandwell.gov.uk/info/200202/performance_and_spending/1079/payments_over_500,01-Jun-2023,FINANCE (Inc SIU),R3 POLYGON UK LTD,Assistant Chief Executive (Excl SIU),28650.49,Insurance,2324P03_CR00296,01770993
Sandwell Metropolitan Borough Council,http://www.sandwell.gov.uk/info/200202/performance_and_spending/1079/payments_over_500,13-Jun-2023,FINANCE (Inc SIU),REED & CO SOLICITORS,Assistant Chief Executive (Excl SIU),2000.00,Insurance,2324P03_CR00297,166280
Sandwell Metropolitan Borough Council,http://www.sandwell.gov.uk/info/200202/performance_and_spending/1079/payments_over_500,14-Jun-2023,FINANCE (Inc SIU),REED & CO SOLICITORS,Assistant Chief Executive (Excl SIU),4250.00,Insurance,2324P03_CR00298,166280
Sandwell Metropolitan Borough Council,http://www.sandwell.gov.uk/info/200202/performance_and_spending/1079/payments_over_500,05-Jun-2023,FINANCE (Inc SIU),ROBERT BINGHAM LTD,Assistant Chief Executive (Excl SIU),850.00,Insurance,2324P03_CR00299,164179
Sandwell Metropolitan Borough Council,http://www.sandwell.gov.uk/info/200202/performance_and_spending/1079/payments_over_500,05-Jun-2023,FINANCE (Inc SIU),ROBERT BINGHAM LTD,Assistant Chief Executive (Excl SIU),5000.00,Insurance,2324P03_CR00300,164179
Sandwell Metropolitan Borough Council,http://www.sandwell.gov.uk/info/200202/performance_and_spending/1079/payments_over_500,08-Jun-2023,FINANCE (Inc SIU),SATCHELL MORAN SOLICITORS,Assistant Chief Executive (Excl SIU),6500.00,Insurance,2324P03_CR00301,154265
Sandwell Metropolitan Borough Council,http://www.sandwell.gov.uk/info/200202/performance_and_spending/1079/payments_over_500,06-Jun-2023,FINANCE (Inc SIU),SEDGWICK INTERNATIONAL UK,Assistant Chief Executive (Excl SIU),1062.50,Externally Purchased Professional Services ,2324P03_CR00302,136510
Sandwell Metropolitan Borough Council,http://www.sandwell.gov.uk/info/200202/performance_and_spending/1079/payments_over_500,08-Jun-2023,FINANCE (Inc SIU),SYDNEY MITCHELL LLP.,Assistant Chief Executive (Excl SIU),39000.00,Insurance,2324P03_CR00303,100106
Sandwell Metropolitan Borough Council,http://www.sandwell.gov.uk/info/200202/performance_and_spending/1079/payments_over_500,15-Jun-2023,FINANCE (Inc SIU),SYMON HALL LAW LTD,Assistant Chief Executive (Excl SIU),2250.00,Insurance,2324P03_CR00304,165861
Sandwell Metropolitan Borough Council,http://www.sandwell.gov.uk/info/200202/performance_and_spending/1079/payments_over_500,14-Jun-2023,FINANCE (Inc SIU),SYMON HALL LAW LTD,Assistant Chief Executive (Excl SIU),7750.00,Insurance,2324P03_CR00305,165861
Sandwell Metropolitan Borough Council,http://www.sandwell.gov.uk/info/200202/performance_and_spending/1079/payments_over_500,19-Jun-2023,FINANCE (Inc SIU),VERITAS SOLICITORS,Assistant Chief Executive (Excl SIU),1500.00,Insurance,2324P03_CR00306,163336
Sandwell Metropolitan Borough Council,http://www.sandwell.gov.uk/info/200202/performance_and_spending/1079/payments_over_500,05-Jun-2023,FINANCE (Inc SIU),REDACTED PERSONAL DATA,Assistant Chief Executive (Excl SIU),750.00,Insurance,2324P03_CR00307,REDACTED PERSONAL DATA
Sandwell Metropolitan Borough Council,http://www.sandwell.gov.uk/info/200202/performance_and_spending/1079/payments_over_500,15-Jun-2023,FINANCE (Inc SIU),REDACTED PERSONAL DATA,Assistant Chief Executive (Excl SIU),5537.45,Insurance,2324P03_CR00308,REDACTED PERSONAL DATA
Sandwell Metropolitan Borough Council,http://www.sandwell.gov.uk/info/200202/performance_and_spending/1079/payments_over_500,13-Jun-2023,FINANCE (Inc SIU),REDACTED PERSONAL DATA,Assistant Chief Executive (Excl SIU),1950.00,Insurance,2324P03_CR00309,REDACTED PERSONAL DATA
Sandwell Metropolitan Borough Council,http://www.sandwell.gov.uk/info/200202/performance_and_spending/1079/payments_over_500,01-Jun-2023,FINANCE (Inc SIU),CAMMAX LTD,Assistant Chief Executive (Excl SIU),6340.00,Equipment & Furniture ,2324P03_CR00310,140126
Sandwell Metropolitan Borough Council,http://www.sandwell.gov.uk/info/200202/performance_and_spending/1079/payments_over_500,07-Jun-2023,FINANCE (Inc SIU),CIPFA BUSINESS LIMITED,Assistant Chief Executive (Excl SIU),18442.50,Subscriptions,2324P03_CR00311,01023717
Sandwell Metropolitan Borough Council,http://www.sandwell.gov.uk/info/200202/performance_and_spending/1079/payments_over_500,01-Jun-2023,FINANCE (Inc SIU),CIPFA C.CO,Assistant Chief Executive (Excl SIU),35000.00,Externally Purchased Professional Services ,2324P03_CR00312,134304
Sandwell Metropolitan Borough Council,http://www.sandwell.gov.uk/info/200202/performance_and_spending/1079/payments_over_500,01-Jun-2023,FINANCE (Inc SIU),CIVICA UK LTD,Assistant Chief Executive (Excl SIU),2000.00,Externally Purchased Professional Services ,2324P03_CR00313,26200
Sandwell Metropolitan Borough Council,http://www.sandwell.gov.uk/info/200202/performance_and_spending/1079/payments_over_500,01-Jun-2023,FINANCE (Inc SIU),CIVICA UK LTD,Assistant Chief Executive (Excl SIU),6050.00,Externally Purchased Professional Services ,2324P03_CR00314,26200
Sandwell Metropolitan Borough Council,http://www.sandwell.gov.uk/info/200202/performance_and_spending/1079/payments_over_500,01-Jun-2023,FINANCE (Inc SIU),CIVICA UK LTD,Assistant Chief Executive (Excl SIU),57750.00,Externally Purchased Professional Services ,2324P03_CR00315,26200
Sandwell Metropolitan Borough Council,http://www.sandwell.gov.uk/info/200202/performance_and_spending/1079/payments_over_500,01-Jun-2023,FINANCE (Inc SIU),DSI BILLING SERVICES LIMITED,Assistant Chief Executive (Excl SIU),2005.37,"Printing, Stationery & General Office Expenses",2324P03_CR00316,161962
Sandwell Metropolitan Borough Council,http://www.sandwell.gov.uk/info/200202/performance_and_spending/1079/payments_over_500,01-Jun-2023,FINANCE (Inc SIU),GREENHALGH KERR SOLICITORS LIMITED,Assistant Chief Executive (Excl SIU),4114.60,Externally Purchased Professional Services ,2324P03_CR00317,127273
Sandwell Metropolitan Borough Council,http://www.sandwell.gov.uk/info/200202/performance_and_spending/1079/payments_over_500,01-Jun-2023,FINANCE (Inc SIU),INFORM CPI LTD,Assistant Chief Executive (Excl SIU),700.00,Consultancy,2324P03_CR00318,123986
Sandwell Metropolitan Borough Council,http://www.sandwell.gov.uk/info/200202/performance_and_spending/1079/payments_over_500,01-Jun-2023,FINANCE (Inc SIU),INFORM CPI LTD,Assistant Chief Executive (Excl SIU),1100.00,Consultancy,2324P03_CR00319,123986
Sandwell Metropolitan Borough Council,http://www.sandwell.gov.uk/info/200202/performance_and_spending/1079/payments_over_500,01-Jun-2023,FINANCE (Inc SIU),INFORM CPI LTD,Assistant Chief Executive (Excl SIU),1800.00,Consultancy,2324P03_CR00320,123986
Sandwell Metropolitan Borough Council,http://www.sandwell.gov.uk/info/200202/performance_and_spending/1079/payments_over_500,01-Jun-2023,FINANCE (Inc SIU),INOAPPS LIMITED,Assistant Chief Executive (Excl SIU),7700.00,Externally Purchased Professional Services ,2324P03_CR00321,122364
Sandwell Metropolitan Borough Council,http://www.sandwell.gov.uk/info/200202/performance_and_spending/1079/payments_over_500,01-Jun-2023,FINANCE (Inc SIU),IN-TEND LIMITED,Assistant Chief Executive (Excl SIU),3665.18,Externally Purchased Professional Services ,2324P03_CR00322,114671
Sandwell Metropolitan Borough Council,http://www.sandwell.gov.uk/info/200202/performance_and_spending/1079/payments_over_500,01-Jun-2023,FINANCE (Inc SIU),LG FUTURES LIMITED,Assistant Chief Executive (Excl SIU),6380.00,Externally Purchased Professional Services ,2324P03_CR00323,102773
Sandwell Metropolitan Borough Council,http://www.sandwell.gov.uk/info/200202/performance_and_spending/1079/payments_over_500,06-Jun-2023,FINANCE (Inc SIU),LOCAL GOVERNMENT ASSOCIATION ,Assistant Chief Executive (Excl SIU),54944.27,Subscriptions,2324P03_CR00324,120965
Sandwell Metropolitan Borough Council,http://www.sandwell.gov.uk/info/200202/performance_and_spending/1079/payments_over_500,01-Jun-2023,FINANCE (Inc SIU),MAZARS LLP,Assistant Chief Executive (Excl SIU),40000.00,Externally Purchased Professional Services ,2324P03_CR00325,141441
Sandwell Metropolitan Borough Council,http://www.sandwell.gov.uk/info/200202/performance_and_spending/1079/payments_over_500,01-Jun-2023,FINANCE (Inc SIU),NEC SOFTWARE SOLUTIONS UK LTD,Assistant Chief Executive (Excl SIU),736.55,Private Contractors,2324P03_CR00326,56043
Sandwell Metropolitan Borough Council,http://www.sandwell.gov.uk/info/200202/performance_and_spending/1079/payments_over_500,01-Jun-2023,FINANCE (Inc SIU),NEC SOFTWARE SOLUTIONS UK LTD,Assistant Chief Executive (Excl SIU),3000.00,Private Contractors,2324P03_CR00327,56043
Sandwell Metropolitan Borough Council,http://www.sandwell.gov.uk/info/200202/performance_and_spending/1079/payments_over_500,01-Jun-2023,FINANCE (Inc SIU),NEC SOFTWARE SOLUTIONS UK LTD,Assistant Chief Executive (Excl SIU),11596.02,Private Contractors,2324P03_CR00328,56043
Sandwell Metropolitan Borough Council,http://www.sandwell.gov.uk/info/200202/performance_and_spending/1079/payments_over_500,01-Jun-2023,FINANCE (Inc SIU),ORACLE CORPORATION UK LTD,Assistant Chief Executive (Excl SIU),740.18,Externally Purchased Professional Services ,2324P03_CR00329,01539742
Sandwell Metropolitan Borough Council,http://www.sandwell.gov.uk/info/200202/performance_and_spending/1079/payments_over_500,01-Jun-2023,FINANCE (Inc SIU),ORACLE CORPORATION UK LTD,Assistant Chief Executive (Excl SIU),166574.05,Externally Purchased Professional Services ,2324P03_CR00330,01539742
Sandwell Metropolitan Borough Council,http://www.sandwell.gov.uk/info/200202/performance_and_spending/1079/payments_over_500,01-Jun-2023,FINANCE (Inc SIU),PENNA PLC,Assistant Chief Executive (Excl SIU),3996.00,Externally Purchased Professional Services ,2324P03_CR00331,20829
Sandwell Metropolitan Borough Council,http://www.sandwell.gov.uk/info/200202/performance_and_spending/1079/payments_over_500,01-Jun-2023,FINANCE (Inc SIU),PENNA PLC,Assistant Chief Executive (Excl SIU),3998.00,Externally Purchased Professional Services ,2324P03_CR00332,20829
Sandwell Metropolitan Borough Council,http://www.sandwell.gov.uk/info/200202/performance_and_spending/1079/payments_over_500,30-Jun-2023,FINANCE (Inc SIU),POST OFFICE LTD,Assistant Chief Executive (Excl SIU),1968300.00,Grant Payments,2324P03_CR00333,01663387
Sandwell Metropolitan Borough Council,http://www.sandwell.gov.uk/info/200202/performance_and_spending/1079/payments_over_500,01-Jun-2023,FINANCE (Inc SIU),PROVISION  HOUSE,Assistant Chief Executive (Excl SIU),17217.00,Equipment & Furniture ,2324P03_CR00334,71090
Sandwell Metropolitan Borough Council,http://www.sandwell.gov.uk/info/200202/performance_and_spending/1079/payments_over_500,01-Jun-2023,FINANCE (Inc SIU),PROVISION  HOUSE,Assistant Chief Executive (Excl SIU),18233.00,Equipment & Furniture ,2324P03_CR00335,71090
Sandwell Metropolitan Borough Council,http://www.sandwell.gov.uk/info/200202/performance_and_spending/1079/payments_over_500,01-Jun-2023,FINANCE (Inc SIU),SOCITM ADVISORY LTD,Assistant Chief Executive (Excl SIU),9833.33,Consultancy,2324P03_CR00336,162370
Sandwell Metropolitan Borough Council,http://www.sandwell.gov.uk/info/200202/performance_and_spending/1079/payments_over_500,01-Jun-2023,FINANCE (Inc SIU),SOCITM ADVISORY LTD,Assistant Chief Executive (Excl SIU),29996.43,Consultancy,2324P03_CR00337,162370
Sandwell Metropolitan Borough Council,http://www.sandwell.gov.uk/info/200202/performance_and_spending/1079/payments_over_500,01-Jun-2023,FINANCE (Inc SIU),SOCITM ADVISORY LTD,Assistant Chief Executive (Excl SIU),71410.71,Consultancy,2324P03_CR00338,162370
Sandwell Metropolitan Borough Council,http://www.sandwell.gov.uk/info/200202/performance_and_spending/1079/payments_over_500,06-Jun-2023,FINANCE (Inc SIU),ZURICH INSURANCE PLC,Assistant Chief Executive (Excl SIU),15000.00,Insurance,2324P03_CR00339,01749452
Sandwell Metropolitan Borough Council,http://www.sandwell.gov.uk/info/200202/performance_and_spending/1079/payments_over_500,01-Jun-2023,FINANCE (Inc SIU),RESTORE SCAN LIMITED,Total Adult Social Care,914.20,ICT ,2324P03_CR00340,13549
Sandwell Metropolitan Borough Council,http://www.sandwell.gov.uk/info/200202/performance_and_spending/1079/payments_over_500,01-Jun-2023,Housing & Assets Total,COOKE RUDLING LIMITED,Assistant Chief Executive (Excl SIU),2137.50,Externally Purchased Professional Services ,2324P03_CR00341,01577073
Sandwell Metropolitan Borough Council,http://www.sandwell.gov.uk/info/200202/performance_and_spending/1079/payments_over_500,01-Jun-2023,Housing & Assets Total,ADT FIRE & SECURITY PLC,Corporate Management,4191.05,Security,2324P03_CR00342,01115015
Sandwell Metropolitan Borough Council,http://www.sandwell.gov.uk/info/200202/performance_and_spending/1079/payments_over_500,01-Jun-2023,Housing & Assets Total,BRUSHSTROKES,Corporate Management,2420.00,Grant Payments,2324P03_CR00343,21029374
Sandwell Metropolitan Borough Council,http://www.sandwell.gov.uk/info/200202/performance_and_spending/1079/payments_over_500,01-Jun-2023,Housing & Assets Total,BRUSHSTROKES,Corporate Management,2500.00,Externally Purchased Professional Services ,2324P03_CR00344,21029374
Sandwell Metropolitan Borough Council,http://www.sandwell.gov.uk/info/200202/performance_and_spending/1079/payments_over_500,06-Jun-2023,Housing & Assets Total,BRUSHSTROKES,Corporate Management,3420.00,Grant Payments,2324P03_CR00345,21029374
Sandwell Metropolitan Borough Council,http://www.sandwell.gov.uk/info/200202/performance_and_spending/1079/payments_over_500,06-Jun-2023,Housing & Assets Total,BRUSHSTROKES,Corporate Management,3420.00,Grant Payments,2324P03_CR00346,21029374
Sandwell Metropolitan Borough Council,http://www.sandwell.gov.uk/info/200202/performance_and_spending/1079/payments_over_500,01-Jun-2023,Housing & Assets Total,BRUSHSTROKES,Corporate Management,3500.00,Externally Purchased Professional Services ,2324P03_CR00347,21029374
Sandwell Metropolitan Borough Council,http://www.sandwell.gov.uk/info/200202/performance_and_spending/1079/payments_over_500,06-Jun-2023,Housing & Assets Total,BRUSHSTROKES,Corporate Management,5844.00,Externally Purchased Professional Services ,2324P03_CR00348,21029374
Sandwell Metropolitan Borough Council,http://www.sandwell.gov.uk/info/200202/performance_and_spending/1079/payments_over_500,01-Jun-2023,Housing & Assets Total,BRUSHSTROKES,Corporate Management,6380.00,Externally Purchased Professional Services ,2324P03_CR00349,21029374
Sandwell Metropolitan Borough Council,http://www.sandwell.gov.uk/info/200202/performance_and_spending/1079/payments_over_500,01-Jun-2023,Housing & Assets Total,BRUSHSTROKES,Corporate Management,6500.00,Grant Payments,2324P03_CR00350,21029374
Sandwell Metropolitan Borough Council,http://www.sandwell.gov.uk/info/200202/performance_and_spending/1079/payments_over_500,01-Jun-2023,Housing & Assets Total,BRUSHSTROKES,Corporate Management,7875.82,Externally Purchased Professional Services ,2324P03_CR00351,21029374
Sandwell Metropolitan Borough Council,http://www.sandwell.gov.uk/info/200202/performance_and_spending/1079/payments_over_500,01-Jun-2023,Housing & Assets Total,BRUSHSTROKES,Corporate Management,28092.40,Externally Purchased Professional Services ,2324P03_CR00352,21029374
Sandwell Metropolitan Borough Council,http://www.sandwell.gov.uk/info/200202/performance_and_spending/1079/payments_over_500,01-Jun-2023,Housing & Assets Total,CITRON HYGIENE UK LTD,Corporate Management,1353.60,Hygiene Services,2324P03_CR00353,140849
Sandwell Metropolitan Borough Council,http://www.sandwell.gov.uk/info/200202/performance_and_spending/1079/payments_over_500,12-Jun-2023,Housing & Assets Total,CKP LTD T/A HAGLEY HOTEL,Corporate Management,1850.00,Rents,2324P03_CR00354,143677
Sandwell Metropolitan Borough Council,http://www.sandwell.gov.uk/info/200202/performance_and_spending/1079/payments_over_500,12-Jun-2023,Housing & Assets Total,CKP LTD T/A HAGLEY HOTEL,Corporate Management,2860.00,Rents,2324P03_CR00355,143677
Sandwell Metropolitan Borough Council,http://www.sandwell.gov.uk/info/200202/performance_and_spending/1079/payments_over_500,12-Jun-2023,Housing & Assets Total,CKP LTD T/A HAGLEY HOTEL,Corporate Management,4545.00,Rents,2324P03_CR00356,143677
Sandwell Metropolitan Borough Council,http://www.sandwell.gov.uk/info/200202/performance_and_spending/1079/payments_over_500,06-Jun-2023,Housing & Assets Total,CONTRACT LETTINGS LTD,Corporate Management,559.86,Rents,2324P03_CR00357,76625
Sandwell Metropolitan Borough Council,http://www.sandwell.gov.uk/info/200202/performance_and_spending/1079/payments_over_500,06-Jun-2023,Housing & Assets Total,CONTRACT LETTINGS LTD,Corporate Management,559.86,Rents,2324P03_CR00358,76625
Sandwell Metropolitan Borough Council,http://www.sandwell.gov.uk/info/200202/performance_and_spending/1079/payments_over_500,06-Jun-2023,Housing & Assets Total,CONTRACT LETTINGS LTD,Corporate Management,701.22,Rents,2324P03_CR00359,76625
Sandwell Metropolitan Borough Council,http://www.sandwell.gov.uk/info/200202/performance_and_spending/1079/payments_over_500,06-Jun-2023,Housing & Assets Total,CONTRACT LETTINGS LTD,Corporate Management,701.22,Rents,2324P03_CR00360,76625
Sandwell Metropolitan Borough Council,http://www.sandwell.gov.uk/info/200202/performance_and_spending/1079/payments_over_500,06-Jun-2023,Housing & Assets Total,CONTRACT LETTINGS LTD,Corporate Management,763.22,Rents,2324P03_CR00361,76625
Sandwell Metropolitan Borough Council,http://www.sandwell.gov.uk/info/200202/performance_and_spending/1079/payments_over_500,06-Jun-2023,Housing & Assets Total,CONTRACT LETTINGS LTD,Corporate Management,763.22,Rents,2324P03_CR00362,76625
Sandwell Metropolitan Borough Council,http://www.sandwell.gov.uk/info/200202/performance_and_spending/1079/payments_over_500,19-Jun-2023,Housing & Assets Total,"DEPT FOR LEVELLING UP, HOUSING & COMMUNITIES ",Corporate Management,6480.00,Grant Payments,2324P03_CR00363,120965
Sandwell Metropolitan Borough Council,http://www.sandwell.gov.uk/info/200202/performance_and_spending/1079/payments_over_500,19-Jun-2023,Housing & Assets Total,"DEPT FOR LEVELLING UP, HOUSING & COMMUNITIES ",Corporate Management,45150.00,Grant Payments,2324P03_CR00364,120965
Sandwell Metropolitan Borough Council,http://www.sandwell.gov.uk/info/200202/performance_and_spending/1079/payments_over_500,19-Jun-2023,Housing & Assets Total,GILANI ENTERPRISES LIMITED,Corporate Management,533.33,Rents,2324P03_CR00365,2696
Sandwell Metropolitan Borough Council,http://www.sandwell.gov.uk/info/200202/performance_and_spending/1079/payments_over_500,19-Jun-2023,Housing & Assets Total,GILANI ENTERPRISES LIMITED,Corporate Management,700.00,Rents,2324P03_CR00366,2696
Sandwell Metropolitan Borough Council,http://www.sandwell.gov.uk/info/200202/performance_and_spending/1079/payments_over_500,16-Jun-2023,Housing & Assets Total,GILANI ENTERPRISES LIMITED,Corporate Management,733.33,Rents,2324P03_CR00367,2696
Sandwell Metropolitan Borough Council,http://www.sandwell.gov.uk/info/200202/performance_and_spending/1079/payments_over_500,19-Jun-2023,Housing & Assets Total,GILANI ENTERPRISES LIMITED,Corporate Management,733.33,Rents,2324P03_CR00368,2696
Sandwell Metropolitan Borough Council,http://www.sandwell.gov.uk/info/200202/performance_and_spending/1079/payments_over_500,16-Jun-2023,Housing & Assets Total,GILANI ENTERPRISES LIMITED,Corporate Management,1000.00,Rents,2324P03_CR00369,2696
Sandwell Metropolitan Borough Council,http://www.sandwell.gov.uk/info/200202/performance_and_spending/1079/payments_over_500,16-Jun-2023,Housing & Assets Total,GILANI ENTERPRISES LIMITED,Corporate Management,1041.67,Rents,2324P03_CR00370,2696
Sandwell Metropolitan Borough Council,http://www.sandwell.gov.uk/info/200202/performance_and_spending/1079/payments_over_500,16-Jun-2023,Housing & Assets Total,GILANI ENTERPRISES LIMITED,Corporate Management,1133.33,Rents,2324P03_CR00371,2696
Sandwell Metropolitan Borough Council,http://www.sandwell.gov.uk/info/200202/performance_and_spending/1079/payments_over_500,16-Jun-2023,Housing & Assets Total,GILANI ENTERPRISES LIMITED,Corporate Management,1458.33,Rents,2324P03_CR00372,2696
Sandwell Metropolitan Borough Council,http://www.sandwell.gov.uk/info/200202/performance_and_spending/1079/payments_over_500,16-Jun-2023,Housing & Assets Total,GILANI ENTERPRISES LIMITED,Corporate Management,1733.33,Rents,2324P03_CR00373,2696
Sandwell Metropolitan Borough Council,http://www.sandwell.gov.uk/info/200202/performance_and_spending/1079/payments_over_500,19-Jun-2023,Housing & Assets Total,GILANI ENTERPRISES LIMITED,Corporate Management,2100.00,Rents,2324P03_CR00374,2696
Sandwell Metropolitan Borough Council,http://www.sandwell.gov.uk/info/200202/performance_and_spending/1079/payments_over_500,16-Jun-2023,Housing & Assets Total,GILANI ENTERPRISES LIMITED,Corporate Management,2200.00,Rents,2324P03_CR00375,2696
Sandwell Metropolitan Borough Council,http://www.sandwell.gov.uk/info/200202/performance_and_spending/1079/payments_over_500,16-Jun-2023,Housing & Assets Total,GILANI ENTERPRISES LIMITED,Corporate Management,2916.67,Rents,2324P03_CR00376,2696
Sandwell Metropolitan Borough Council,http://www.sandwell.gov.uk/info/200202/performance_and_spending/1079/payments_over_500,16-Jun-2023,Housing & Assets Total,GILANI ENTERPRISES LIMITED,Corporate Management,3433.33,Rents,2324P03_CR00377,2696
Sandwell Metropolitan Borough Council,http://www.sandwell.gov.uk/info/200202/performance_and_spending/1079/payments_over_500,16-Jun-2023,Housing & Assets Total,GILANI ENTERPRISES LIMITED,Corporate Management,3500.00,Rents,2324P03_CR00378,2696
Sandwell Metropolitan Borough Council,http://www.sandwell.gov.uk/info/200202/performance_and_spending/1079/payments_over_500,16-Jun-2023,Housing & Assets Total,GILANI ENTERPRISES LIMITED,Corporate Management,3500.00,Rents,2324P03_CR00379,2696
Sandwell Metropolitan Borough Council,http://www.sandwell.gov.uk/info/200202/performance_and_spending/1079/payments_over_500,19-Jun-2023,Housing & Assets Total,GILANI ENTERPRISES LIMITED,Corporate Management,4166.67,Rents,2324P03_CR00380,2696
Sandwell Metropolitan Borough Council,http://www.sandwell.gov.uk/info/200202/performance_and_spending/1079/payments_over_500,19-Jun-2023,Housing & Assets Total,GILANI ENTERPRISES LIMITED,Corporate Management,5833.33,Rents,2324P03_CR00381,2696
Sandwell Metropolitan Borough Council,http://www.sandwell.gov.uk/info/200202/performance_and_spending/1079/payments_over_500,07-Jun-2023,Housing & Assets Total,HICKS HADLEY LETTINGS,Corporate Management,1586.54,Tenants Expenses,2324P03_CR00382,92118
Sandwell Metropolitan Borough Council,http://www.sandwell.gov.uk/info/200202/performance_and_spending/1079/payments_over_500,01-Jun-2023,Housing & Assets Total,"HIGHFIELD HOUSE HOTEL,",Corporate Management,540.00,Rents,2324P03_CR00383,162756
Sandwell Metropolitan Borough Council,http://www.sandwell.gov.uk/info/200202/performance_and_spending/1079/payments_over_500,01-Jun-2023,Housing & Assets Total,"HIGHFIELD HOUSE HOTEL,",Corporate Management,660.00,Rents,2324P03_CR00384,162756
Sandwell Metropolitan Borough Council,http://www.sandwell.gov.uk/info/200202/performance_and_spending/1079/payments_over_500,01-Jun-2023,Housing & Assets Total,"HIGHFIELD HOUSE HOTEL,",Corporate Management,1240.00,Rents,2324P03_CR00385,162756
Sandwell Metropolitan Borough Council,http://www.sandwell.gov.uk/info/200202/performance_and_spending/1079/payments_over_500,01-Jun-2023,Housing & Assets Total,"HIGHFIELD HOUSE HOTEL,",Corporate Management,1860.00,Rents,2324P03_CR00386,162756
Sandwell Metropolitan Borough Council,http://www.sandwell.gov.uk/info/200202/performance_and_spending/1079/payments_over_500,01-Jun-2023,Housing & Assets Total,"HIGHFIELD HOUSE HOTEL,",Corporate Management,1860.00,Rents,2324P03_CR00387,162756
Sandwell Metropolitan Borough Council,http://www.sandwell.gov.uk/info/200202/performance_and_spending/1079/payments_over_500,01-Jun-2023,Housing & Assets Total,"HIGHFIELD HOUSE HOTEL,",Corporate Management,1860.00,Rents,2324P03_CR00388,162756
Sandwell Metropolitan Borough Council,http://www.sandwell.gov.uk/info/200202/performance_and_spending/1079/payments_over_500,01-Jun-2023,Housing & Assets Total,"HIGHFIELD HOUSE HOTEL,",Corporate Management,2325.00,Rents,2324P03_CR00389,162756
Sandwell Metropolitan Borough Council,http://www.sandwell.gov.uk/info/200202/performance_and_spending/1079/payments_over_500,01-Jun-2023,Housing & Assets Total,"HIGHFIELD HOUSE HOTEL,",Corporate Management,2945.00,Rents,2324P03_CR00390,162756
Sandwell Metropolitan Borough Council,http://www.sandwell.gov.uk/info/200202/performance_and_spending/1079/payments_over_500,01-Jun-2023,Housing & Assets Total,"HIGHFIELD HOUSE HOTEL,",Corporate Management,3045.00,Rents,2324P03_CR00391,162756
Sandwell Metropolitan Borough Council,http://www.sandwell.gov.uk/info/200202/performance_and_spending/1079/payments_over_500,01-Jun-2023,Housing & Assets Total,"HIGHFIELD HOUSE HOTEL,",Corporate Management,3720.00,Rents,2324P03_CR00392,162756
Sandwell Metropolitan Borough Council,http://www.sandwell.gov.uk/info/200202/performance_and_spending/1079/payments_over_500,02-Jun-2023,Housing & Assets Total,HOUSING PARTNERS LIMITED,Corporate Management,9995.00,Externally Purchased Professional Services ,2324P03_CR00393,78376
Sandwell Metropolitan Borough Council,http://www.sandwell.gov.uk/info/200202/performance_and_spending/1079/payments_over_500,02-Jun-2023,Housing & Assets Total,HOUSING PARTNERS LIMITED,Corporate Management,16304.82,Externally Purchased Professional Services ,2324P03_CR00394,78376
Sandwell Metropolitan Borough Council,http://www.sandwell.gov.uk/info/200202/performance_and_spending/1079/payments_over_500,01-Jun-2023,Housing & Assets Total,PROFILE SECURITY SERVICES LTD,Corporate Management,11657.69,Security,2324P03_CR00395,131253
Sandwell Metropolitan Borough Council,http://www.sandwell.gov.uk/info/200202/performance_and_spending/1079/payments_over_500,01-Jun-2023,Housing & Assets Total,PROFILE SECURITY SERVICES LTD,Corporate Management,11657.69,Security,2324P03_CR00396,131253
Sandwell Metropolitan Borough Council,http://www.sandwell.gov.uk/info/200202/performance_and_spending/1079/payments_over_500,01-Jun-2023,Housing & Assets Total,RIGHT TO CARE LTD.,Corporate Management,1178.57,Rents,2324P03_CR00397,133426
Sandwell Metropolitan Borough Council,http://www.sandwell.gov.uk/info/200202/performance_and_spending/1079/payments_over_500,01-Jun-2023,Housing & Assets Total,RIGHT TO CARE LTD.,Corporate Management,1217.86,Rents,2324P03_CR00398,133426
Sandwell Metropolitan Borough Council,http://www.sandwell.gov.uk/info/200202/performance_and_spending/1079/payments_over_500,01-Jun-2023,Housing & Assets Total,RIGHT TO CARE LTD.,Corporate Management,1264.29,Rents,2324P03_CR00399,133426
Sandwell Metropolitan Borough Council,http://www.sandwell.gov.uk/info/200202/performance_and_spending/1079/payments_over_500,01-Jun-2023,Housing & Assets Total,RIGHT TO CARE LTD.,Corporate Management,1306.43,Rents,2324P03_CR00400,133426
Sandwell Metropolitan Borough Council,http://www.sandwell.gov.uk/info/200202/performance_and_spending/1079/payments_over_500,01-Jun-2023,Housing & Assets Total,THE GIFT VOUCHER SHOP LIMITED,Corporate Management,735.00,Operational Services ,2324P03_CR00401,111545
Sandwell Metropolitan Borough Council,http://www.sandwell.gov.uk/info/200202/performance_and_spending/1079/payments_over_500,01-Jun-2023,Housing & Assets Total,TOTALENERGIES GAS & POWER LTD,Corporate Management,793.56,Electricity,2324P03_CR00402,107605
Sandwell Metropolitan Borough Council,http://www.sandwell.gov.uk/info/200202/performance_and_spending/1079/payments_over_500,01-Jun-2023,Housing & Assets Total,TOTALENERGIES GAS & POWER LTD,Corporate Management,946.30,Gas,2324P03_CR00403,107605
Sandwell Metropolitan Borough Council,http://www.sandwell.gov.uk/info/200202/performance_and_spending/1079/payments_over_500,01-Jun-2023,Housing & Assets Total,VICARAGE LODGE BIRMINGHAM,Corporate Management,560.00,Rents,2324P03_CR00404,111819
Sandwell Metropolitan Borough Council,http://www.sandwell.gov.uk/info/200202/performance_and_spending/1079/payments_over_500,01-Jun-2023,Housing & Assets Total,VICARAGE LODGE BIRMINGHAM,Corporate Management,560.00,Rents,2324P03_CR00405,111819
Sandwell Metropolitan Borough Council,http://www.sandwell.gov.uk/info/200202/performance_and_spending/1079/payments_over_500,01-Jun-2023,Housing & Assets Total,VICARAGE LODGE BIRMINGHAM,Corporate Management,560.00,Rents,2324P03_CR00406,111819
Sandwell Metropolitan Borough Council,http://www.sandwell.gov.uk/info/200202/performance_and_spending/1079/payments_over_500,01-Jun-2023,Housing & Assets Total,VICARAGE LODGE BIRMINGHAM,Corporate Management,560.00,Rents,2324P03_CR00407,111819
Sandwell Metropolitan Borough Council,http://www.sandwell.gov.uk/info/200202/performance_and_spending/1079/payments_over_500,01-Jun-2023,Housing & Assets Total,VICARAGE LODGE BIRMINGHAM,Corporate Management,560.00,Rents,2324P03_CR00408,111819
Sandwell Metropolitan Borough Council,http://www.sandwell.gov.uk/info/200202/performance_and_spending/1079/payments_over_500,01-Jun-2023,Housing & Assets Total,VICARAGE LODGE BIRMINGHAM,Corporate Management,700.00,Rents,2324P03_CR00409,111819
Sandwell Metropolitan Borough Council,http://www.sandwell.gov.uk/info/200202/performance_and_spending/1079/payments_over_500,01-Jun-2023,Housing & Assets Total,VICARAGE LODGE BIRMINGHAM,Corporate Management,700.00,Rents,2324P03_CR00410,111819
Sandwell Metropolitan Borough Council,http://www.sandwell.gov.uk/info/200202/performance_and_spending/1079/payments_over_500,01-Jun-2023,Housing & Assets Total,VICARAGE LODGE BIRMINGHAM,Corporate Management,700.00,Rents,2324P03_CR00411,111819
Sandwell Metropolitan Borough Council,http://www.sandwell.gov.uk/info/200202/performance_and_spending/1079/payments_over_500,01-Jun-2023,Housing & Assets Total,VICARAGE LODGE BIRMINGHAM,Corporate Management,700.00,Rents,2324P03_CR00412,111819
Sandwell Metropolitan Borough Council,http://www.sandwell.gov.uk/info/200202/performance_and_spending/1079/payments_over_500,01-Jun-2023,Housing & Assets Total,VICARAGE LODGE BIRMINGHAM,Corporate Management,700.00,Rents,2324P03_CR00413,111819
Sandwell Metropolitan Borough Council,http://www.sandwell.gov.uk/info/200202/performance_and_spending/1079/payments_over_500,01-Jun-2023,Housing & Assets Total,VICARAGE LODGE BIRMINGHAM,Corporate Management,13023.00,Rents,2324P03_CR00414,111819
Sandwell Metropolitan Borough Council,http://www.sandwell.gov.uk/info/200202/performance_and_spending/1079/payments_over_500,01-Jun-2023,Housing & Assets Total,BEECHWOOD TREES & LANDSCAPE LTD,Housing & Assets Total,3618.00,Externally Purchased Professional Services ,2324P03_CR00415,93287
Sandwell Metropolitan Borough Council,http://www.sandwell.gov.uk/info/200202/performance_and_spending/1079/payments_over_500,01-Jun-2023,Housing & Assets Total,EUROPEAN'S WELFARE ASSOCIATION CIC,Housing & Assets Total,1075.00,Grant Payments,2324P03_CR00416,123703
Sandwell Metropolitan Borough Council,http://www.sandwell.gov.uk/info/200202/performance_and_spending/1079/payments_over_500,16-Jun-2023,Housing & Assets Total,EUROPEAN'S WELFARE ASSOCIATION CIC,Housing & Assets Total,2034.35,Grant Payments,2324P03_CR00417,123703
Sandwell Metropolitan Borough Council,http://www.sandwell.gov.uk/info/200202/performance_and_spending/1079/payments_over_500,01-Jun-2023,Housing & Assets Total,EUROPEAN'S WELFARE ASSOCIATION CIC,Housing & Assets Total,2420.00,Grant Payments,2324P03_CR00418,123703
Sandwell Metropolitan Borough Council,http://www.sandwell.gov.uk/info/200202/performance_and_spending/1079/payments_over_500,01-Jun-2023,Housing & Assets Total,EUROPEAN'S WELFARE ASSOCIATION CIC,Housing & Assets Total,2420.00,Grant Payments,2324P03_CR00419,123703
Sandwell Metropolitan Borough Council,http://www.sandwell.gov.uk/info/200202/performance_and_spending/1079/payments_over_500,01-Jun-2023,Housing & Assets Total,EUROPEAN'S WELFARE ASSOCIATION CIC,Housing & Assets Total,6596.40,Grant Payments,2324P03_CR00420,123703
Sandwell Metropolitan Borough Council,http://www.sandwell.gov.uk/info/200202/performance_and_spending/1079/payments_over_500,01-Jun-2023,Housing & Assets Total,HOME FARM NURSERIES (PINVIN) LIMITED,Housing & Assets Total,1400.00,Equipment & Furniture ,2324P03_CR00421,77003445
Sandwell Metropolitan Borough Council,http://www.sandwell.gov.uk/info/200202/performance_and_spending/1079/payments_over_500,08-Jun-2023,Housing & Assets Total,MIDLAND FORESTRY LIMITED,Housing & Assets Total,502.40,Externally Purchased Professional Services ,2324P03_CR00422,45812
Sandwell Metropolitan Borough Council,http://www.sandwell.gov.uk/info/200202/performance_and_spending/1079/payments_over_500,01-Jun-2023,Housing & Assets Total,MIDLAND FORESTRY LIMITED,Housing & Assets Total,562.34,Externally Purchased Professional Services ,2324P03_CR00423,45812
Sandwell Metropolitan Borough Council,http://www.sandwell.gov.uk/info/200202/performance_and_spending/1079/payments_over_500,01-Jun-2023,Housing & Assets Total,MIDLAND FORESTRY LIMITED,Housing & Assets Total,588.49,Externally Purchased Professional Services ,2324P03_CR00424,45812
Sandwell Metropolitan Borough Council,http://www.sandwell.gov.uk/info/200202/performance_and_spending/1079/payments_over_500,13-Jun-2023,Housing & Assets Total,MIDLAND FORESTRY LIMITED,Housing & Assets Total,1078.89,Externally Purchased Professional Services ,2324P03_CR00425,45812
Sandwell Metropolitan Borough Council,http://www.sandwell.gov.uk/info/200202/performance_and_spending/1079/payments_over_500,01-Jun-2023,Housing & Assets Total,MIDLAND FORESTRY LIMITED,Housing & Assets Total,1525.70,Externally Purchased Professional Services ,2324P03_CR00426,45812
Sandwell Metropolitan Borough Council,http://www.sandwell.gov.uk/info/200202/performance_and_spending/1079/payments_over_500,01-Jun-2023,Housing & Assets Total,MIDLAND FORESTRY LIMITED,Housing & Assets Total,1600.00,Externally Purchased Professional Services ,2324P03_CR00427,45812
Sandwell Metropolitan Borough Council,http://www.sandwell.gov.uk/info/200202/performance_and_spending/1079/payments_over_500,13-Jun-2023,Housing & Assets Total,MIDLAND FORESTRY LIMITED,Housing & Assets Total,6240.00,Externally Purchased Professional Services ,2324P03_CR00428,45812
Sandwell Metropolitan Borough Council,http://www.sandwell.gov.uk/info/200202/performance_and_spending/1079/payments_over_500,01-Jun-2023,Housing & Assets Total,MY PARTY PACKAGE LTD,Housing & Assets Total,2255.00,Advertising & Publicity,2324P03_CR00429,166235
Sandwell Metropolitan Borough Council,http://www.sandwell.gov.uk/info/200202/performance_and_spending/1079/payments_over_500,01-Jun-2023,Housing & Assets Total,NEC SOFTWARE SOLUTIONS UK LTD,Total Adult Social Care,750.00,ICT ,2324P03_CR00430,56043
Sandwell Metropolitan Borough Council,http://www.sandwell.gov.uk/info/200202/performance_and_spending/1079/payments_over_500,01-Jun-2023,Housing & Assets Total,NEC SOFTWARE SOLUTIONS UK LTD,Total Adult Social Care,10220.00,ICT ,2324P03_CR00431,56043
Sandwell Metropolitan Borough Council,http://www.sandwell.gov.uk/info/200202/performance_and_spending/1079/payments_over_500,23-Jun-2023,Housing & Assets Total,REDACTED PERSONAL DATA,Corporate Management,962.79,Rents,2324P03_CR00432,REDACTED PERSONAL DATA
Sandwell Metropolitan Borough Council,http://www.sandwell.gov.uk/info/200202/performance_and_spending/1079/payments_over_500,02-Jun-2023,Housing & Assets Total,REDACTED PERSONAL DATA,Housing & Assets Total,500.00,Rents,2324P03_CR00433,REDACTED PERSONAL DATA
Sandwell Metropolitan Borough Council,http://www.sandwell.gov.uk/info/200202/performance_and_spending/1079/payments_over_500,02-Jun-2023,Housing & Assets Total,REDACTED PERSONAL DATA,Housing & Assets Total,500.00,Rents,2324P03_CR00434,REDACTED PERSONAL DATA
Sandwell Metropolitan Borough Council,http://www.sandwell.gov.uk/info/200202/performance_and_spending/1079/payments_over_500,02-Jun-2023,Housing & Assets Total,REDACTED PERSONAL DATA,Housing & Assets Total,500.00,Rents,2324P03_CR00435,REDACTED PERSONAL DATA
Sandwell Metropolitan Borough Council,http://www.sandwell.gov.uk/info/200202/performance_and_spending/1079/payments_over_500,02-Jun-2023,Housing & Assets Total,REDACTED PERSONAL DATA,Housing & Assets Total,500.00,Rents,2324P03_CR00436,REDACTED PERSONAL DATA
Sandwell Metropolitan Borough Council,http://www.sandwell.gov.uk/info/200202/performance_and_spending/1079/payments_over_500,27-Jun-2023,Housing & Assets Total,A PRASHER,Corporate Management,500.00,Rents,2324P03_CR00437,112229
Sandwell Metropolitan Borough Council,http://www.sandwell.gov.uk/info/200202/performance_and_spending/1079/payments_over_500,27-Jun-2023,Housing & Assets Total,BALIJIT KAUR,Corporate Management,500.00,Rents,2324P03_CR00438,101860
Sandwell Metropolitan Borough Council,http://www.sandwell.gov.uk/info/200202/performance_and_spending/1079/payments_over_500,27-Jun-2023,Housing & Assets Total,BALWANT SINGH,Corporate Management,500.00,Rents,2324P03_CR00439,84433
Sandwell Metropolitan Borough Council,http://www.sandwell.gov.uk/info/200202/performance_and_spending/1079/payments_over_500,27-Jun-2023,Housing & Assets Total,ELEANOR MCGEE,Corporate Management,550.00,Rents,2324P03_CR00440,109162
Sandwell Metropolitan Borough Council,http://www.sandwell.gov.uk/info/200202/performance_and_spending/1079/payments_over_500,27-Jun-2023,Housing & Assets Total,NARINDER SINGH ,Corporate Management,500.00,Rents,2324P03_CR00441,114091
Sandwell Metropolitan Borough Council,http://www.sandwell.gov.uk/info/200202/performance_and_spending/1079/payments_over_500,21-Jun-2023,Housing & Communities,LISTER WILDER LTD,Housing & Communities,24862.00,"CIP - Vehicles, Plant & Machinery",2324P03_CR00442,145897
Sandwell Metropolitan Borough Council,http://www.sandwell.gov.uk/info/200202/performance_and_spending/1079/payments_over_500,12-Jun-2023,Housing & Communities,P CASEY LTD,Housing & Communities,140331.74,"CIP - New Construction,Conversion, Enhancement & Reno",2324P03_CR00443,149276
Sandwell Metropolitan Borough Council,http://www.sandwell.gov.uk/info/200202/performance_and_spending/1079/payments_over_500,12-Jun-2023,Housing & Communities,WATES CONSTRUCTION LTD,Housing & Communities,149577.59,"CIP - New Construction,Conversion, Enhancement & Reno",2324P03_CR00444,77000882
Sandwell Metropolitan Borough Council,http://www.sandwell.gov.uk/info/200202/performance_and_spending/1079/payments_over_500,01-Jun-2023,Housing Revenue Account Capital,AXIS EUROPE PLC ,Housing Revenue Account Capital,3223.24,Deferred Charges/Grant Payments,2324P03_CR00445,64946
Sandwell Metropolitan Borough Council,http://www.sandwell.gov.uk/info/200202/performance_and_spending/1079/payments_over_500,16-Jun-2023,Housing Revenue Account Capital,AXIS EUROPE PLC ,Housing Revenue Account Capital,23941.74,Deferred Charges/Grant Payments,2324P03_CR00446,64946
Sandwell Metropolitan Borough Council,http://www.sandwell.gov.uk/info/200202/performance_and_spending/1079/payments_over_500,01-Jun-2023,Housing Revenue Account Capital,CDC TECHNICAL SERVICES LTD,Housing Revenue Account Capital,2885.00,"CIP - New Construction,Conversion, Enhancement & Reno",2324P03_CR00447,101080
Sandwell Metropolitan Borough Council,http://www.sandwell.gov.uk/info/200202/performance_and_spending/1079/payments_over_500,01-Jun-2023,Housing Revenue Account Capital,DOLPHIN LIFTS MIDLANDS LTD,Housing Revenue Account Capital,4447.83,Deferred Charges/Grant Payments,2324P03_CR00448,123852
Sandwell Metropolitan Borough Council,http://www.sandwell.gov.uk/info/200202/performance_and_spending/1079/payments_over_500,16-Jun-2023,Housing Revenue Account Capital,DOLPHIN LIFTS MIDLANDS LTD,Housing Revenue Account Capital,6611.66,Deferred Charges/Grant Payments,2324P03_CR00449,123852
Sandwell Metropolitan Borough Council,http://www.sandwell.gov.uk/info/200202/performance_and_spending/1079/payments_over_500,01-Jun-2023,Housing Revenue Account Capital,DOLPHIN LIFTS MIDLANDS LTD,Housing Revenue Account Capital,7441.02,Deferred Charges/Grant Payments,2324P03_CR00450,123852
Sandwell Metropolitan Borough Council,http://www.sandwell.gov.uk/info/200202/performance_and_spending/1079/payments_over_500,19-Jun-2023,Housing Revenue Account Capital,J.HARPER & SONS (LEOMINSTER) LIMITED,Housing Revenue Account Capital,141944.62,"CIP - New Construction,Conversion, Enhancement & Reno",2324P03_CR00451,111814
Sandwell Metropolitan Borough Council,http://www.sandwell.gov.uk/info/200202/performance_and_spending/1079/payments_over_500,06-Jun-2023,Housing Revenue Account Capital,LOVELL PARTNERSHIPS  LTD,Housing Revenue Account Capital,309078.94,"CIP - New Construction,Conversion, Enhancement & Reno",2324P03_CR00452,77007398
Sandwell Metropolitan Borough Council,http://www.sandwell.gov.uk/info/200202/performance_and_spending/1079/payments_over_500,01-Jun-2023,Housing Revenue Account Capital,LOVELL PARTNERSHIPS  LTD,Housing Revenue Account Capital,565109.29,"CIP - New Construction,Conversion, Enhancement & Reno",2324P03_CR00453,77007398
Sandwell Metropolitan Borough Council,http://www.sandwell.gov.uk/info/200202/performance_and_spending/1079/payments_over_500,01-Jun-2023,Housing Revenue Account Capital,NATIONWIDE WINDOWS LIMITED,Housing Revenue Account Capital,175239.54,"CIP - New Construction,Conversion, Enhancement & Reno",2324P03_CR00454,108316
Sandwell Metropolitan Borough Council,http://www.sandwell.gov.uk/info/200202/performance_and_spending/1079/payments_over_500,01-Jun-2023,Housing Revenue Account Capital,OPENVIEW SECURITY SOLUTIONS LIMITED,Housing Revenue Account Capital,155234.06,"CIP - New Construction,Conversion, Enhancement & Reno",2324P03_CR00455,77000151
Sandwell Metropolitan Borough Council,http://www.sandwell.gov.uk/info/200202/performance_and_spending/1079/payments_over_500,01-Jun-2023,Housing Revenue Account Capital,PARCOR LTD,Housing Revenue Account Capital,4850.00,"CIP - New Construction,Conversion, Enhancement & Reno",2324P03_CR00456,163117
Sandwell Metropolitan Borough Council,http://www.sandwell.gov.uk/info/200202/performance_and_spending/1079/payments_over_500,01-Jun-2023,Housing Revenue Account Capital,PARCOR LTD,Housing Revenue Account Capital,6062.50,"CIP - New Construction,Conversion, Enhancement & Reno",2324P03_CR00457,163117
Sandwell Metropolitan Borough Council,http://www.sandwell.gov.uk/info/200202/performance_and_spending/1079/payments_over_500,01-Jun-2023,Housing Revenue Account Capital,PHOENIX GAS SERVICES LIMITED,Housing Revenue Account Capital,5979.10,Contract Payments,2324P03_CR00458,126729
Sandwell Metropolitan Borough Council,http://www.sandwell.gov.uk/info/200202/performance_and_spending/1079/payments_over_500,01-Jun-2023,Housing Revenue Account Capital,PHOENIX GAS SERVICES LIMITED,Housing Revenue Account Capital,6242.66,Contract Payments,2324P03_CR00459,126729
Sandwell Metropolitan Borough Council,http://www.sandwell.gov.uk/info/200202/performance_and_spending/1079/payments_over_500,01-Jun-2023,Housing Revenue Account Capital,PHOENIX GAS SERVICES LIMITED,Housing Revenue Account Capital,7261.29,Contract Payments,2324P03_CR00460,126729
Sandwell Metropolitan Borough Council,http://www.sandwell.gov.uk/info/200202/performance_and_spending/1079/payments_over_500,01-Jun-2023,Housing Revenue Account Capital,PHOENIX GAS SERVICES LIMITED,Housing Revenue Account Capital,8130.80,Contract Payments,2324P03_CR00461,126729
Sandwell Metropolitan Borough Council,http://www.sandwell.gov.uk/info/200202/performance_and_spending/1079/payments_over_500,01-Jun-2023,Housing Revenue Account Capital,PHOENIX GAS SERVICES LIMITED,Housing Revenue Account Capital,10331.78,Contract Payments,2324P03_CR00462,126729
Sandwell Metropolitan Borough Council,http://www.sandwell.gov.uk/info/200202/performance_and_spending/1079/payments_over_500,10-Jun-2023,Housing Revenue Account Capital,POWRED HEATING COMPONENTS LIMITED,Housing Revenue Account Capital,921.05,Materials & Consumables,2324P03_CR00463,133978
Sandwell Metropolitan Borough Council,http://www.sandwell.gov.uk/info/200202/performance_and_spending/1079/payments_over_500,17-Jun-2023,Housing Revenue Account Capital,POWRED HEATING COMPONENTS LIMITED,Housing Revenue Account Capital,1896.21,Materials & Consumables,2324P03_CR00464,133978
Sandwell Metropolitan Borough Council,http://www.sandwell.gov.uk/info/200202/performance_and_spending/1079/payments_over_500,01-Jun-2023,Housing Revenue Account Capital,PR PROPERTY MAINTENANCE,Housing Revenue Account Capital,8717.35,Deferred Charges/Grant Payments,2324P03_CR00465,33836
Sandwell Metropolitan Borough Council,http://www.sandwell.gov.uk/info/200202/performance_and_spending/1079/payments_over_500,01-Jun-2023,Housing Revenue Account Capital,PR PROPERTY MAINTENANCE,Housing Revenue Account Capital,19286.70,Deferred Charges/Grant Payments,2324P03_CR00466,33836
Sandwell Metropolitan Borough Council,http://www.sandwell.gov.uk/info/200202/performance_and_spending/1079/payments_over_500,01-Jun-2023,Housing Revenue Account Capital,RIDGE & PARTNERS LLP,Housing Revenue Account Capital,1040.00,CIP - Acquisition of Land & Existing Buildings,2324P03_CR00467,134994
Sandwell Metropolitan Borough Council,http://www.sandwell.gov.uk/info/200202/performance_and_spending/1079/payments_over_500,01-Jun-2023,Housing Revenue Account Capital,RIDGE & PARTNERS LLP,Housing Revenue Account Capital,2080.00,Consultancy,2324P03_CR00468,134994
Sandwell Metropolitan Borough Council,http://www.sandwell.gov.uk/info/200202/performance_and_spending/1079/payments_over_500,01-Jun-2023,Housing Revenue Account Capital,RIDGE & PARTNERS LLP,Housing Revenue Account Capital,2251.67,Consultancy,2324P03_CR00469,134994
Sandwell Metropolitan Borough Council,http://www.sandwell.gov.uk/info/200202/performance_and_spending/1079/payments_over_500,23-Jun-2023,Housing Revenue Account Capital,RIDGE & PARTNERS LLP,Housing Revenue Account Capital,2251.67,Consultancy,2324P03_CR00470,134994
Sandwell Metropolitan Borough Council,http://www.sandwell.gov.uk/info/200202/performance_and_spending/1079/payments_over_500,01-Jun-2023,Housing Revenue Account Capital,RIDGE & PARTNERS LLP,Housing Revenue Account Capital,2970.00,Consultancy,2324P03_CR00471,134994
Sandwell Metropolitan Borough Council,http://www.sandwell.gov.uk/info/200202/performance_and_spending/1079/payments_over_500,12-Jun-2023,Housing Revenue Account Capital,SEDDON CONSTRUCTION LIMITED,Housing Revenue Account Capital,81306.21,"CIP - New Construction,Conversion, Enhancement & Reno",2324P03_CR00472,132999
Sandwell Metropolitan Borough Council,http://www.sandwell.gov.uk/info/200202/performance_and_spending/1079/payments_over_500,15-Jun-2023,Housing Revenue Account Capital,SEDDON CONSTRUCTION LIMITED,Housing Revenue Account Capital,118270.47,"CIP - New Construction,Conversion, Enhancement & Reno",2324P03_CR00473,132999
Sandwell Metropolitan Borough Council,http://www.sandwell.gov.uk/info/200202/performance_and_spending/1079/payments_over_500,12-Jun-2023,Housing Revenue Account Capital,SEDDON CONSTRUCTION LIMITED,Housing Revenue Account Capital,617491.42,"CIP - New Construction,Conversion, Enhancement & Reno",2324P03_CR00474,132999
Sandwell Metropolitan Borough Council,http://www.sandwell.gov.uk/info/200202/performance_and_spending/1079/payments_over_500,01-Jun-2023,Housing Revenue Account Capital,SELECT WINDOWS (HOME IMPROVEMENTS) LIMITED,Housing Revenue Account Capital,502.59,Contract Payments,2324P03_CR00475,42616
Sandwell Metropolitan Borough Council,http://www.sandwell.gov.uk/info/200202/performance_and_spending/1079/payments_over_500,01-Jun-2023,Housing Revenue Account Capital,SELECT WINDOWS (HOME IMPROVEMENTS) LIMITED,Housing Revenue Account Capital,504.69,Contract Payments,2324P03_CR00476,42616
Sandwell Metropolitan Borough Council,http://www.sandwell.gov.uk/info/200202/performance_and_spending/1079/payments_over_500,01-Jun-2023,Housing Revenue Account Capital,SELECT WINDOWS (HOME IMPROVEMENTS) LIMITED,Housing Revenue Account Capital,504.69,Contract Payments,2324P03_CR00477,42616
Sandwell Metropolitan Borough Council,http://www.sandwell.gov.uk/info/200202/performance_and_spending/1079/payments_over_500,01-Jun-2023,Housing Revenue Account Capital,SELECT WINDOWS (HOME IMPROVEMENTS) LIMITED,Housing Revenue Account Capital,504.69,Contract Payments,2324P03_CR00478,42616
Sandwell Metropolitan Borough Council,http://www.sandwell.gov.uk/info/200202/performance_and_spending/1079/payments_over_500,01-Jun-2023,Housing Revenue Account Capital,SELECT WINDOWS (HOME IMPROVEMENTS) LIMITED,Housing Revenue Account Capital,504.69,Contract Payments,2324P03_CR00479,42616
Sandwell Metropolitan Borough Council,http://www.sandwell.gov.uk/info/200202/performance_and_spending/1079/payments_over_500,01-Jun-2023,Housing Revenue Account Capital,SELECT WINDOWS (HOME IMPROVEMENTS) LIMITED,Housing Revenue Account Capital,504.69,Contract Payments,2324P03_CR00480,42616
Sandwell Metropolitan Borough Council,http://www.sandwell.gov.uk/info/200202/performance_and_spending/1079/payments_over_500,01-Jun-2023,Housing Revenue Account Capital,SELECT WINDOWS (HOME IMPROVEMENTS) LIMITED,Housing Revenue Account Capital,504.69,Contract Payments,2324P03_CR00481,42616
Sandwell Metropolitan Borough Council,http://www.sandwell.gov.uk/info/200202/performance_and_spending/1079/payments_over_500,01-Jun-2023,Housing Revenue Account Capital,SELECT WINDOWS (HOME IMPROVEMENTS) LIMITED,Housing Revenue Account Capital,504.69,Contract Payments,2324P03_CR00482,42616
Sandwell Metropolitan Borough Council,http://www.sandwell.gov.uk/info/200202/performance_and_spending/1079/payments_over_500,06-Jun-2023,Housing Revenue Account Capital,SELECT WINDOWS (HOME IMPROVEMENTS) LIMITED,Housing Revenue Account Capital,504.69,Contract Payments,2324P03_CR00483,42616
Sandwell Metropolitan Borough Council,http://www.sandwell.gov.uk/info/200202/performance_and_spending/1079/payments_over_500,06-Jun-2023,Housing Revenue Account Capital,SELECT WINDOWS (HOME IMPROVEMENTS) LIMITED,Housing Revenue Account Capital,504.69,Contract Payments,2324P03_CR00484,42616
Sandwell Metropolitan Borough Council,http://www.sandwell.gov.uk/info/200202/performance_and_spending/1079/payments_over_500,06-Jun-2023,Housing Revenue Account Capital,SELECT WINDOWS (HOME IMPROVEMENTS) LIMITED,Housing Revenue Account Capital,504.69,Contract Payments,2324P03_CR00485,42616
Sandwell Metropolitan Borough Council,http://www.sandwell.gov.uk/info/200202/performance_and_spending/1079/payments_over_500,01-Jun-2023,Housing Revenue Account Capital,SELECT WINDOWS (HOME IMPROVEMENTS) LIMITED,Housing Revenue Account Capital,513.10,Contract Payments,2324P03_CR00486,42616
Sandwell Metropolitan Borough Council,http://www.sandwell.gov.uk/info/200202/performance_and_spending/1079/payments_over_500,01-Jun-2023,Housing Revenue Account Capital,SELECT WINDOWS (HOME IMPROVEMENTS) LIMITED,Housing Revenue Account Capital,544.65,Contract Payments,2324P03_CR00487,42616
Sandwell Metropolitan Borough Council,http://www.sandwell.gov.uk/info/200202/performance_and_spending/1079/payments_over_500,22-Jun-2023,Housing Revenue Account Capital,SELECT WINDOWS (HOME IMPROVEMENTS) LIMITED,Housing Revenue Account Capital,545.88,Contract Payments,2324P03_CR00488,42616
Sandwell Metropolitan Borough Council,http://www.sandwell.gov.uk/info/200202/performance_and_spending/1079/payments_over_500,22-Jun-2023,Housing Revenue Account Capital,SELECT WINDOWS (HOME IMPROVEMENTS) LIMITED,Housing Revenue Account Capital,557.15,Contract Payments,2324P03_CR00489,42616
Sandwell Metropolitan Borough Council,http://www.sandwell.gov.uk/info/200202/performance_and_spending/1079/payments_over_500,01-Jun-2023,Housing Revenue Account Capital,SELECT WINDOWS (HOME IMPROVEMENTS) LIMITED,Housing Revenue Account Capital,567.78,Contract Payments,2324P03_CR00490,42616
Sandwell Metropolitan Borough Council,http://www.sandwell.gov.uk/info/200202/performance_and_spending/1079/payments_over_500,01-Jun-2023,Housing Revenue Account Capital,SELECT WINDOWS (HOME IMPROVEMENTS) LIMITED,Housing Revenue Account Capital,569.89,Contract Payments,2324P03_CR00491,42616
Sandwell Metropolitan Borough Council,http://www.sandwell.gov.uk/info/200202/performance_and_spending/1079/payments_over_500,01-Jun-2023,Housing Revenue Account Capital,SELECT WINDOWS (HOME IMPROVEMENTS) LIMITED,Housing Revenue Account Capital,609.84,Contract Payments,2324P03_CR00492,42616
Sandwell Metropolitan Borough Council,http://www.sandwell.gov.uk/info/200202/performance_and_spending/1079/payments_over_500,01-Jun-2023,Housing Revenue Account Capital,SELECT WINDOWS (HOME IMPROVEMENTS) LIMITED,Housing Revenue Account Capital,611.94,Contract Payments,2324P03_CR00493,42616
Sandwell Metropolitan Borough Council,http://www.sandwell.gov.uk/info/200202/performance_and_spending/1079/payments_over_500,01-Jun-2023,Housing Revenue Account Capital,SELECT WINDOWS (HOME IMPROVEMENTS) LIMITED,Housing Revenue Account Capital,657.57,Contract Payments,2324P03_CR00494,42616
Sandwell Metropolitan Borough Council,http://www.sandwell.gov.uk/info/200202/performance_and_spending/1079/payments_over_500,01-Jun-2023,Housing Revenue Account Capital,SELECT WINDOWS (HOME IMPROVEMENTS) LIMITED,Housing Revenue Account Capital,660.61,Contract Payments,2324P03_CR00495,42616
Sandwell Metropolitan Borough Council,http://www.sandwell.gov.uk/info/200202/performance_and_spending/1079/payments_over_500,22-Jun-2023,Housing Revenue Account Capital,SELECT WINDOWS (HOME IMPROVEMENTS) LIMITED,Housing Revenue Account Capital,664.68,Contract Payments,2324P03_CR00496,42616
Sandwell Metropolitan Borough Council,http://www.sandwell.gov.uk/info/200202/performance_and_spending/1079/payments_over_500,01-Jun-2023,Housing Revenue Account Capital,SELECT WINDOWS (HOME IMPROVEMENTS) LIMITED,Housing Revenue Account Capital,671.10,Contract Payments,2324P03_CR00497,42616
Sandwell Metropolitan Borough Council,http://www.sandwell.gov.uk/info/200202/performance_and_spending/1079/payments_over_500,22-Jun-2023,Housing Revenue Account Capital,SELECT WINDOWS (HOME IMPROVEMENTS) LIMITED,Housing Revenue Account Capital,696.06,Contract Payments,2324P03_CR00498,42616
Sandwell Metropolitan Borough Council,http://www.sandwell.gov.uk/info/200202/performance_and_spending/1079/payments_over_500,01-Jun-2023,Housing Revenue Account Capital,SELECT WINDOWS (HOME IMPROVEMENTS) LIMITED,Housing Revenue Account Capital,704.47,Contract Payments,2324P03_CR00499,42616
Sandwell Metropolitan Borough Council,http://www.sandwell.gov.uk/info/200202/performance_and_spending/1079/payments_over_500,01-Jun-2023,Housing Revenue Account Capital,SELECT WINDOWS (HOME IMPROVEMENTS) LIMITED,Housing Revenue Account Capital,729.70,Contract Payments,2324P03_CR00500,42616
Sandwell Metropolitan Borough Council,http://www.sandwell.gov.uk/info/200202/performance_and_spending/1079/payments_over_500,01-Jun-2023,Housing Revenue Account Capital,SELECT WINDOWS (HOME IMPROVEMENTS) LIMITED,Housing Revenue Account Capital,729.70,Contract Payments,2324P03_CR00501,42616
Sandwell Metropolitan Borough Council,http://www.sandwell.gov.uk/info/200202/performance_and_spending/1079/payments_over_500,01-Jun-2023,Housing Revenue Account Capital,SELECT WINDOWS (HOME IMPROVEMENTS) LIMITED,Housing Revenue Account Capital,756.14,Contract Payments,2324P03_CR00502,42616
Sandwell Metropolitan Borough Council,http://www.sandwell.gov.uk/info/200202/performance_and_spending/1079/payments_over_500,01-Jun-2023,Housing Revenue Account Capital,SELECT WINDOWS (HOME IMPROVEMENTS) LIMITED,Housing Revenue Account Capital,765.76,Contract Payments,2324P03_CR00503,42616
Sandwell Metropolitan Borough Council,http://www.sandwell.gov.uk/info/200202/performance_and_spending/1079/payments_over_500,01-Jun-2023,Housing Revenue Account Capital,SELECT WINDOWS (HOME IMPROVEMENTS) LIMITED,Housing Revenue Account Capital,782.28,Contract Payments,2324P03_CR00504,42616
Sandwell Metropolitan Borough Council,http://www.sandwell.gov.uk/info/200202/performance_and_spending/1079/payments_over_500,22-Jun-2023,Housing Revenue Account Capital,SELECT WINDOWS (HOME IMPROVEMENTS) LIMITED,Housing Revenue Account Capital,782.28,Contract Payments,2324P03_CR00505,42616
Sandwell Metropolitan Borough Council,http://www.sandwell.gov.uk/info/200202/performance_and_spending/1079/payments_over_500,06-Jun-2023,Housing Revenue Account Capital,SELECT WINDOWS (HOME IMPROVEMENTS) LIMITED,Housing Revenue Account Capital,803.60,Contract Payments,2324P03_CR00506,42616
Sandwell Metropolitan Borough Council,http://www.sandwell.gov.uk/info/200202/performance_and_spending/1079/payments_over_500,01-Jun-2023,Housing Revenue Account Capital,SELECT WINDOWS (HOME IMPROVEMENTS) LIMITED,Housing Revenue Account Capital,808.73,Contract Payments,2324P03_CR00507,42616
Sandwell Metropolitan Borough Council,http://www.sandwell.gov.uk/info/200202/performance_and_spending/1079/payments_over_500,01-Jun-2023,Housing Revenue Account Capital,SELECT WINDOWS (HOME IMPROVEMENTS) LIMITED,Housing Revenue Account Capital,811.12,Contract Payments,2324P03_CR00508,42616
Sandwell Metropolitan Borough Council,http://www.sandwell.gov.uk/info/200202/performance_and_spending/1079/payments_over_500,01-Jun-2023,Housing Revenue Account Capital,SELECT WINDOWS (HOME IMPROVEMENTS) LIMITED,Housing Revenue Account Capital,811.12,Contract Payments,2324P03_CR00509,42616
Sandwell Metropolitan Borough Council,http://www.sandwell.gov.uk/info/200202/performance_and_spending/1079/payments_over_500,01-Jun-2023,Housing Revenue Account Capital,SELECT WINDOWS (HOME IMPROVEMENTS) LIMITED,Housing Revenue Account Capital,811.71,Contract Payments,2324P03_CR00510,42616
Sandwell Metropolitan Borough Council,http://www.sandwell.gov.uk/info/200202/performance_and_spending/1079/payments_over_500,22-Jun-2023,Housing Revenue Account Capital,SELECT WINDOWS (HOME IMPROVEMENTS) LIMITED,Housing Revenue Account Capital,828.55,Contract Payments,2324P03_CR00511,42616
Sandwell Metropolitan Borough Council,http://www.sandwell.gov.uk/info/200202/performance_and_spending/1079/payments_over_500,01-Jun-2023,Housing Revenue Account Capital,SELECT WINDOWS (HOME IMPROVEMENTS) LIMITED,Housing Revenue Account Capital,862.18,Contract Payments,2324P03_CR00512,42616
Sandwell Metropolitan Borough Council,http://www.sandwell.gov.uk/info/200202/performance_and_spending/1079/payments_over_500,01-Jun-2023,Housing Revenue Account Capital,SELECT WINDOWS (HOME IMPROVEMENTS) LIMITED,Housing Revenue Account Capital,881.12,Contract Payments,2324P03_CR00513,42616
Sandwell Metropolitan Borough Council,http://www.sandwell.gov.uk/info/200202/performance_and_spending/1079/payments_over_500,01-Jun-2023,Housing Revenue Account Capital,SELECT WINDOWS (HOME IMPROVEMENTS) LIMITED,Housing Revenue Account Capital,977.91,Contract Payments,2324P03_CR00514,42616
Sandwell Metropolitan Borough Council,http://www.sandwell.gov.uk/info/200202/performance_and_spending/1079/payments_over_500,22-Jun-2023,Housing Revenue Account Capital,SELECT WINDOWS (HOME IMPROVEMENTS) LIMITED,Housing Revenue Account Capital,1001.29,Contract Payments,2324P03_CR00515,42616
Sandwell Metropolitan Borough Council,http://www.sandwell.gov.uk/info/200202/performance_and_spending/1079/payments_over_500,01-Jun-2023,Housing Revenue Account Capital,SELECT WINDOWS (HOME IMPROVEMENTS) LIMITED,Housing Revenue Account Capital,1019.90,Contract Payments,2324P03_CR00516,42616
Sandwell Metropolitan Borough Council,http://www.sandwell.gov.uk/info/200202/performance_and_spending/1079/payments_over_500,01-Jun-2023,Housing Revenue Account Capital,SELECT WINDOWS (HOME IMPROVEMENTS) LIMITED,Housing Revenue Account Capital,1045.13,Contract Payments,2324P03_CR00517,42616
Sandwell Metropolitan Borough Council,http://www.sandwell.gov.uk/info/200202/performance_and_spending/1079/payments_over_500,01-Jun-2023,Housing Revenue Account Capital,SELECT WINDOWS (HOME IMPROVEMENTS) LIMITED,Housing Revenue Account Capital,1047.86,Contract Payments,2324P03_CR00518,42616
Sandwell Metropolitan Borough Council,http://www.sandwell.gov.uk/info/200202/performance_and_spending/1079/payments_over_500,22-Jun-2023,Housing Revenue Account Capital,SELECT WINDOWS (HOME IMPROVEMENTS) LIMITED,Housing Revenue Account Capital,1048.16,Contract Payments,2324P03_CR00519,42616
Sandwell Metropolitan Borough Council,http://www.sandwell.gov.uk/info/200202/performance_and_spending/1079/payments_over_500,06-Jun-2023,Housing Revenue Account Capital,SELECT WINDOWS (HOME IMPROVEMENTS) LIMITED,Housing Revenue Account Capital,1066.61,Contract Payments,2324P03_CR00520,42616
Sandwell Metropolitan Borough Council,http://www.sandwell.gov.uk/info/200202/performance_and_spending/1079/payments_over_500,01-Jun-2023,Housing Revenue Account Capital,SELECT WINDOWS (HOME IMPROVEMENTS) LIMITED,Housing Revenue Account Capital,1124.74,Contract Payments,2324P03_CR00521,42616
Sandwell Metropolitan Borough Council,http://www.sandwell.gov.uk/info/200202/performance_and_spending/1079/payments_over_500,01-Jun-2023,Housing Revenue Account Capital,SELECT WINDOWS (HOME IMPROVEMENTS) LIMITED,Housing Revenue Account Capital,1131.06,Contract Payments,2324P03_CR00522,42616
Sandwell Metropolitan Borough Council,http://www.sandwell.gov.uk/info/200202/performance_and_spending/1079/payments_over_500,01-Jun-2023,Housing Revenue Account Capital,SELECT WINDOWS (HOME IMPROVEMENTS) LIMITED,Housing Revenue Account Capital,1169.06,Contract Payments,2324P03_CR00523,42616
Sandwell Metropolitan Borough Council,http://www.sandwell.gov.uk/info/200202/performance_and_spending/1079/payments_over_500,01-Jun-2023,Housing Revenue Account Capital,SELECT WINDOWS (HOME IMPROVEMENTS) LIMITED,Housing Revenue Account Capital,1259.04,Contract Payments,2324P03_CR00524,42616
Sandwell Metropolitan Borough Council,http://www.sandwell.gov.uk/info/200202/performance_and_spending/1079/payments_over_500,01-Jun-2023,Housing Revenue Account Capital,SELECT WINDOWS (HOME IMPROVEMENTS) LIMITED,Housing Revenue Account Capital,1282.77,Contract Payments,2324P03_CR00525,42616
Sandwell Metropolitan Borough Council,http://www.sandwell.gov.uk/info/200202/performance_and_spending/1079/payments_over_500,01-Jun-2023,Housing Revenue Account Capital,SELECT WINDOWS (HOME IMPROVEMENTS) LIMITED,Housing Revenue Account Capital,1289.92,Contract Payments,2324P03_CR00526,42616
Sandwell Metropolitan Borough Council,http://www.sandwell.gov.uk/info/200202/performance_and_spending/1079/payments_over_500,22-Jun-2023,Housing Revenue Account Capital,SELECT WINDOWS (HOME IMPROVEMENTS) LIMITED,Housing Revenue Account Capital,1300.85,Contract Payments,2324P03_CR00527,42616
Sandwell Metropolitan Borough Council,http://www.sandwell.gov.uk/info/200202/performance_and_spending/1079/payments_over_500,22-Jun-2023,Housing Revenue Account Capital,SELECT WINDOWS (HOME IMPROVEMENTS) LIMITED,Housing Revenue Account Capital,1434.18,Contract Payments,2324P03_CR00528,42616
Sandwell Metropolitan Borough Council,http://www.sandwell.gov.uk/info/200202/performance_and_spending/1079/payments_over_500,01-Jun-2023,Housing Revenue Account Capital,SELECT WINDOWS (HOME IMPROVEMENTS) LIMITED,Housing Revenue Account Capital,1456.27,Contract Payments,2324P03_CR00529,42616
Sandwell Metropolitan Borough Council,http://www.sandwell.gov.uk/info/200202/performance_and_spending/1079/payments_over_500,01-Jun-2023,Housing Revenue Account Capital,SELECT WINDOWS (HOME IMPROVEMENTS) LIMITED,Housing Revenue Account Capital,1487.05,Contract Payments,2324P03_CR00530,42616
Sandwell Metropolitan Borough Council,http://www.sandwell.gov.uk/info/200202/performance_and_spending/1079/payments_over_500,01-Jun-2023,Housing Revenue Account Capital,SELECT WINDOWS (HOME IMPROVEMENTS) LIMITED,Housing Revenue Account Capital,1677.51,Contract Payments,2324P03_CR00531,42616
Sandwell Metropolitan Borough Council,http://www.sandwell.gov.uk/info/200202/performance_and_spending/1079/payments_over_500,01-Jun-2023,Housing Revenue Account Capital,SELECT WINDOWS (HOME IMPROVEMENTS) LIMITED,Housing Revenue Account Capital,1677.51,Contract Payments,2324P03_CR00532,42616
Sandwell Metropolitan Borough Council,http://www.sandwell.gov.uk/info/200202/performance_and_spending/1079/payments_over_500,01-Jun-2023,Housing Revenue Account Capital,SELECT WINDOWS (HOME IMPROVEMENTS) LIMITED,Housing Revenue Account Capital,2077.99,Contract Payments,2324P03_CR00533,42616
Sandwell Metropolitan Borough Council,http://www.sandwell.gov.uk/info/200202/performance_and_spending/1079/payments_over_500,06-Jun-2023,Housing Revenue Account Capital,SELECT WINDOWS (HOME IMPROVEMENTS) LIMITED,Housing Revenue Account Capital,4581.86,Contract Payments,2324P03_CR00534,42616
Sandwell Metropolitan Borough Council,http://www.sandwell.gov.uk/info/200202/performance_and_spending/1079/payments_over_500,22-Jun-2023,Housing Revenue Account Capital,SURE MAINTENANCE LIMITED,Housing Revenue Account Capital,402400.48,"CIP - New Construction,Conversion, Enhancement & Reno",2324P03_CR00535,93926
Sandwell Metropolitan Borough Council,http://www.sandwell.gov.uk/info/200202/performance_and_spending/1079/payments_over_500,01-Jun-2023,Housing Revenue Account Capital,SYCAMORE WINDOWS & CONSERVATORIES LIMITED,Housing Revenue Account Capital,137981.22,"CIP - New Construction,Conversion, Enhancement & Reno",2324P03_CR00536,145272
Sandwell Metropolitan Borough Council,http://www.sandwell.gov.uk/info/200202/performance_and_spending/1079/payments_over_500,15-Jun-2023,Housing Revenue Account Capital,TRICAS CONSTRUCTION LIMITED,Housing Revenue Account Capital,151337.49,"CIP - New Construction,Conversion, Enhancement & Reno",2324P03_CR00537,165600
Sandwell Metropolitan Borough Council,http://www.sandwell.gov.uk/info/200202/performance_and_spending/1079/payments_over_500,01-Jun-2023,Housing Revenue Account Capital,VINCI CONSTRUCTION LTD,Housing Revenue Account Capital,824.39,Deferred Charges/Grant Payments,2324P03_CR00538,36361
Sandwell Metropolitan Borough Council,http://www.sandwell.gov.uk/info/200202/performance_and_spending/1079/payments_over_500,01-Jun-2023,Housing Revenue Account Capital,VINCI CONSTRUCTION LTD,Housing Revenue Account Capital,5365.39,Deferred Charges/Grant Payments,2324P03_CR00539,36361
Sandwell Metropolitan Borough Council,http://www.sandwell.gov.uk/info/200202/performance_and_spending/1079/payments_over_500,01-Jun-2023,Housing Revenue Account Capital,VINCI CONSTRUCTION LTD,Housing Revenue Account Capital,7678.44,Deferred Charges/Grant Payments,2324P03_CR00540,36361
Sandwell Metropolitan Borough Council,http://www.sandwell.gov.uk/info/200202/performance_and_spending/1079/payments_over_500,01-Jun-2023,Housing Revenue Account Capital,VINCI CONSTRUCTION LTD,Housing Revenue Account Capital,8144.65,Deferred Charges/Grant Payments,2324P03_CR00541,36361
Sandwell Metropolitan Borough Council,http://www.sandwell.gov.uk/info/200202/performance_and_spending/1079/payments_over_500,16-Jun-2023,Housing Revenue Account Capital,VINCI CONSTRUCTION LTD,Housing Revenue Account Capital,196898.28,"CIP - New Construction,Conversion, Enhancement & Reno",2324P03_CR00542,36361
Sandwell Metropolitan Borough Council,http://www.sandwell.gov.uk/info/200202/performance_and_spending/1079/payments_over_500,16-Jun-2023,Housing Revenue Account Capital,VINCI CONSTRUCTION LTD,Housing Revenue Account Capital,202556.98,"CIP - New Construction,Conversion, Enhancement & Reno",2324P03_CR00543,36361
Sandwell Metropolitan Borough Council,http://www.sandwell.gov.uk/info/200202/performance_and_spending/1079/payments_over_500,16-Jun-2023,Housing Revenue Account Capital,VINCI CONSTRUCTION LTD,Housing Revenue Account Capital,204386.25,"CIP - New Construction,Conversion, Enhancement & Reno",2324P03_CR00544,36361
Sandwell Metropolitan Borough Council,http://www.sandwell.gov.uk/info/200202/performance_and_spending/1079/payments_over_500,01-Jun-2023,Housing Revenue Account Capital,DG SERVICING LTD T/A AUTOMATED DOOR SYSTEMS,Housing Revenue Account Capital,3492.48,Deferred Charges/Grant Payments,2324P03_CR00545,165682
Sandwell Metropolitan Borough Council,http://www.sandwell.gov.uk/info/200202/performance_and_spending/1079/payments_over_500,01-Jun-2023,Housing Revenue Account Capital,FORMBUILD INSTALLATIONS LTD,Housing Revenue Account Capital,825.00,Deferred Charges/Grant Payments,2324P03_CR00546,153985
Sandwell Metropolitan Borough Council,http://www.sandwell.gov.uk/info/200202/performance_and_spending/1079/payments_over_500,01-Jun-2023,Housing Revenue Account Capital,FORMBUILD INSTALLATIONS LTD,Housing Revenue Account Capital,1642.57,Deferred Charges/Grant Payments,2324P03_CR00547,153985
Sandwell Metropolitan Borough Council,http://www.sandwell.gov.uk/info/200202/performance_and_spending/1079/payments_over_500,21-Jun-2023,Individual School Budgets With Inclusion,5 STAR DAY NURSERY - OLDBURY,Individual School Budgets With Inclusion,8712.00,Grant Payments,2324P03_CR00548,120730
Sandwell Metropolitan Borough Council,http://www.sandwell.gov.uk/info/200202/performance_and_spending/1079/payments_over_500,21-Jun-2023,Individual School Budgets With Inclusion,5 STAR DAY NURSERY LIMITED,Individual School Budgets With Inclusion,7252.20,Grant Payments,2324P03_CR00549,105382
Sandwell Metropolitan Borough Council,http://www.sandwell.gov.uk/info/200202/performance_and_spending/1079/payments_over_500,21-Jun-2023,Individual School Budgets With Inclusion,ABC DAY NURSERY & PRE SCHOOL LTD,Individual School Budgets With Inclusion,11424.15,Grant Payments,2324P03_CR00550,01472823
Sandwell Metropolitan Borough Council,http://www.sandwell.gov.uk/info/200202/performance_and_spending/1079/payments_over_500,21-Jun-2023,Individual School Budgets With Inclusion,ADVENTURE QUEST (GREAT BRIDGE) LTD,Individual School Budgets With Inclusion,8276.40,Grant Payments,2324P03_CR00551,153563
Sandwell Metropolitan Borough Council,http://www.sandwell.gov.uk/info/200202/performance_and_spending/1079/payments_over_500,21-Jun-2023,Individual School Budgets With Inclusion,AL KAHIR SCHOOL,Individual School Budgets With Inclusion,3017.70,Grant Payments,2324P03_CR00552,128728
Sandwell Metropolitan Borough Council,http://www.sandwell.gov.uk/info/200202/performance_and_spending/1079/payments_over_500,21-Jun-2023,Individual School Budgets With Inclusion,BABY STEPS DAY CARE,Individual School Budgets With Inclusion,639.90,Grant Payments,2324P03_CR00553,165672
Sandwell Metropolitan Borough Council,http://www.sandwell.gov.uk/info/200202/performance_and_spending/1079/payments_over_500,21-Jun-2023,Individual School Budgets With Inclusion,BANANA MOON DAY NURSERY,Individual School Budgets With Inclusion,11325.60,Grant Payments,2324P03_CR00554,124220
Sandwell Metropolitan Borough Council,http://www.sandwell.gov.uk/info/200202/performance_and_spending/1079/payments_over_500,21-Jun-2023,Individual School Budgets With Inclusion,BEEHIVE WB LTD,Individual School Budgets With Inclusion,639.90,Grant Payments,2324P03_CR00555,164780
Sandwell Metropolitan Borough Council,http://www.sandwell.gov.uk/info/200202/performance_and_spending/1079/payments_over_500,21-Jun-2023,Individual School Budgets With Inclusion,BLOXCIDGE HOUSE DAY NURSERY,Individual School Budgets With Inclusion,7187.40,Grant Payments,2324P03_CR00556,82862
Sandwell Metropolitan Borough Council,http://www.sandwell.gov.uk/info/200202/performance_and_spending/1079/payments_over_500,21-Jun-2023,Individual School Budgets With Inclusion,BOOKWORMS DAYCARE LIMITED,Individual School Budgets With Inclusion,8406.45,Grant Payments,2324P03_CR00557,114741
Sandwell Metropolitan Borough Council,http://www.sandwell.gov.uk/info/200202/performance_and_spending/1079/payments_over_500,21-Jun-2023,Individual School Budgets With Inclusion,BRIGHT LIGHTS DAY NURSERY,Individual School Budgets With Inclusion,12004.20,Grant Payments,2324P03_CR00558,89877
Sandwell Metropolitan Borough Council,http://www.sandwell.gov.uk/info/200202/performance_and_spending/1079/payments_over_500,21-Jun-2023,Individual School Budgets With Inclusion,BUSY BEE NURSERY,Individual School Budgets With Inclusion,8981.25,Grant Payments,2324P03_CR00559,01222577
Sandwell Metropolitan Borough Council,http://www.sandwell.gov.uk/info/200202/performance_and_spending/1079/payments_over_500,21-Jun-2023,Individual School Budgets With Inclusion,CAP DAY NURSERY,Individual School Budgets With Inclusion,5112.90,Grant Payments,2324P03_CR00560,51154
Sandwell Metropolitan Borough Council,http://www.sandwell.gov.uk/info/200202/performance_and_spending/1079/payments_over_500,21-Jun-2023,Individual School Budgets With Inclusion,CATHERINE HOUSE DAY NURSERY,Individual School Budgets With Inclusion,4727.73,Grant Payments,2324P03_CR00561,08587767
Sandwell Metropolitan Borough Council,http://www.sandwell.gov.uk/info/200202/performance_and_spending/1079/payments_over_500,21-Jun-2023,Individual School Budgets With Inclusion,CONFEDERATION OF BANGLADESHI ORGANISATIONS (CBO) LIMITED,Individual School Budgets With Inclusion,2445.30,Grant Payments,2324P03_CR00562,10034
Sandwell Metropolitan Borough Council,http://www.sandwell.gov.uk/info/200202/performance_and_spending/1079/payments_over_500,21-Jun-2023,Individual School Budgets With Inclusion,CONIFERS DAY NURSERY LTD,Individual School Budgets With Inclusion,6534.00,Grant Payments,2324P03_CR00563,131957
Sandwell Metropolitan Borough Council,http://www.sandwell.gov.uk/info/200202/performance_and_spending/1079/payments_over_500,21-Jun-2023,Individual School Budgets With Inclusion,DAFFODILS NURSERY LTD,Individual School Budgets With Inclusion,7335.90,Grant Payments,2324P03_CR00564,120066
Sandwell Metropolitan Borough Council,http://www.sandwell.gov.uk/info/200202/performance_and_spending/1079/payments_over_500,21-Jun-2023,Individual School Budgets With Inclusion,FAIRYTALES NURSERY LTD,Individual School Budgets With Inclusion,13579.65,Grant Payments,2324P03_CR00565,106247
Sandwell Metropolitan Borough Council,http://www.sandwell.gov.uk/info/200202/performance_and_spending/1079/payments_over_500,21-Jun-2023,Individual School Budgets With Inclusion,FATIMA DAY NURSERY,Individual School Budgets With Inclusion,5662.80,Grant Payments,2324P03_CR00566,131343
Sandwell Metropolitan Borough Council,http://www.sandwell.gov.uk/info/200202/performance_and_spending/1079/payments_over_500,21-Jun-2023,Individual School Budgets With Inclusion,FIREFLIES NURSERY LIMITED,Individual School Budgets With Inclusion,10236.60,Grant Payments,2324P03_CR00567,124120
Sandwell Metropolitan Borough Council,http://www.sandwell.gov.uk/info/200202/performance_and_spending/1079/payments_over_500,21-Jun-2023,Individual School Budgets With Inclusion,FIRST STEPS DAY NURSERY,Individual School Budgets With Inclusion,10890.00,Grant Payments,2324P03_CR00568,51155
Sandwell Metropolitan Borough Council,http://www.sandwell.gov.uk/info/200202/performance_and_spending/1079/payments_over_500,21-Jun-2023,Individual School Budgets With Inclusion,FIRST STEPS OLDBURY,Individual School Budgets With Inclusion,7405.20,Grant Payments,2324P03_CR00569,118886
Sandwell Metropolitan Borough Council,http://www.sandwell.gov.uk/info/200202/performance_and_spending/1079/payments_over_500,21-Jun-2023,Individual School Budgets With Inclusion,GENIUS GEMS,Individual School Budgets With Inclusion,13024.44,Grant Payments,2324P03_CR00570,160606
Sandwell Metropolitan Borough Council,http://www.sandwell.gov.uk/info/200202/performance_and_spending/1079/payments_over_500,21-Jun-2023,Individual School Budgets With Inclusion,GNG NURSERY,Individual School Budgets With Inclusion,8712.00,Grant Payments,2324P03_CR00571,114805
Sandwell Metropolitan Borough Council,http://www.sandwell.gov.uk/info/200202/performance_and_spending/1079/payments_over_500,21-Jun-2023,Individual School Budgets With Inclusion,HAPPY DAYS NURSERY (GREETS GREEN),Individual School Budgets With Inclusion,8225.10,Grant Payments,2324P03_CR00572,125840
Sandwell Metropolitan Borough Council,http://www.sandwell.gov.uk/info/200202/performance_and_spending/1079/payments_over_500,21-Jun-2023,Individual School Budgets With Inclusion,HUMPTY DUMPTYS DAY NURSERY,Individual School Budgets With Inclusion,10236.60,Grant Payments,2324P03_CR00573,08510771
Sandwell Metropolitan Borough Council,http://www.sandwell.gov.uk/info/200202/performance_and_spending/1079/payments_over_500,21-Jun-2023,Individual School Budgets With Inclusion,JUNIPER'S PRESCHOOL,Individual School Budgets With Inclusion,8406.45,Grant Payments,2324P03_CR00574,154579
Sandwell Metropolitan Borough Council,http://www.sandwell.gov.uk/info/200202/performance_and_spending/1079/payments_over_500,21-Jun-2023,Individual School Budgets With Inclusion,KANGAROO POUCH AT GREAT BRIDGE,Individual School Budgets With Inclusion,8276.40,Grant Payments,2324P03_CR00575,129771
Sandwell Metropolitan Borough Council,http://www.sandwell.gov.uk/info/200202/performance_and_spending/1079/payments_over_500,21-Jun-2023,Individual School Budgets With Inclusion,KANGAROO POUCH AT TIVIDALE,Individual School Budgets With Inclusion,7678.80,Grant Payments,2324P03_CR00576,113715
Sandwell Metropolitan Borough Council,http://www.sandwell.gov.uk/info/200202/performance_and_spending/1079/payments_over_500,21-Jun-2023,Individual School Budgets With Inclusion,KANGAROO POUCH CHARLEMONT,Individual School Budgets With Inclusion,5335.20,Grant Payments,2324P03_CR00577,117283
Sandwell Metropolitan Borough Council,http://www.sandwell.gov.uk/info/200202/performance_and_spending/1079/payments_over_500,21-Jun-2023,Individual School Budgets With Inclusion,KANGAROO POUCH LIMITED,Individual School Budgets With Inclusion,8276.40,Grant Payments,2324P03_CR00578,106981
Sandwell Metropolitan Borough Council,http://www.sandwell.gov.uk/info/200202/performance_and_spending/1079/payments_over_500,21-Jun-2023,Individual School Budgets With Inclusion,LAVENDER FARM DAY NURSERY,Individual School Budgets With Inclusion,30927.60,Grant Payments,2324P03_CR00579,65596
Sandwell Metropolitan Borough Council,http://www.sandwell.gov.uk/info/200202/performance_and_spending/1079/payments_over_500,21-Jun-2023,Individual School Budgets With Inclusion,LILLIPUT LODGE CHILDRENS DAY NURSERY,Individual School Budgets With Inclusion,10130.85,Grant Payments,2324P03_CR00580,2980
Sandwell Metropolitan Borough Council,http://www.sandwell.gov.uk/info/200202/performance_and_spending/1079/payments_over_500,21-Jun-2023,Individual School Budgets With Inclusion,LITTLE ACADEMY NURSERY,Individual School Budgets With Inclusion,3879.90,Grant Payments,2324P03_CR00581,81904
Sandwell Metropolitan Borough Council,http://www.sandwell.gov.uk/info/200202/performance_and_spending/1079/payments_over_500,21-Jun-2023,Individual School Budgets With Inclusion,LITTLE ANGELS DAY NURSERY LIMITED,Individual School Budgets With Inclusion,6316.20,Grant Payments,2324P03_CR00582,10207
Sandwell Metropolitan Borough Council,http://www.sandwell.gov.uk/info/200202/performance_and_spending/1079/payments_over_500,21-Jun-2023,Individual School Budgets With Inclusion,LITTLE EXPLORERS (WEST MIDLANDS) LTD,Individual School Budgets With Inclusion,17641.80,Grant Payments,2324P03_CR00583,114804
Sandwell Metropolitan Borough Council,http://www.sandwell.gov.uk/info/200202/performance_and_spending/1079/payments_over_500,21-Jun-2023,Individual School Budgets With Inclusion,LITTLE LEARNERS LTD,Individual School Budgets With Inclusion,8757.45,Grant Payments,2324P03_CR00584,01424133
Sandwell Metropolitan Borough Council,http://www.sandwell.gov.uk/info/200202/performance_and_spending/1079/payments_over_500,21-Jun-2023,Individual School Budgets With Inclusion,LITTLE LEGEND NURSERIES LTD,Individual School Budgets With Inclusion,5220.00,Grant Payments,2324P03_CR00585,117890
Sandwell Metropolitan Borough Council,http://www.sandwell.gov.uk/info/200202/performance_and_spending/1079/payments_over_500,21-Jun-2023,Individual School Budgets With Inclusion,LITTLE SAPLINGS CHILDCARE CENTRES,Individual School Budgets With Inclusion,9268.65,Grant Payments,2324P03_CR00586,131043
Sandwell Metropolitan Borough Council,http://www.sandwell.gov.uk/info/200202/performance_and_spending/1079/payments_over_500,21-Jun-2023,Individual School Budgets With Inclusion,LITTLE STEPPERS,Individual School Budgets With Inclusion,6098.40,Grant Payments,2324P03_CR00587,120240
Sandwell Metropolitan Borough Council,http://www.sandwell.gov.uk/info/200202/performance_and_spending/1079/payments_over_500,21-Jun-2023,Individual School Budgets With Inclusion,LITTLE VALERS PRE SCHOOL,Individual School Budgets With Inclusion,3384.36,Grant Payments,2324P03_CR00588,99107
Sandwell Metropolitan Borough Council,http://www.sandwell.gov.uk/info/200202/performance_and_spending/1079/payments_over_500,21-Jun-2023,Individual School Budgets With Inclusion,LITTLE WENDY HOUSE DAY NURSERY,Individual School Budgets With Inclusion,19602.00,Grant Payments,2324P03_CR00589,91544
Sandwell Metropolitan Borough Council,http://www.sandwell.gov.uk/info/200202/performance_and_spending/1079/payments_over_500,21-Jun-2023,Individual School Budgets With Inclusion,LOLA BELLES PRIVATE DAY NURSERY,Individual School Budgets With Inclusion,11208.60,Grant Payments,2324P03_CR00590,89271
Sandwell Metropolitan Borough Council,http://www.sandwell.gov.uk/info/200202/performance_and_spending/1079/payments_over_500,21-Jun-2023,Individual School Budgets With Inclusion,MINI MONKEYS LTD,Individual School Budgets With Inclusion,10236.60,Grant Payments,2324P03_CR00591,114818
Sandwell Metropolitan Borough Council,http://www.sandwell.gov.uk/info/200202/performance_and_spending/1079/payments_over_500,21-Jun-2023,Individual School Budgets With Inclusion,MINNS LIMITED,Individual School Budgets With Inclusion,7187.40,Grant Payments,2324P03_CR00592,120067
Sandwell Metropolitan Borough Council,http://www.sandwell.gov.uk/info/200202/performance_and_spending/1079/payments_over_500,21-Jun-2023,Individual School Budgets With Inclusion,MOORLANDS LITTLE LEARNERS PLAYGROUP,Individual School Budgets With Inclusion,6751.80,Grant Payments,2324P03_CR00593,46390
Sandwell Metropolitan Borough Council,http://www.sandwell.gov.uk/info/200202/performance_and_spending/1079/payments_over_500,21-Jun-2023,Individual School Budgets With Inclusion,N & K VARMA LIMITED T/A (KIDDIES PLAYHOUSE TIPTON),Individual School Budgets With Inclusion,8494.20,Grant Payments,2324P03_CR00594,26124
Sandwell Metropolitan Borough Council,http://www.sandwell.gov.uk/info/200202/performance_and_spending/1079/payments_over_500,21-Jun-2023,Individual School Budgets With Inclusion,OUR LADY AND ST HUBERTS CATHOLIC PRIMARY SCHOOL  ,Individual School Budgets With Inclusion,10105.92,Grant Payments,2324P03_CR00595,61053
Sandwell Metropolitan Borough Council,http://www.sandwell.gov.uk/info/200202/performance_and_spending/1079/payments_over_500,21-Jun-2023,Individual School Budgets With Inclusion,PERRYFIELDS PRE SCHOOL,Individual School Budgets With Inclusion,9750.05,Grant Payments,2324P03_CR00596,18879
Sandwell Metropolitan Borough Council,http://www.sandwell.gov.uk/info/200202/performance_and_spending/1079/payments_over_500,21-Jun-2023,Individual School Budgets With Inclusion,PITTA PATTA DAYCARE,Individual School Budgets With Inclusion,5662.80,Grant Payments,2324P03_CR00597,114742
Sandwell Metropolitan Borough Council,http://www.sandwell.gov.uk/info/200202/performance_and_spending/1079/payments_over_500,21-Jun-2023,Individual School Budgets With Inclusion,PLAYHOUSE DAY NURSERY,Individual School Budgets With Inclusion,3702.60,Grant Payments,2324P03_CR00598,01586669
Sandwell Metropolitan Borough Council,http://www.sandwell.gov.uk/info/200202/performance_and_spending/1079/payments_over_500,21-Jun-2023,Individual School Budgets With Inclusion,PRECIOUS TIMES DAY NURSERY,Individual School Budgets With Inclusion,4742.10,Grant Payments,2324P03_CR00599,165946
Sandwell Metropolitan Borough Council,http://www.sandwell.gov.uk/info/200202/performance_and_spending/1079/payments_over_500,21-Jun-2023,Individual School Budgets With Inclusion,RAK DAY CARE LTD T/A HAPPY VALLEY PRE SCHOOL LTD,Individual School Budgets With Inclusion,12414.60,Grant Payments,2324P03_CR00600,01572212
Sandwell Metropolitan Borough Council,http://www.sandwell.gov.uk/info/200202/performance_and_spending/1079/payments_over_500,21-Jun-2023,Individual School Budgets With Inclusion,RARE WOOD LIMITED,Individual School Budgets With Inclusion,15338.70,Grant Payments,2324P03_CR00601,20167
Sandwell Metropolitan Borough Council,http://www.sandwell.gov.uk/info/200202/performance_and_spending/1079/payments_over_500,21-Jun-2023,Individual School Budgets With Inclusion,ROOTS & SHOOTS PLAYGROUP,Individual School Budgets With Inclusion,4290.30,Grant Payments,2324P03_CR00602,75502
Sandwell Metropolitan Borough Council,http://www.sandwell.gov.uk/info/200202/performance_and_spending/1079/payments_over_500,21-Jun-2023,Individual School Budgets With Inclusion,ROWLEY VILLAGE DAY NURSERY,Individual School Budgets With Inclusion,11325.60,Grant Payments,2324P03_CR00603,24228
Sandwell Metropolitan Borough Council,http://www.sandwell.gov.uk/info/200202/performance_and_spending/1079/payments_over_500,21-Jun-2023,Individual School Budgets With Inclusion,SADWICA DAY NURSERY,Individual School Budgets With Inclusion,6171.00,Grant Payments,2324P03_CR00604,01667892
Sandwell Metropolitan Borough Council,http://www.sandwell.gov.uk/info/200202/performance_and_spending/1079/payments_over_500,21-Jun-2023,Individual School Budgets With Inclusion,SANDWELL NHS TRUST DAY NURSERY,Individual School Budgets With Inclusion,16335.00,Grant Payments,2324P03_CR00605,40788
Sandwell Metropolitan Borough Council,http://www.sandwell.gov.uk/info/200202/performance_and_spending/1079/payments_over_500,21-Jun-2023,Individual School Budgets With Inclusion,SANTOS DAY NURSERIES,Individual School Budgets With Inclusion,13011.30,Grant Payments,2324P03_CR00606,129262
Sandwell Metropolitan Borough Council,http://www.sandwell.gov.uk/info/200202/performance_and_spending/1079/payments_over_500,21-Jun-2023,Individual School Budgets With Inclusion,SMARTY PANTS @ LIGHTWOODS HOUSE LTD,Individual School Budgets With Inclusion,7465.50,Grant Payments,2324P03_CR00607,130645
Sandwell Metropolitan Borough Council,http://www.sandwell.gov.uk/info/200202/performance_and_spending/1079/payments_over_500,21-Jun-2023,Individual School Budgets With Inclusion,SMARTY PANTS PRIVATE DAY NURSERY LTD,Individual School Budgets With Inclusion,13503.60,Grant Payments,2324P03_CR00608,74037
Sandwell Metropolitan Borough Council,http://www.sandwell.gov.uk/info/200202/performance_and_spending/1079/payments_over_500,21-Jun-2023,Individual School Budgets With Inclusion,SPON LANE DAY NURSERY LIMITED,Individual School Budgets With Inclusion,8669.70,Grant Payments,2324P03_CR00609,127024
Sandwell Metropolitan Borough Council,http://www.sandwell.gov.uk/info/200202/performance_and_spending/1079/payments_over_500,21-Jun-2023,Individual School Budgets With Inclusion,ST HUBERTS PRE-SCHOOL PLAYGROUP 2,Individual School Budgets With Inclusion,19097.73,Grant Payments,2324P03_CR00610,123074
Sandwell Metropolitan Borough Council,http://www.sandwell.gov.uk/info/200202/performance_and_spending/1079/payments_over_500,21-Jun-2023,Individual School Budgets With Inclusion,ST MICHAELS DAY NURSERY,Individual School Budgets With Inclusion,2223.00,Grant Payments,2324P03_CR00611,01698538
Sandwell Metropolitan Borough Council,http://www.sandwell.gov.uk/info/200202/performance_and_spending/1079/payments_over_500,21-Jun-2023,Individual School Budgets With Inclusion,STACEY PARTRIDGE (STEP UP CHILDCARE),Individual School Budgets With Inclusion,853.20,Grant Payments,2324P03_CR00612,151395
Sandwell Metropolitan Borough Council,http://www.sandwell.gov.uk/info/200202/performance_and_spending/1079/payments_over_500,21-Jun-2023,Individual School Budgets With Inclusion,STEPPING STONES NURSERY,Individual School Budgets With Inclusion,5604.30,Grant Payments,2324P03_CR00613,50029
Sandwell Metropolitan Borough Council,http://www.sandwell.gov.uk/info/200202/performance_and_spending/1079/payments_over_500,21-Jun-2023,Individual School Budgets With Inclusion,TENDER TROOPS DAY NURSERY AND CHILDREN HUB,Individual School Budgets With Inclusion,1347.30,Grant Payments,2324P03_CR00614,164824
Sandwell Metropolitan Borough Council,http://www.sandwell.gov.uk/info/200202/performance_and_spending/1079/payments_over_500,21-Jun-2023,Individual School Budgets With Inclusion,THE FAMILY NURSERY COMPANY LTD,Individual School Budgets With Inclusion,10454.40,Grant Payments,2324P03_CR00615,89879
Sandwell Metropolitan Borough Council,http://www.sandwell.gov.uk/info/200202/performance_and_spending/1079/payments_over_500,21-Jun-2023,Individual School Budgets With Inclusion,THE RIVERS MULTI ACADEMY TRUST,Individual School Budgets With Inclusion,24829.20,Grant Payments,2324P03_CR00616,61014
Sandwell Metropolitan Borough Council,http://www.sandwell.gov.uk/info/200202/performance_and_spending/1079/payments_over_500,21-Jun-2023,Individual School Budgets With Inclusion,THE TODDLER HOUSE LIMITED,Individual School Budgets With Inclusion,9365.40,Grant Payments,2324P03_CR00617,122166
Sandwell Metropolitan Borough Council,http://www.sandwell.gov.uk/info/200202/performance_and_spending/1079/payments_over_500,21-Jun-2023,Individual School Budgets With Inclusion,THE WONDER YEARS DAY NURSERY LIMITED,Individual School Budgets With Inclusion,9801.00,Grant Payments,2324P03_CR00618,01647249
Sandwell Metropolitan Borough Council,http://www.sandwell.gov.uk/info/200202/performance_and_spending/1079/payments_over_500,21-Jun-2023,Individual School Budgets With Inclusion,TICK TOCK DAY NURSERY LTD,Individual School Budgets With Inclusion,20691.00,Grant Payments,2324P03_CR00619,9391
Sandwell Metropolitan Borough Council,http://www.sandwell.gov.uk/info/200202/performance_and_spending/1079/payments_over_500,21-Jun-2023,Individual School Budgets With Inclusion,TIDDLYWINKS KIDDYS NURSERY LIMITED,Individual School Budgets With Inclusion,14157.00,Grant Payments,2324P03_CR00620,110667
Sandwell Metropolitan Borough Council,http://www.sandwell.gov.uk/info/200202/performance_and_spending/1079/payments_over_500,21-Jun-2023,Individual School Budgets With Inclusion,TIMBERTREE NEIGHBOURHOOD NURSERY,Individual School Budgets With Inclusion,11855.25,Grant Payments,2324P03_CR00621,135664
Sandwell Metropolitan Borough Council,http://www.sandwell.gov.uk/info/200202/performance_and_spending/1079/payments_over_500,21-Jun-2023,Individual School Budgets With Inclusion,TINY STEPS,Individual School Budgets With Inclusion,3049.20,Grant Payments,2324P03_CR00622,125778
Sandwell Metropolitan Borough Council,http://www.sandwell.gov.uk/info/200202/performance_and_spending/1079/payments_over_500,21-Jun-2023,Individual School Budgets With Inclusion,TINY TOEZ LIMITED,Individual School Budgets With Inclusion,10025.10,Grant Payments,2324P03_CR00623,23618
Sandwell Metropolitan Borough Council,http://www.sandwell.gov.uk/info/200202/performance_and_spending/1079/payments_over_500,21-Jun-2023,Individual School Budgets With Inclusion,TINY WOODS PRE SCHOOL,Individual School Budgets With Inclusion,17703.90,Grant Payments,2324P03_CR00624,91788
Sandwell Metropolitan Borough Council,http://www.sandwell.gov.uk/info/200202/performance_and_spending/1079/payments_over_500,21-Jun-2023,Individual School Budgets With Inclusion,TIP TOP DAY NURSERY WEDNESBURY,Individual School Budgets With Inclusion,8712.00,Grant Payments,2324P03_CR00625,147082
Sandwell Metropolitan Borough Council,http://www.sandwell.gov.uk/info/200202/performance_and_spending/1079/payments_over_500,21-Jun-2023,Individual School Budgets With Inclusion,TIPTON NURSERY,Individual School Budgets With Inclusion,9336.60,Grant Payments,2324P03_CR00626,89881
Sandwell Metropolitan Borough Council,http://www.sandwell.gov.uk/info/200202/performance_and_spending/1079/payments_over_500,21-Jun-2023,Individual School Budgets With Inclusion,TIPTON TODDLERS DAY NURSERY,Individual School Budgets With Inclusion,15196.28,Grant Payments,2324P03_CR00627,4397
Sandwell Metropolitan Borough Council,http://www.sandwell.gov.uk/info/200202/performance_and_spending/1079/payments_over_500,21-Jun-2023,Individual School Budgets With Inclusion,TULIP DAY NURSERY LTD,Individual School Budgets With Inclusion,4446.00,Grant Payments,2324P03_CR00628,152250
Sandwell Metropolitan Borough Council,http://www.sandwell.gov.uk/info/200202/performance_and_spending/1079/payments_over_500,21-Jun-2023,Individual School Budgets With Inclusion,TWO STEPS PRE-SCHOOL,Individual School Budgets With Inclusion,3817.35,Grant Payments,2324P03_CR00629,109186
Sandwell Metropolitan Borough Council,http://www.sandwell.gov.uk/info/200202/performance_and_spending/1079/payments_over_500,21-Jun-2023,Individual School Budgets With Inclusion,UNICORN DAY NURSERY,Individual School Budgets With Inclusion,29474.82,Grant Payments,2324P03_CR00630,91543
Sandwell Metropolitan Borough Council,http://www.sandwell.gov.uk/info/200202/performance_and_spending/1079/payments_over_500,21-Jun-2023,Individual School Budgets With Inclusion,UNITED KIDS CHILDCARE,Individual School Budgets With Inclusion,13148.55,Grant Payments,2324P03_CR00631,134806
Sandwell Metropolitan Borough Council,http://www.sandwell.gov.uk/info/200202/performance_and_spending/1079/payments_over_500,21-Jun-2023,Individual School Budgets With Inclusion,UNITED KIDS LIMITED,Individual School Budgets With Inclusion,10236.60,Grant Payments,2324P03_CR00632,136360
Sandwell Metropolitan Borough Council,http://www.sandwell.gov.uk/info/200202/performance_and_spending/1079/payments_over_500,21-Jun-2023,Individual School Budgets With Inclusion,WEST BROMWICH & DISTRICT Y.M.C.A. COMMUNITY ENTERPRISES,Individual School Budgets With Inclusion,13364.64,Grant Payments,2324P03_CR00633,01088376
Sandwell Metropolitan Borough Council,http://www.sandwell.gov.uk/info/200202/performance_and_spending/1079/payments_over_500,21-Jun-2023,Individual School Budgets With Inclusion,WHITECREST PRIMARY SCHOOL   ,Individual School Budgets With Inclusion,4995.00,Grant Payments,2324P03_CR00634,38087
Sandwell Metropolitan Borough Council,http://www.sandwell.gov.uk/info/200202/performance_and_spending/1079/payments_over_500,21-Jun-2023,Individual School Budgets With Inclusion,WIGGLES & GIGGLES LTD,Individual School Budgets With Inclusion,20304.81,Grant Payments,2324P03_CR00635,01674799
Sandwell Metropolitan Borough Council,http://www.sandwell.gov.uk/info/200202/performance_and_spending/1079/payments_over_500,21-Jun-2023,Individual School Budgets With Inclusion,WONDERLAND CHILDRENS DAY NURSERY (UK) LTD,Individual School Budgets With Inclusion,24829.20,Grant Payments,2324P03_CR00636,50852
Sandwell Metropolitan Borough Council,http://www.sandwell.gov.uk/info/200202/performance_and_spending/1079/payments_over_500,21-Jun-2023,Individual School Budgets With Inclusion,ABIGAIL CRUMPTON,Individual School Budgets With Inclusion,1571.85,Grant Payments,2324P03_CR00637,130863
Sandwell Metropolitan Borough Council,http://www.sandwell.gov.uk/info/200202/performance_and_spending/1079/payments_over_500,21-Jun-2023,Individual School Budgets With Inclusion,AMY LEES T/A HONEYBEES HOME NURSERY,Individual School Budgets With Inclusion,639.90,Grant Payments,2324P03_CR00638,165822
Sandwell Metropolitan Borough Council,http://www.sandwell.gov.uk/info/200202/performance_and_spending/1079/payments_over_500,21-Jun-2023,Individual School Budgets With Inclusion,ANNE MARIE JACKSON-HEPBURN,Individual School Budgets With Inclusion,696.96,Grant Payments,2324P03_CR00639,162845
Sandwell Metropolitan Borough Council,http://www.sandwell.gov.uk/info/200202/performance_and_spending/1079/payments_over_500,21-Jun-2023,Individual School Budgets With Inclusion,CARA PRATT,Individual School Budgets With Inclusion,1066.50,Grant Payments,2324P03_CR00640,140537
Sandwell Metropolitan Borough Council,http://www.sandwell.gov.uk/info/200202/performance_and_spending/1079/payments_over_500,21-Jun-2023,Individual School Budgets With Inclusion,CAROLINE HENDERSON,Individual School Budgets With Inclusion,639.90,Grant Payments,2324P03_CR00641,129980
Sandwell Metropolitan Borough Council,http://www.sandwell.gov.uk/info/200202/performance_and_spending/1079/payments_over_500,21-Jun-2023,Individual School Budgets With Inclusion,CAROLINE TAVARES,Individual School Budgets With Inclusion,673.65,Grant Payments,2324P03_CR00642,112188
Sandwell Metropolitan Borough Council,http://www.sandwell.gov.uk/info/200202/performance_and_spending/1079/payments_over_500,21-Jun-2023,Individual School Budgets With Inclusion,CLAIRE PARTRIDGE,Individual School Budgets With Inclusion,1293.30,Grant Payments,2324P03_CR00643,123143
Sandwell Metropolitan Borough Council,http://www.sandwell.gov.uk/info/200202/performance_and_spending/1079/payments_over_500,21-Jun-2023,Individual School Budgets With Inclusion,CLARE O'DRISCOLL,Individual School Budgets With Inclusion,883.76,Grant Payments,2324P03_CR00644,129659
Sandwell Metropolitan Borough Council,http://www.sandwell.gov.uk/info/200202/performance_and_spending/1079/payments_over_500,21-Jun-2023,Individual School Budgets With Inclusion,DONNA CLEARY,Individual School Budgets With Inclusion,639.90,Grant Payments,2324P03_CR00645,118531
Sandwell Metropolitan Borough Council,http://www.sandwell.gov.uk/info/200202/performance_and_spending/1079/payments_over_500,21-Jun-2023,Individual School Budgets With Inclusion,HAYLEY TURNER,Individual School Budgets With Inclusion,2133.00,Grant Payments,2324P03_CR00646,162824
Sandwell Metropolitan Borough Council,http://www.sandwell.gov.uk/info/200202/performance_and_spending/1079/payments_over_500,21-Jun-2023,Individual School Budgets With Inclusion,JACQUELINE HEHIR,Individual School Budgets With Inclusion,2155.50,Grant Payments,2324P03_CR00647,75203
Sandwell Metropolitan Borough Council,http://www.sandwell.gov.uk/info/200202/performance_and_spending/1079/payments_over_500,21-Jun-2023,Individual School Budgets With Inclusion,JENNIE THOMAS,Individual School Budgets With Inclusion,871.20,Grant Payments,2324P03_CR00648,134322
Sandwell Metropolitan Borough Council,http://www.sandwell.gov.uk/info/200202/performance_and_spending/1079/payments_over_500,21-Jun-2023,Individual School Budgets With Inclusion,JENNIFER LOUISE LEATHERLAND,Individual School Budgets With Inclusion,2889.90,Grant Payments,2324P03_CR00649,131850
Sandwell Metropolitan Borough Council,http://www.sandwell.gov.uk/info/200202/performance_and_spending/1079/payments_over_500,21-Jun-2023,Individual School Budgets With Inclusion,KAI DRUMS,Individual School Budgets With Inclusion,9053.10,Grant Payments,2324P03_CR00650,120729
Sandwell Metropolitan Borough Council,http://www.sandwell.gov.uk/info/200202/performance_and_spending/1079/payments_over_500,21-Jun-2023,Individual School Budgets With Inclusion,LEEANNE ADAMS,Individual School Budgets With Inclusion,871.20,Grant Payments,2324P03_CR00651,134517
Sandwell Metropolitan Borough Council,http://www.sandwell.gov.uk/info/200202/performance_and_spending/1079/payments_over_500,21-Jun-2023,Individual School Budgets With Inclusion,LEKA HOWE,Individual School Budgets With Inclusion,1089.00,Grant Payments,2324P03_CR00652,119503
Sandwell Metropolitan Borough Council,http://www.sandwell.gov.uk/info/200202/performance_and_spending/1079/payments_over_500,21-Jun-2023,Individual School Budgets With Inclusion,LISA HINTON,Individual School Budgets With Inclusion,653.40,Grant Payments,2324P03_CR00653,92923
Sandwell Metropolitan Borough Council,http://www.sandwell.gov.uk/info/200202/performance_and_spending/1079/payments_over_500,21-Jun-2023,Individual School Budgets With Inclusion,MICHAELA MOSELEY,Individual School Budgets With Inclusion,898.20,Grant Payments,2324P03_CR00654,121672
Sandwell Metropolitan Borough Council,http://www.sandwell.gov.uk/info/200202/performance_and_spending/1079/payments_over_500,21-Jun-2023,Individual School Budgets With Inclusion,MONIQUE BROWN.,Individual School Budgets With Inclusion,1347.30,Grant Payments,2324P03_CR00655,127112
Sandwell Metropolitan Borough Council,http://www.sandwell.gov.uk/info/200202/performance_and_spending/1079/payments_over_500,21-Jun-2023,Individual School Budgets With Inclusion,NATALIE WESTON,Individual School Budgets With Inclusion,511.92,Grant Payments,2324P03_CR00656,152056
Sandwell Metropolitan Borough Council,http://www.sandwell.gov.uk/info/200202/performance_and_spending/1079/payments_over_500,21-Jun-2023,Individual School Budgets With Inclusion,REKA ONWUMELU,Individual School Budgets With Inclusion,995.40,Grant Payments,2324P03_CR00657,123887
Sandwell Metropolitan Borough Council,http://www.sandwell.gov.uk/info/200202/performance_and_spending/1079/payments_over_500,21-Jun-2023,Individual School Budgets With Inclusion,ROWINA WINDSOR,Individual School Budgets With Inclusion,862.20,Grant Payments,2324P03_CR00658,138305
Sandwell Metropolitan Borough Council,http://www.sandwell.gov.uk/info/200202/performance_and_spending/1079/payments_over_500,21-Jun-2023,Individual School Budgets With Inclusion,RUPINDER KAUR.,Individual School Budgets With Inclusion,1066.50,Grant Payments,2324P03_CR00659,143707
Sandwell Metropolitan Borough Council,http://www.sandwell.gov.uk/info/200202/performance_and_spending/1079/payments_over_500,21-Jun-2023,Individual School Budgets With Inclusion,SARAH HOWEY,Individual School Budgets With Inclusion,853.20,Grant Payments,2324P03_CR00660,140888
Sandwell Metropolitan Borough Council,http://www.sandwell.gov.uk/info/200202/performance_and_spending/1079/payments_over_500,21-Jun-2023,Individual School Budgets With Inclusion,SATVINDER KAUR,Individual School Budgets With Inclusion,1919.70,Grant Payments,2324P03_CR00661,131042
Sandwell Metropolitan Borough Council,http://www.sandwell.gov.uk/info/200202/performance_and_spending/1079/payments_over_500,21-Jun-2023,Individual School Budgets With Inclusion,THERESA DEAKIN,Individual School Budgets With Inclusion,639.90,Grant Payments,2324P03_CR00662,39468
Sandwell Metropolitan Borough Council,http://www.sandwell.gov.uk/info/200202/performance_and_spending/1079/payments_over_500,21-Jun-2023,Individual School Budgets With Inclusion,VANESSA BILLINGSLEY,Individual School Budgets With Inclusion,1706.40,Grant Payments,2324P03_CR00663,125216
Sandwell Metropolitan Borough Council,http://www.sandwell.gov.uk/info/200202/performance_and_spending/1079/payments_over_500,21-Jun-2023,Individual School Budgets With Inclusion,WENDY MAXWELL,Individual School Budgets With Inclusion,4095.45,Grant Payments,2324P03_CR00664,37344
Sandwell Metropolitan Borough Council,http://www.sandwell.gov.uk/info/200202/performance_and_spending/1079/payments_over_500,02-Jun-2023,Individual School Budgets With Inclusion,121 CARZ,Individual School Budgets With Inclusion,728.00,Public Transport,2324P03_CR00665,116848
Sandwell Metropolitan Borough Council,http://www.sandwell.gov.uk/info/200202/performance_and_spending/1079/payments_over_500,19-Jun-2023,Individual School Budgets With Inclusion,121 CARZ,Individual School Budgets With Inclusion,1552.00,Public Transport,2324P03_CR00666,116848
Sandwell Metropolitan Borough Council,http://www.sandwell.gov.uk/info/200202/performance_and_spending/1079/payments_over_500,01-Jun-2023,Individual School Budgets With Inclusion,ACTIVE CARE GROUP,Individual School Budgets With Inclusion,510.00,Externally Purchased Professional Services ,2324P03_CR00667,108302
Sandwell Metropolitan Borough Council,http://www.sandwell.gov.uk/info/200202/performance_and_spending/1079/payments_over_500,01-Jun-2023,Individual School Budgets With Inclusion,AGILISYS LTD,Individual School Budgets With Inclusion,900.90,ICT ,2324P03_CR00668,101847
Sandwell Metropolitan Borough Council,http://www.sandwell.gov.uk/info/200202/performance_and_spending/1079/payments_over_500,01-Jun-2023,Individual School Budgets With Inclusion,AGILISYS LTD,Individual School Budgets With Inclusion,6024.00,ICT ,2324P03_CR00669,101847
Sandwell Metropolitan Borough Council,http://www.sandwell.gov.uk/info/200202/performance_and_spending/1079/payments_over_500,06-Jun-2023,Individual School Budgets With Inclusion,B CREATIVE,Individual School Budgets With Inclusion,2317.00,"Printing, Stationery & General Office Expenses",2324P03_CR00670,163453
Sandwell Metropolitan Borough Council,http://www.sandwell.gov.uk/info/200202/performance_and_spending/1079/payments_over_500,01-Jun-2023,Individual School Budgets With Inclusion,BANANA MOON DAY NURSERY,Individual School Budgets With Inclusion,1890.00,Externally Purchased Professional Services ,2324P03_CR00671,124220
Sandwell Metropolitan Borough Council,http://www.sandwell.gov.uk/info/200202/performance_and_spending/1079/payments_over_500,01-Jun-2023,Individual School Budgets With Inclusion,BANANA MOON DAY NURSERY,Individual School Budgets With Inclusion,3780.00,Externally Purchased Professional Services ,2324P03_CR00672,124220
Sandwell Metropolitan Borough Council,http://www.sandwell.gov.uk/info/200202/performance_and_spending/1079/payments_over_500,01-Jun-2023,Individual School Budgets With Inclusion,BANANA MOON DAY NURSERY,Individual School Budgets With Inclusion,3900.00,Externally Purchased Professional Services ,2324P03_CR00673,124220
Sandwell Metropolitan Borough Council,http://www.sandwell.gov.uk/info/200202/performance_and_spending/1079/payments_over_500,01-Jun-2023,Individual School Budgets With Inclusion,BANANA MOON DAY NURSERY,Individual School Budgets With Inclusion,3900.00,Externally Purchased Professional Services ,2324P03_CR00674,124220
Sandwell Metropolitan Borough Council,http://www.sandwell.gov.uk/info/200202/performance_and_spending/1079/payments_over_500,01-Jun-2023,Individual School Budgets With Inclusion,BANANA MOON DAY NURSERY,Individual School Budgets With Inclusion,3900.00,Externally Purchased Professional Services ,2324P03_CR00675,124220
Sandwell Metropolitan Borough Council,http://www.sandwell.gov.uk/info/200202/performance_and_spending/1079/payments_over_500,01-Jun-2023,Individual School Budgets With Inclusion,BANANA MOON DAY NURSERY,Individual School Budgets With Inclusion,4500.00,Externally Purchased Professional Services ,2324P03_CR00676,124220
Sandwell Metropolitan Borough Council,http://www.sandwell.gov.uk/info/200202/performance_and_spending/1079/payments_over_500,02-Jun-2023,Individual School Budgets With Inclusion,BLACKWATER ACADEMY,Individual School Budgets With Inclusion,15275.00,Externally Purchased Professional Services ,2324P03_CR00677,129151
Sandwell Metropolitan Borough Council,http://www.sandwell.gov.uk/info/200202/performance_and_spending/1079/payments_over_500,02-Jun-2023,Individual School Budgets With Inclusion,BLACKWATER ACADEMY,Individual School Budgets With Inclusion,17550.00,Externally Purchased Professional Services ,2324P03_CR00678,129151
Sandwell Metropolitan Borough Council,http://www.sandwell.gov.uk/info/200202/performance_and_spending/1079/payments_over_500,01-Jun-2023,Individual School Budgets With Inclusion,BRITISH GAS BUSINESS,Individual School Budgets With Inclusion,597.12,Gas,2324P03_CR00679,01735076
Sandwell Metropolitan Borough Council,http://www.sandwell.gov.uk/info/200202/performance_and_spending/1079/payments_over_500,01-Jun-2023,Individual School Budgets With Inclusion,BRITISH GAS BUSINESS,Individual School Budgets With Inclusion,611.23,Gas,2324P03_CR00680,01735076
Sandwell Metropolitan Borough Council,http://www.sandwell.gov.uk/info/200202/performance_and_spending/1079/payments_over_500,01-Jun-2023,Individual School Budgets With Inclusion,CARE FIRST MANAGEMENT,Individual School Budgets With Inclusion,1933.75,Other Establishments,2324P03_CR00681,136901
Sandwell Metropolitan Borough Council,http://www.sandwell.gov.uk/info/200202/performance_and_spending/1079/payments_over_500,19-Jun-2023,Individual School Budgets With Inclusion,CHERWELL PACKAGING LTD,Individual School Budgets With Inclusion,1030.05,Materials & Consumables,2324P03_CR00682,164916
Sandwell Metropolitan Borough Council,http://www.sandwell.gov.uk/info/200202/performance_and_spending/1079/payments_over_500,02-Jun-2023,Individual School Budgets With Inclusion,COLMORE EDUCATION RECRUITMENT,Individual School Budgets With Inclusion,590.72,Agency Staff,2324P03_CR00683,148720
Sandwell Metropolitan Borough Council,http://www.sandwell.gov.uk/info/200202/performance_and_spending/1079/payments_over_500,19-Jun-2023,Individual School Budgets With Inclusion,COLMORE EDUCATION RECRUITMENT,Individual School Budgets With Inclusion,595.00,Agency Staff,2324P03_CR00684,148720
Sandwell Metropolitan Borough Council,http://www.sandwell.gov.uk/info/200202/performance_and_spending/1079/payments_over_500,01-Jun-2023,Individual School Budgets With Inclusion,COLMORE EDUCATION RECRUITMENT,Individual School Budgets With Inclusion,675.00,Agency Staff,2324P03_CR00685,148720
Sandwell Metropolitan Borough Council,http://www.sandwell.gov.uk/info/200202/performance_and_spending/1079/payments_over_500,01-Jun-2023,Individual School Budgets With Inclusion,COLMORE EDUCATION RECRUITMENT,Individual School Budgets With Inclusion,800.00,Agency Staff,2324P03_CR00686,148720
Sandwell Metropolitan Borough Council,http://www.sandwell.gov.uk/info/200202/performance_and_spending/1079/payments_over_500,01-Jun-2023,Individual School Budgets With Inclusion,COLMORE EDUCATION RECRUITMENT,Individual School Budgets With Inclusion,1350.00,Agency Staff,2324P03_CR00687,148720
Sandwell Metropolitan Borough Council,http://www.sandwell.gov.uk/info/200202/performance_and_spending/1079/payments_over_500,01-Jun-2023,Individual School Budgets With Inclusion,COLMORE EDUCATION RECRUITMENT,Individual School Budgets With Inclusion,1670.00,Agency Staff,2324P03_CR00688,148720
Sandwell Metropolitan Borough Council,http://www.sandwell.gov.uk/info/200202/performance_and_spending/1079/payments_over_500,02-Jun-2023,Individual School Budgets With Inclusion,COLMORE EDUCATION RECRUITMENT,Individual School Budgets With Inclusion,1810.00,Agency Staff,2324P03_CR00689,148720
Sandwell Metropolitan Borough Council,http://www.sandwell.gov.uk/info/200202/performance_and_spending/1079/payments_over_500,01-Jun-2023,Individual School Budgets With Inclusion,COLMORE EDUCATION RECRUITMENT,Individual School Budgets With Inclusion,1950.00,Agency Staff,2324P03_CR00690,148720
Sandwell Metropolitan Borough Council,http://www.sandwell.gov.uk/info/200202/performance_and_spending/1079/payments_over_500,02-Jun-2023,Individual School Budgets With Inclusion,COLMORE EDUCATION RECRUITMENT,Individual School Budgets With Inclusion,1965.00,Agency Staff,2324P03_CR00691,148720
Sandwell Metropolitan Borough Council,http://www.sandwell.gov.uk/info/200202/performance_and_spending/1079/payments_over_500,02-Jun-2023,Individual School Budgets With Inclusion,COLMORE EDUCATION RECRUITMENT,Individual School Budgets With Inclusion,1975.00,Agency Staff,2324P03_CR00692,148720
Sandwell Metropolitan Borough Council,http://www.sandwell.gov.uk/info/200202/performance_and_spending/1079/payments_over_500,02-Jun-2023,Individual School Budgets With Inclusion,COLMORE EDUCATION RECRUITMENT,Individual School Budgets With Inclusion,1999.57,Agency Staff,2324P03_CR00693,148720
Sandwell Metropolitan Borough Council,http://www.sandwell.gov.uk/info/200202/performance_and_spending/1079/payments_over_500,01-Jun-2023,Individual School Budgets With Inclusion,COLMORE EDUCATION RECRUITMENT,Individual School Budgets With Inclusion,2015.00,Agency Staff,2324P03_CR00694,148720
Sandwell Metropolitan Borough Council,http://www.sandwell.gov.uk/info/200202/performance_and_spending/1079/payments_over_500,02-Jun-2023,Individual School Budgets With Inclusion,COLMORE EDUCATION RECRUITMENT,Individual School Budgets With Inclusion,2145.00,Agency Staff,2324P03_CR00695,148720
Sandwell Metropolitan Borough Council,http://www.sandwell.gov.uk/info/200202/performance_and_spending/1079/payments_over_500,01-Jun-2023,Individual School Budgets With Inclusion,COLMORE EDUCATION RECRUITMENT,Individual School Budgets With Inclusion,2455.00,Agency Staff,2324P03_CR00696,148720
Sandwell Metropolitan Borough Council,http://www.sandwell.gov.uk/info/200202/performance_and_spending/1079/payments_over_500,02-Jun-2023,Individual School Budgets With Inclusion,COLMORE EDUCATION RECRUITMENT,Individual School Budgets With Inclusion,2550.00,Agency Staff,2324P03_CR00697,148720
Sandwell Metropolitan Borough Council,http://www.sandwell.gov.uk/info/200202/performance_and_spending/1079/payments_over_500,19-Jun-2023,Individual School Budgets With Inclusion,COLMORE EDUCATION RECRUITMENT,Individual School Budgets With Inclusion,2565.00,Agency Staff,2324P03_CR00698,148720
Sandwell Metropolitan Borough Council,http://www.sandwell.gov.uk/info/200202/performance_and_spending/1079/payments_over_500,01-Jun-2023,Individual School Budgets With Inclusion,COLMORE EDUCATION RECRUITMENT,Individual School Budgets With Inclusion,2620.00,Agency Staff,2324P03_CR00699,148720
Sandwell Metropolitan Borough Council,http://www.sandwell.gov.uk/info/200202/performance_and_spending/1079/payments_over_500,02-Jun-2023,Individual School Budgets With Inclusion,COLMORE EDUCATION RECRUITMENT,Individual School Budgets With Inclusion,2810.00,Agency Staff,2324P03_CR00700,148720
Sandwell Metropolitan Borough Council,http://www.sandwell.gov.uk/info/200202/performance_and_spending/1079/payments_over_500,02-Jun-2023,Individual School Budgets With Inclusion,COLMORE EDUCATION RECRUITMENT,Individual School Budgets With Inclusion,2815.00,Agency Staff,2324P03_CR00701,148720
Sandwell Metropolitan Borough Council,http://www.sandwell.gov.uk/info/200202/performance_and_spending/1079/payments_over_500,01-Jun-2023,Individual School Budgets With Inclusion,COLMORE EDUCATION RECRUITMENT,Individual School Budgets With Inclusion,2900.00,Agency Staff,2324P03_CR00702,148720
Sandwell Metropolitan Borough Council,http://www.sandwell.gov.uk/info/200202/performance_and_spending/1079/payments_over_500,01-Jun-2023,Individual School Budgets With Inclusion,COLMORE EDUCATION RECRUITMENT,Individual School Budgets With Inclusion,2955.00,Agency Staff,2324P03_CR00703,148720
Sandwell Metropolitan Borough Council,http://www.sandwell.gov.uk/info/200202/performance_and_spending/1079/payments_over_500,01-Jun-2023,Individual School Budgets With Inclusion,COLMORE EDUCATION RECRUITMENT,Individual School Budgets With Inclusion,3025.00,Agency Staff,2324P03_CR00704,148720
Sandwell Metropolitan Borough Council,http://www.sandwell.gov.uk/info/200202/performance_and_spending/1079/payments_over_500,01-Jun-2023,Individual School Budgets With Inclusion,COLMORE EDUCATION RECRUITMENT,Individual School Budgets With Inclusion,3025.00,Agency Staff,2324P03_CR00705,148720
Sandwell Metropolitan Borough Council,http://www.sandwell.gov.uk/info/200202/performance_and_spending/1079/payments_over_500,19-Jun-2023,Individual School Budgets With Inclusion,COLMORE EDUCATION RECRUITMENT,Individual School Budgets With Inclusion,3080.00,Agency Staff,2324P03_CR00706,148720
Sandwell Metropolitan Borough Council,http://www.sandwell.gov.uk/info/200202/performance_and_spending/1079/payments_over_500,01-Jun-2023,Individual School Budgets With Inclusion,COLMORE EDUCATION RECRUITMENT,Individual School Budgets With Inclusion,3140.00,Agency Staff,2324P03_CR00707,148720
Sandwell Metropolitan Borough Council,http://www.sandwell.gov.uk/info/200202/performance_and_spending/1079/payments_over_500,02-Jun-2023,Individual School Budgets With Inclusion,COLMORE EDUCATION RECRUITMENT,Individual School Budgets With Inclusion,3290.00,Agency Staff,2324P03_CR00708,148720
Sandwell Metropolitan Borough Council,http://www.sandwell.gov.uk/info/200202/performance_and_spending/1079/payments_over_500,19-Jun-2023,Individual School Budgets With Inclusion,COLMORE EDUCATION RECRUITMENT,Individual School Budgets With Inclusion,3295.00,Agency Staff,2324P03_CR00709,148720
Sandwell Metropolitan Borough Council,http://www.sandwell.gov.uk/info/200202/performance_and_spending/1079/payments_over_500,01-Jun-2023,Individual School Budgets With Inclusion,COLMORE EDUCATION RECRUITMENT,Individual School Budgets With Inclusion,3800.00,Agency Staff,2324P03_CR00710,148720
Sandwell Metropolitan Borough Council,http://www.sandwell.gov.uk/info/200202/performance_and_spending/1079/payments_over_500,01-Jun-2023,Individual School Budgets With Inclusion,COLMORE EDUCATION RECRUITMENT,Individual School Budgets With Inclusion,3975.00,Agency Staff,2324P03_CR00711,148720
Sandwell Metropolitan Borough Council,http://www.sandwell.gov.uk/info/200202/performance_and_spending/1079/payments_over_500,01-Jun-2023,Individual School Budgets With Inclusion,COLMORE EDUCATION RECRUITMENT,Individual School Budgets With Inclusion,4314.70,Agency Staff,2324P03_CR00712,148720
Sandwell Metropolitan Borough Council,http://www.sandwell.gov.uk/info/200202/performance_and_spending/1079/payments_over_500,02-Jun-2023,Individual School Budgets With Inclusion,COLMORE EDUCATION RECRUITMENT,Individual School Budgets With Inclusion,4433.77,Agency Staff,2324P03_CR00713,148720
Sandwell Metropolitan Borough Council,http://www.sandwell.gov.uk/info/200202/performance_and_spending/1079/payments_over_500,02-Jun-2023,Individual School Budgets With Inclusion,COLMORE EDUCATION RECRUITMENT,Individual School Budgets With Inclusion,4460.00,Agency Staff,2324P03_CR00714,148720
Sandwell Metropolitan Borough Council,http://www.sandwell.gov.uk/info/200202/performance_and_spending/1079/payments_over_500,01-Jun-2023,Individual School Budgets With Inclusion,COLMORE EDUCATION RECRUITMENT,Individual School Budgets With Inclusion,4832.50,Agency Staff,2324P03_CR00715,148720
Sandwell Metropolitan Borough Council,http://www.sandwell.gov.uk/info/200202/performance_and_spending/1079/payments_over_500,01-Jun-2023,Individual School Budgets With Inclusion,COLMORE EDUCATION RECRUITMENT,Individual School Budgets With Inclusion,6068.02,Agency Staff,2324P03_CR00716,148720
Sandwell Metropolitan Borough Council,http://www.sandwell.gov.uk/info/200202/performance_and_spending/1079/payments_over_500,01-Jun-2023,Individual School Budgets With Inclusion,COLMORE EDUCATION RECRUITMENT,Individual School Budgets With Inclusion,6434.52,Agency Staff,2324P03_CR00717,148720
Sandwell Metropolitan Borough Council,http://www.sandwell.gov.uk/info/200202/performance_and_spending/1079/payments_over_500,19-Jun-2023,Individual School Budgets With Inclusion,COMMUNITY SKILLS AND KNOWLEDGE NETWORK CIC,Individual School Budgets With Inclusion,780.00,Externally Purchased Professional Services ,2324P03_CR00718,133735
Sandwell Metropolitan Borough Council,http://www.sandwell.gov.uk/info/200202/performance_and_spending/1079/payments_over_500,19-Jun-2023,Individual School Budgets With Inclusion,COMMUNITY SKILLS AND KNOWLEDGE NETWORK CIC,Individual School Budgets With Inclusion,2268.00,Externally Purchased Professional Services ,2324P03_CR00719,133735
Sandwell Metropolitan Borough Council,http://www.sandwell.gov.uk/info/200202/performance_and_spending/1079/payments_over_500,19-Jun-2023,Individual School Budgets With Inclusion,COMMUNITY SKILLS AND KNOWLEDGE NETWORK CIC,Individual School Budgets With Inclusion,5103.00,Externally Purchased Professional Services ,2324P03_CR00720,133735
Sandwell Metropolitan Borough Council,http://www.sandwell.gov.uk/info/200202/performance_and_spending/1079/payments_over_500,01-Jun-2023,Individual School Budgets With Inclusion,COMMUNITY SKILLS AND KNOWLEDGE NETWORK CIC,Individual School Budgets With Inclusion,5951.00,Externally Purchased Professional Services ,2324P03_CR00721,133735
Sandwell Metropolitan Borough Council,http://www.sandwell.gov.uk/info/200202/performance_and_spending/1079/payments_over_500,01-Jun-2023,Individual School Budgets With Inclusion,COMPASS CHILDREN'S HOMES LTD.,Individual School Budgets With Inclusion,20433.33,Other Establishments,2324P03_CR00722,143365
Sandwell Metropolitan Borough Council,http://www.sandwell.gov.uk/info/200202/performance_and_spending/1079/payments_over_500,01-Jun-2023,Individual School Budgets With Inclusion,COMPASS CHILDREN'S HOMES LTD.,Individual School Budgets With Inclusion,22533.33,Other Establishments,2324P03_CR00723,143365
Sandwell Metropolitan Borough Council,http://www.sandwell.gov.uk/info/200202/performance_and_spending/1079/payments_over_500,01-Jun-2023,Individual School Budgets With Inclusion,COMPASS CHILDREN'S HOMES LTD.,Individual School Budgets With Inclusion,22533.33,Other Establishments,2324P03_CR00724,143365
Sandwell Metropolitan Borough Council,http://www.sandwell.gov.uk/info/200202/performance_and_spending/1079/payments_over_500,01-Jun-2023,Individual School Budgets With Inclusion,COMPASS CHILDREN'S HOMES LTD.,Individual School Budgets With Inclusion,23833.33,Other Establishments,2324P03_CR00725,143365
Sandwell Metropolitan Borough Council,http://www.sandwell.gov.uk/info/200202/performance_and_spending/1079/payments_over_500,01-Jun-2023,Individual School Budgets With Inclusion,COMPASS CHILDREN'S HOMES LTD.,Individual School Budgets With Inclusion,25200.00,Other Establishments,2324P03_CR00726,143365
Sandwell Metropolitan Borough Council,http://www.sandwell.gov.uk/info/200202/performance_and_spending/1079/payments_over_500,01-Jun-2023,Individual School Budgets With Inclusion,COMPASS CHILDREN'S HOMES LTD.,Individual School Budgets With Inclusion,29283.33,Other Establishments,2324P03_CR00727,143365
Sandwell Metropolitan Borough Council,http://www.sandwell.gov.uk/info/200202/performance_and_spending/1079/payments_over_500,01-Jun-2023,Individual School Budgets With Inclusion,COMPASS CHILDREN'S HOMES LTD.,Individual School Budgets With Inclusion,30900.00,Other Establishments,2324P03_CR00728,143365
Sandwell Metropolitan Borough Council,http://www.sandwell.gov.uk/info/200202/performance_and_spending/1079/payments_over_500,01-Jun-2023,Individual School Budgets With Inclusion,COMPASS CHILDREN'S HOMES LTD.,Individual School Budgets With Inclusion,34366.67,Other Establishments,2324P03_CR00729,143365
Sandwell Metropolitan Borough Council,http://www.sandwell.gov.uk/info/200202/performance_and_spending/1079/payments_over_500,01-Jun-2023,Individual School Budgets With Inclusion,COMPASS CHILDREN'S HOMES LTD.,Individual School Budgets With Inclusion,35766.67,Other Establishments,2324P03_CR00730,143365
Sandwell Metropolitan Borough Council,http://www.sandwell.gov.uk/info/200202/performance_and_spending/1079/payments_over_500,01-Jun-2023,Individual School Budgets With Inclusion,COMPASS CHILDREN'S HOMES LTD.,Individual School Budgets With Inclusion,35766.67,Other Establishments,2324P03_CR00731,143365
Sandwell Metropolitan Borough Council,http://www.sandwell.gov.uk/info/200202/performance_and_spending/1079/payments_over_500,01-Jun-2023,Individual School Budgets With Inclusion,COMPASS CHILDREN'S HOMES LTD.,Individual School Budgets With Inclusion,38566.67,Other Establishments,2324P03_CR00732,143365
Sandwell Metropolitan Borough Council,http://www.sandwell.gov.uk/info/200202/performance_and_spending/1079/payments_over_500,01-Jun-2023,Individual School Budgets With Inclusion,CULLIGAN ( UK) LTD,Individual School Budgets With Inclusion,622.36,Catering Provisions,2324P03_CR00733,1106
Sandwell Metropolitan Borough Council,http://www.sandwell.gov.uk/info/200202/performance_and_spending/1079/payments_over_500,01-Jun-2023,Individual School Budgets With Inclusion,DUNEDIN COMPLEX CARE LIMITED,Individual School Budgets With Inclusion,770.00,Other Local Authorities,2324P03_CR00734,164634
Sandwell Metropolitan Borough Council,http://www.sandwell.gov.uk/info/200202/performance_and_spending/1079/payments_over_500,01-Jun-2023,Individual School Budgets With Inclusion,EASTERN SHIRES PURCHASING ORGANISATION,Individual School Budgets With Inclusion,1100.00,Equipment & Furniture ,2324P03_CR00735,33070
Sandwell Metropolitan Borough Council,http://www.sandwell.gov.uk/info/200202/performance_and_spending/1079/payments_over_500,01-Jun-2023,Individual School Budgets With Inclusion,EDUCATION SOFTWARE SOLUTIONS LTD,Individual School Budgets With Inclusion,848.75,Externally Purchased Professional Services ,2324P03_CR00736,34178
Sandwell Metropolitan Borough Council,http://www.sandwell.gov.uk/info/200202/performance_and_spending/1079/payments_over_500,01-Jun-2023,Individual School Budgets With Inclusion,EDUCATION SOFTWARE SOLUTIONS LTD,Individual School Budgets With Inclusion,848.75,Externally Purchased Professional Services ,2324P03_CR00737,34178
Sandwell Metropolitan Borough Council,http://www.sandwell.gov.uk/info/200202/performance_and_spending/1079/payments_over_500,19-Jun-2023,Individual School Budgets With Inclusion,ENVIROHORT LTD,Individual School Budgets With Inclusion,822.00,Learning Resources,2324P03_CR00738,112851
Sandwell Metropolitan Borough Council,http://www.sandwell.gov.uk/info/200202/performance_and_spending/1079/payments_over_500,01-Jun-2023,Individual School Budgets With Inclusion,ENVIROHORT LTD,Individual School Budgets With Inclusion,1096.00,Learning Resources,2324P03_CR00739,112851
Sandwell Metropolitan Borough Council,http://www.sandwell.gov.uk/info/200202/performance_and_spending/1079/payments_over_500,19-Jun-2023,Individual School Budgets With Inclusion,ENVIRONMENTS FOR LEARNING SANDWELL PFI ONE LIMITED,Individual School Budgets With Inclusion,3305.77,PFI & PPP Schemes,2324P03_CR00740,98332
Sandwell Metropolitan Borough Council,http://www.sandwell.gov.uk/info/200202/performance_and_spending/1079/payments_over_500,01-Jun-2023,Individual School Budgets With Inclusion,ENVIRONMENTS FOR LEARNING SANDWELL PFI ONE LIMITED,Individual School Budgets With Inclusion,3994.05,PFI & PPP Schemes,2324P03_CR00741,98332
